Workbook

Sheet Annex of Approved IPFs
A1: Vote | B1: Local Government | C1: IFMs Operational Costs | D1: District Unconditional Grant | E1: Urban Unconditional Grant | F1: Urban Unconditional Grant - Wage | G1: District Unconditional Grant - Wage | H1: Start up Costs | I1: Salary and Gratuity for LG Political Leaders | J1: Urban Equalization Grant | K1: District Equalisation grant | L1: Tertiary Salary | M1: Primary Teachers Salary | N1: Secondary Teachers Salary | O1: Agric Extension Workers - Salary | P1: PHC Wage | Q1: DSC Chairperson's Salary | R1: UPE | S1: PHC Non-wage | T1: Production and Marketing Grant (PMG) - including PRDP Component and Commercial Services | Y1: District Hospitals | Z1: PHC NGO Hospitals (Non-Wage) | AA1: Functional Adult Literacy | AB1: Secondary Capitation Grant | AC1: Boards and Commissions including PRDP Component | AF1: Urban Water O&M Grant | AG1: PAF Monitoring and Accountability Including PRDP | AK1: Public Libraries Board | AL1: Health Training Institutions | AM1: Community Development Workers | AP1: Environment and Natural Resources (Including the PRDP Component) | AS1: Women, Youth and Disability Councls | AT1: DSC Operational Costs | AU1: LLGs Ex-Gratia and District monthly allowances | AV1: Special Grant for PWDs | AW1: School Inspection Grant | AZ1: Hard to Reach Allowances | BA1: Sanitation and Hygiene Grant - Health Component | BB1: Sanitation and Hygiene Grant - Water Component | BC1: Community Polytechnics (Non- Wage) | BD1: Technical and Farm Schools (Non-wage) | BE1: PTCs | BF1: Technical Institutes (Non-Wage) | BG1: NAADs (Districts) - Wage | BH1: Total Recurrent | BJ1: Local Government Management and Service Delievery (LGMSD) Including PRDP | BM1: Rural Water and Sanitation including PRDP | BP1: Construction of Secondary Schools | BQ1: NAADS | BR1: PHC Development Including PRDP allocations | BU1: SFG Allocation details Including PRDP allocations | CB1: Rural Roads Including PRDP Allocations | CE1: Total Development | CF1: Grand Total LG Transfers
T2: Normal | U2: DATICs | V2: Trade and Commercial Services | W2: PRDP | X2: Total | AC2: Normal | AD2: PRDP | AE2: Total | AG2: Normal Monitoring | AH2: Payroll Printing | AI2: PRDP | AJ2: Total | AM2: NADs - CBR Component | AN2: Community Dev't Workers Component | AO2: Total | AP2: Normal | AQ2: PRDP | AR2: Total | AW2: DEO Operational costs component | AX2: School Inspection Grant Component | AY2: Total | BJ2: Normal allocation (MoLG) | BK2: PRDP Component | BL2: Total | BM2: Normal | BN2: PRDP | BO2: Total | BR2: Normal | BS2: PRDP | BT2: Total | BU2: Ordinary SFG | BV2: Linedup Latrines in the 30 worseoff LGs | BW2: Teachers' Houses in Hard To Reach LGs not under PRDP | BX2: Presidential Pledges for FY 2011/12 | BY2: Total SFG Allocation | BZ2: PRDP | CA2: Total SFG allocation including PRDP | CB2: RTI | CC2: PRDP | CD2: Total | CG2: Wage | CH2: Non Wage Recurrent
B3: Budget Line Item | C3: 221016 | D3: 321401 | E3: 321402 | F3: 321450 | G3: 321451 | H3: 321435 | I3: 321444 | J3: 321463 | K3: 321403 | L3: 321404 | M3: 321405 | N3: 321406 | O3: 321408 | P3: 321407 | Q3: 321410 | R3: 321411 | S3: 321413 | T3: 321448 | Y3: 321417 | Z3: 321418 | AA3: 321420 | AB3: 321419 | AC3: 321422 | AF3: 321424 | AG3: 321427 | AK3: 321430 | AL3: 321432 | AM3: 321434 | AP3: 321436 | AS3: 321437 | AT3: 321439 | AU3: 321445 | AV3: 321446 | AW3: 321447 | AZ3: 321453 | BA3: 321449 | BB3: 321449 | BC3: 321455 | BD3: 321457 | BE3: 321462 | BF3: 321461 | BG3: 321464 | BJ3: 321426 | BM3: 321428 | BP3: 321452 | BQ3: 321429 | BR3: 321431 | BU3: 321433 | CB3: 321412
A4: 501 | B4: Adjumani District | C4: 30000 | D4: 580552.1423 | E4: 131836.1127 | F4: 125193.6042 | G4: 758630.528 | H4: 0 | I4: 126360 | J4: 29692.03696 | K4: 95779.59578 | L4: 0 | M4: 2825102.827 | N4: 712376.0419 | O4: 28001.89684 | P4: 3361524.273 | Q4: 23400 | R4: 234812.5117 | S4: 159858.2328 | T4: 142714.5863 | U4: 0 | V4: 0 | W4: 57049.02149 | X4: =SUM(T4:W4) -> 199763.6077 | Y4: 137576.6654 | Z4: 148282.5846 | AA4: 14363.35482 | AB4: 312276.7174 | AC4: 28120.48592 | AD4: 67859.06711 | AE4: =SUM(AC4:AD4) -> 95979.55304 | AF4: 0 | AG4: 30469.34172 | AH4: 8230.460659 | AI4: 37821.00072 | AJ4: =SUM(AG4:AI4) -> 76520.8031 | AK4: 0 | AL4: 0 | AM4: 0 | AN4: 3638.508361 | AO4: =SUM(AM4:AN4) -> 3638.508361 | AP4: 7943.055764 | AQ4: 39149.46176 | AR4: =SUM(AP4:AQ4) -> 47092.51753 | AS4: 13101.63556 | AT4: 26274.57485 | AU4: 52800 | AV4: 27353.3781 | AW4: 4500 | AX4: 11175 | AY4: =SUM(AW4:AX4) -> 15675 | AZ4: 1099580.268 | BA4: 0 | BB4: 22000 | BC4: 0 | BD4: 0 | BE4: 0 | BF4: 0 | BG4: 205035 | BH4: =SUM(C4:S4,X4,Y4:AB4,AE4,AF4,AJ4,AK4:AL4,AO4,AR4,AS4:AV4,AY4,AZ4:BG4) -> 11720433.97 | BJ4: 839414.2934 | BK4: 219758.979 | BL4: =SUM(BJ4:BK4) -> 1059173.272 | BM4: 428692.2449 | BN4: 107008.5289 | BO4: =SUM(BM4:BN4) -> 535700.7737 | BP4: 0 | BQ4: 893072.2062 | BR4: 51343.51915 | BS4: 325201.5292 | BT4: =SUM(BR4:BS4) -> 376545.0483 | BU4: 105325.937 | BV4: 0 | BW4: 0 | BX4: 0 | BY4: =SUM(BU4:BX4) -> 105325.937 | BZ4: 322072.2357 | CA4: =SUM(BY4:BZ4) -> 427398.1727 | CB4: 0 | CC4: 715130.2123 | CD4: =SUM(CB4:CC4) -> 715130.2123 | CE4: =SUM(BL4,BO4,BP4:BQ4,BT4,CA4,CD4) -> 4007019.686 | CF4: =SUM(BH4,CE4) -> 15727453.66 | CG4: =SUM(F4:G4,I4,L4:Q4,BG4) -> 8165624.17 | CH4: =SUM(C4:E4,H4,J4:K4,R4:S4,X4,Y4:AB4,AE4,AF4,AJ4,AK4:AL4,AO4,AR4,AS4:AV4,AY4,AZ4:BF4) -> 3554809.801
A5: 502 | B5: Apac District | C5: 30000 | D5: 595365.0298 | E5: 132419.6557 | F5: 250387.2084 | G5: 1019904.258 | H5: 0 | I5: 126360 | J5: 0 | K5: 86320.65597 | L5: 377313.3965 | M5: 7884422.29 | N5: 1490880.953 | O5: 28001.89684 | P5: 3469989.242 | Q5: 23400 | R5: 735929.2626 | S5: 158296.0535 | T5: 110987.1643 | U5: 0 | V5: 0 | W5: 78694.17446 | X5: =SUM(T5:W5) -> 189681.3387 | Y5: 131633.5989 | Z5: 30370.2786 | AA5: 14393.99867 | AB5: 551765.1907 | AC5: 28120.48592 | AD5: 23608.25234 | AE5: =SUM(AC5:AD5) -> 51728.73826 | AF5: 0 | AG5: 42108.29141 | AH5: 16807.25258 | AI5: 25251.6698 | AJ5: =SUM(AG5:AI5) -> 84167.21379 | AK5: 0 | AL5: 0 | AM5: 0 | AN5: 3646.271026 | AO5: =SUM(AM5:AN5) -> 3646.271026 | AP5: 7598.149833 | AQ5: 23608.25234 | AR5: =SUM(AP5:AQ5) -> 31206.40217 | AS5: 13129.58756 | AT5: 47033.29997 | AU5: 124560 | AV5: 27411.73584 | AW5: 4500 | AX5: 20215 | AY5: =SUM(AW5:AX5) -> 24715 | AZ5: 0 | BA5: 0 | BB5: 0 | BC5: 0 | BD5: 120737.7755 | BE5: 0 | BF5: 0 | BG5: 221685 | BH5: =SUM(C5:S5,X5,Y5:AB5,AE5,AF5,AJ5,AK5:AL5,AO5,AR5,AS5:AV5,AY5,AZ5:BG5) -> 18076855.33 | BJ5: 595377.2801 | BK5: 112004.6316 | BL5: =SUM(BJ5:BK5) -> 707381.9117 | BM5: 662410.328 | BN5: 94433.00936 | BO5: =SUM(BM5:BN5) -> 756843.3374 | BP5: 0 | BQ5: 933781.1178 | BR5: 65394.54312 | BS5: 314776.6979 | BT5: =SUM(BR5:BS5) -> 380171.241 | BU5: 175542.895 | BV5: 0 | BW5: 0 | BX5: 0 | BY5: =SUM(BU5:BX5) -> 175542.895 | BZ5: 393470.8723 | CA5: =SUM(BY5:BZ5) -> 569013.7673 | CB5: 512002.2805 | CC5: 196735.9304 | CD5: =SUM(CB5:CC5) -> 708738.2109 | CE5: 4055929.586 | CF5: =SUM(BH5,CE5) -> 22132784.92 | CG5: =SUM(F5:G5,I5,L5:Q5,BG5) -> 14892344.24 | CH5: =SUM(C5:E5,H5,J5:K5,R5:S5,X5,Y5:AB5,AE5,AF5,AJ5,AK5:AL5,AO5,AR5,AS5:AV5,AY5,AZ5:BF5) -> 3184511.087
A6: 503 | B6: Arua District | C6: 30000 | D6: 1421250.65 | E6: 0 | F6: 0 | G6: 1847131.461 | H6: 0 | I6: 126360 | J6: 0 | K6: 312552.1865 | L6: 1810764.791 | M6: 16061405.12 | N6: 3767716.547 | O6: 35888.00869 | P6: 3968910.967 | Q6: 23400 | R6: 1636672.865 | S6: 306208.0082 | T6: 250995.7366 | U6: 0 | V6: 7200 | W6: 201393.7764 | X6: 459589.513 | Y6: 0 | Z6: 568325.3135 | AA6: 32835.23712 | AB6: 1232064.54 | AC6: 28120.48592 | AD6: 60418.13315 | AE6: 88538.61907 | AF6: 16000 | AG6: 75187.05746 | AH6: 33607.71436 | AI6: 40278.75541 | AJ6: 149073.5272 | AK6: 0 | AL6: 542795 | AM6: 28818.4438 | AN6: 8317.784135 | AO6: 37136.22794 | AP6: 9183.781517 | AQ6: 60418.13315 | AR6: 69601.91467 | AS6: 29950.89348 | AT6: 102368.3922 | AU6: 193920 | AV6: 62530.98024 | AW6: 4500 | AX6: 39426 | AY6: 43926 | AZ6: 0 | BA6: 0 | BB6: 22000 | BC6: 0 | BD6: 241476 | BE6: 411272.9901 | BF6: 153381.0042 | BG6: 488085 | BH6: 36293131.76 | BJ6: 1243795.781 | BK6: 201393.7764 | BL6: 1445189.558 | BM6: 587269.0619 | BN6: 201393.7764 | BO6: 788662.8383 | BP6: 0 | BQ6: 2126361.366 | BR6: 170673.3454 | BS6: 302090.6657 | BT6: 472764.0112 | BU6: 210651.874 | BV6: 0 | BW6: 0 | BX6: 0 | BY6: 210651.874 | BZ6: 342369.4212 | CA6: 553021.2952 | CB6: 0 | CC6: 604181.3331 | CD6: 604181.3331 | CE6: 5990180.401 | CF6: 42283312.16 | CG6: 28129661.89 | CH6: 8163469.862
A7: 504 | B7: Bugiri District | C7: 30000 | D7: 655028.4713 | E7: 106999.314 | F7: 125193.6042 | G7: 1147022.979 | H7: 0 | I7: 126360 | J7: 0 | K7: 99224.90498 | L7: 279548.8247 | M7: 6802971.015 | N7: 1036201.832 | O7: 35888.00869 | P7: 2509619.603 | Q7: 23400 | R7: 677016.6431 | S7: 185668.5224 | T7: 125924.3578 | U7: 0 | V7: 0 | W7: 0 | X7: 125924.3578 | Y7: 151840.0253 | Z7: 63035.66678 | AA7: 19600.43569 | AB7: 1213681.062 | AC7: 28120.48592 | AD7: 0 | AE7: 28120.48592 | AF7: 0 | AG7: 34776.91082 | AH7: 14532.33153 | AI7: 0 | AJ7: 49309.24234 | AK7: 0 | AL7: 0 | AM7: 0 | AN7: 4965.159606 | AO7: 4965.159606 | AP7: 7209.239911 | AQ7: 0 | AR7: 7209.239911 | AS7: 17878.67587 | AT7: 39733.15714 | AU7: 79680 | AV7: 37326.80389 | AW7: 4500 | AX7: 27749 | AY7: 32249 | AZ7: 12833.2832 | BA7: 0 | BB7: 22000 | BC7: 0 | BD7: 120738 | BE7: 0 | BF7: 0 | BG7: 221685 | BH7: 16087953.32 | BJ7: 738496.0242 | BK7: 0 | BL7: 738496.0242 | BM7: 674702.9155 | BN7: 0 | BO7: 674702.9155 | BP7: 100000 | BQ7: 962485.0811 | BR7: 165906.8173 | BS7: 0 | BT7: 165906.8173 | BU7: 351085.79 | BV7: 0 | BW7: 0 | BX7: 323000 | BY7: 674085.79 | BZ7: 0 | CA7: 674085.79 | CB7: 0 | CC7: 0 | CD7: 0 | CE7: 3315676.628 | CF7: 19403629.95 | CG7: 12307890.87 | CH7: 3780062.451
A8: 505 | B8: Bundibugyo District | C8: 30000 | D8: 386375.9478 | E8: 139075.536 | F8: 250387.2084 | G8: 1116179.299 | H8: 0 | I8: 126360 | J8: 0 | K8: 0 | L8: 252338.568 | M8: 4495953.079 | N8: 523486.9324 | O8: 28001.89684 | P8: 2769727.829 | Q8: 23400 | R8: 302686.769 | S8: 134863.2323 | T8: 66874.69163 | U8: 0 | V8: 0 | W8: 0 | X8: 66874.69163 | Y8: 142628.2717 | Z8: 21337.40638 | AA8: 14184.90442 | AB8: 491479.398 | AC8: 28120.48592 | AD8: 0 | AE8: 28120.48592 | AF8: 0 | AG8: 27801.61919 | AH8: 11415.35014 | AI8: 0 | AJ8: 39216.96933 | AK8: 0 | AL8: 0 | AM8: 0 | AN8: 3593.303513 | AO8: 3593.303513 | AP8: 7032.710946 | AQ8: 0 | AR8: 7032.710946 | AS8: 12938.86076 | AT8: 31321.83381 | AU8: 110520 | AV8: 27013.53958 | AW8: 4500 | AX8: 18332 | AY8: 22832 | AZ8: 1265615.683 | BA8: 0 | BB8: 22000 | BC8: 82067 | BD8: 0 | BE8: 157500.5454 | BF8: 0 | BG8: 288285 | BH8: 13413398.9 | BJ8: 363246.2468 | BK8: 0 | BL8: 363246.2468 | BM8: 353098.6199 | BN8: 0 | BO8: 353098.6199 | BP8: 200000 | BQ8: 1048723.521 | BR8: 150467.9096 | BS8: 0 | BT8: 150467.9096 | BU8: 210651.874 | BV8: 0 | BW8: 0 | BX8: 18000 | BY8: 228651.874 | BZ8: 0 | CA8: 228651.874 | CB8: 0 | CC8: 0 | CD8: 0 | CE8: 2344188.171 | CF8: 15757587.07 | CG8: 9874119.813 | CH8: 3539279.09
A9: 506 | B9: Bushenyi District | C9: 47143 | D9: 569883.0365 | E9: 0 | F9: 0 | G9: 998867.6606 | H9: 0 | I9: 126360 | J9: 0 | K9: 0 | L9: 579899.6591 | M9: 5417614.675 | N9: 1519260.364 | O9: 89543.85025 | P9: 3136879.143 | Q9: 23400 | R9: 302432.7793 | S9: 106364.6388 | T9: 62318.71412 | U9: 0 | V9: 7200 | W9: 0 | X9: 69518.71412 | Y9: 0 | Z9: 728888.4574 | AA9: 10126.82709 | AB9: 832215.3308 | AC9: 28120.48592 | AD9: 0 | AE9: 28120.48592 | AF9: 0 | AG9: 31282.68995 | AH9: 11551.16632 | AI9: 0 | AJ9: 42833.85627 | AK9: 0 | AL9: 0 | AM9: 10374.63977 | AN9: 2565.316078 | AO9: 12939.95585 | AP9: 8182.392717 | AQ9: 0 | AR9: 8182.392717 | AS9: 9237.256863 | AT9: 49395.4584 | AU9: 99120 | AV9: 19285.39216 | AW9: 4500 | AX9: 23103 | AY9: 27603 | AZ9: 0 | BA9: 111364.7887 | BB9: 0 | BC9: 0 | BD9: 0 | BE9: 331953.8435 | BF9: 267733.0073 | BG9: 238335 | BH9: 15804502.57 | BJ9: 219532.6329 | BK9: 0 | BL9: 219532.6329 | BM9: 356129.1629 | BN9: 0 | BO9: 356129.1629 | BP9: 180000 | BQ9: 873380.8427 | BR9: 170356.1679 | BS9: 0 | BT9: 170356.1679 | BU9: 140433.916 | BV9: 0 | BW9: 0 | BX9: 70000 | BY9: 210433.916 | BZ9: 0 | CA9: 210433.916 | CB9: 0 | CC9: 0 | CD9: 0 | CE9: 2009832.722 | CF9: 17814335.3 | CG9: 12130160.35 | CH9: 3674342.222
A10: 507 | B10: Busia District | C10: 30000 | D10: 468782.308 | E10: 0 | F10: 0 | G10: 991574.7972 | H10: 0 | I10: 126360 | J10: 0 | K10: 0 | L10: 492618.9329 | M10: 6081642.984 | N10: 1614899.104 | O10: 85082.51233 | P10: 1425721.021 | Q10: 23400 | R10: 592394.0626 | S10: 140858.7254 | T10: 80117.40993 | U10: 0 | V10: 7200 | W10: 95377.33945 | X10: 182694.7494 | Y10: 109334.6108 | Z10: 92177.80958 | AA10: 13484.81161 | AB10: 1004904.616 | AC10: 28120.48592 | AD10: 0 | AE10: 28120.48592 | AF10: 0 | AG10: 28765.52838 | AH10: 12963.65462 | AI10: 19230.43835 | AJ10: 60959.62135 | AK10: 0 | AL10: 0 | AM10: 17291.06628 | AN10: 3415.956817 | AO10: 20707.0231 | AP10: 4933.400366 | AQ10: 15738.83489 | AR10: 20672.23526 | AS10: 12300.26616 | AT10: 41219.66021 | AU10: 103320 | AV10: 25680.29234 | AW10: 4500 | AX10: 18332 | AY10: 22832 | AZ10: 0 | BA10: 0 | BB10: 22000 | BC10: 87085 | BD10: 0 | BE10: 157500.5454 | BF10: 99890.00273 | BG10: 304935 | BH10: 14483153.18 | BJ10: 375439.1099 | BK10: 118040.8265 | BL10: 493479.9365 | BM10: 362440.6267 | BN10: 74368.35569 | BO10: 436808.9824 | BP10: 0 | BQ10: 1011810.766 | BR10: 144865.2382 | BS10: 127235.889 | BT10: 272101.1273 | BU10: 140433.916 | BV10: 0 | BW10: 0 | BX10: 0 | BY10: 140433.916 | BZ10: 242701.4904 | CA10: 383135.4064 | CB10: 0 | CC10: 268828.7433 | CD10: 268828.7433 | CE10: 2866164.962 | CF10: 17349318.14 | CG10: 11146234.35 | CH10: 3336918.826
A11: 508 | B11: Gulu District | C11: 30000 | D11: 614029.5452 | E11: 0 | F11: 0 | G11: 1679949.506 | H11: 0 | I11: 126360 | J11: 0 | K11: 65085.0229 | L11: 802357.2175 | M11: 6706062.056 | N11: 1554483.871 | O11: 33692.61792 | P11: 3027585.288 | Q11: 23400 | R11: 513807.2381 | S11: 165411.1981 | T11: 148902.4154 | U11: 0 | V11: 7200 | W11: 76011.23824 | X11: 232113.6537 | Y11: 0 | Z11: 781662.1883 | AA11: 14508.60836 | AB11: 552555.6513 | AC11: 28120.48592 | AD11: 38005.62069 | AE11: 66126.10662 | AF11: 0 | AG11: 57047.20547 | AH11: 17269.0276 | AI11: 38005.6192 | AJ11: 112321.8523 | AK11: 0 | AL11: 256068 | AM11: 12680.11527 | AN11: 3675.303822 | AO11: 16355.4191 | AP11: 11968.61596 | AQ11: 76011.23824 | AR11: 87979.8542 | AS11: 13234.12961 | AT11: 65940.43954 | AU11: 74640 | AV11: 27629.99699 | AW11: 4500 | AX11: 20215 | AY11: 24715 | AZ11: 2714684.867 | BA11: 0 | BB11: 22000 | BC11: 106000 | BD11: 0 | BE11: 444639.5917 | BF11: 0 | BG11: 304935 | BH11: 21260333.92 | BJ11: 532673.4833 | BK11: 114016.8574 | BL11: 646690.3407 | BM11: 371088.9721 | BN11: 380056.192 | BO11: 751145.164 | BP11: 67000 | BQ11: 1168151.427 | BR11: 88943.17475 | BS11: 380056.192 | BT11: 468999.3667 | BU11: 140433.916 | BV11: 0 | BW11: 0 | BX11: 0 | BY11: 140433.916 | BZ11: 418061.8111 | CA11: 558495.7271 | CB11: 512002.2805 | CC11: 380056.192 | CD11: 892058.4725 | CE11: 4552540.498 | CF11: 25812874.42 | CG11: 14258825.56 | CH11: 7001508.363
A12: 509 | B12: Hoima District | C12: 0 | D12: 826592.1741 | E12: 55208.50714 | F12: 125193.6042 | G12: 1071732.743 | H12: 0 | I12: 126360 | J12: 0 | K12: 0 | L12: 0 | M12: 5543621.791 | N12: 1615948.545 | O12: 61529.54497 | P12: 2844118.577 | Q12: 23400 | R12: 599568.7727 | S12: 196298.8575 | T12: 184091.557 | U12: 0 | V12: 0 | W12: 0 | X12: 184091.557 | Y12: 0 | Z12: 32972.8839 | AA12: 19849.45785 | AB12: 760098.9782 | AC12: 28120.48592 | AD12: 0 | AE12: 28120.48592 | AF12: 0 | AG12: 44741.76836 | AH12: 12698.81306 | AI12: 0 | AJ12: 57440.58142 | AK12: 9790.476725 | AL12: 0 | AM12: 12680.11527 | AN12: 5028.241612 | AO12: 17708.35689 | AP12: 8462.242661 | AQ12: 0 | AR12: 8462.242661 | AS12: 18105.82319 | AT12: 48646.42591 | AU12: 109800 | AV12: 37801.03832 | AW12: 4500 | AX12: 27121 | AY12: 31621 | AZ12: 0 | BA12: 0 | BB12: 22000 | BC12: 0 | BD12: 0 | BE12: 390425.2999 | BF12: 0 | BG12: 288285 | BH12: 15154792.72 | BJ12: 803974.2065 | BK12: 0 | BL12: 803974.2065 | BM12: 383567.3172 | BN12: 0 | BO12: 383567.3172 | BP12: 0 | BQ12: 1178315.03 | BR12: 176132.5466 | BS12: 0 | BT12: 176132.5466 | BU12: 280868.832 | BV12: 0 | BW12: 272000 | BX12: 0 | BY12: 552868.832 | BZ12: 0 | CA12: 552868.832 | CB12: 0 | CC12: 0 | CD12: 0 | CE12: 3094857.933 | CF12: 18249650.66 | CG12: 11700189.8 | CH12: 3454602.919
A13: 510 | B13: Iganga District | C13: 30000 | D13: 649875.842 | E13: 67889.17252 | F13: 125193.6042 | G13: 1181557.702 | H13: 0 | I13: 126360 | J13: 0 | K13: 0 | L13: 764192.5898 | M13: 11220235.9 | N13: 3461771.153 | O13: 64274.08389 | P13: 4209627.286 | Q13: 23400 | R13: 739024.1376 | S13: 171676.3287 | T13: 132544.1175 | U13: 0 | V13: 0 | W13: 0 | X13: 132544.1175 | Y13: 167291.9984 | Z13: 107425.5926 | AA13: 17824.77835 | AB13: 2321711.799 | AC13: 28120.48592 | AD13: 0 | AE13: 28120.48592 | AF13: 0 | AG13: 54772.77649 | AH13: 23367.1742 | AI13: 0 | AJ13: 78139.95069 | AK13: 0 | AL13: 0 | AM13: 0 | AN13: 4515.35215 | AO13: 4515.35215 | AP13: 9396.161474 | AQ13: 0 | AR13: 9396.161474 | AS13: 16258.99748 | AT13: 77920.39413 | AU13: 98880 | AV13: 33945.26613 | AW13: 4500 | AX13: 35157 | AY13: 39657 | AZ13: 0 | BA13: 0 | BB13: 22000 | BC13: 94200 | BD13: 0 | BE13: 567505.3531 | BF13: 167841.0046 | BG13: 304935 | BH13: 27125191.05 | BJ13: 624683.3867 | BK13: 0 | BL13: 624683.3867 | BM13: 674702.9155 | BN13: 0 | BO13: 674702.9155 | BP13: 0 | BQ13: 1182952.658 | BR13: 154938.1572 | BS13: 0 | BT13: 154938.1572 | BU13: 351085.79 | BV13: 0 | BW13: 272000 | BX13: 1385557.795 | BY13: 2008643.585 | BZ13: 0 | CA13: 2008643.585 | CB13: 0 | CC13: 0 | CD13: 0 | CE13: 4645920.703 | CF13: 31771111.76 | CG13: 21481547.32 | CH13: 5643643.732
A14: 511 | B14: Jinja District | C14: 47143 | D14: 774887.3767 | E14: 380219.881 | F14: 375580.8126 | G14: 1124865.683 | H14: 0 | I14: 126360 | J14: 0 | K14: 0 | L14: 967783.2819 | M14: 6689529.034 | N14: 3803426.053 | O14: 48121.60879 | P14: 3200744.726 | Q14: 23400 | R14: 440551.1982 | S14: 215472.6655 | T14: 125374.0838 | U14: 0 | V14: 0 | W14: 0 | X14: 125374.0838 | Y14: 0 | Z14: 177733.0956 | AA14: 15864.06468 | AB14: 1476609.326 | AC14: 28120.48592 | AD14: 0 | AE14: 28120.48592 | AF14: 0 | AG14: 42087.02511 | AH14: 17350.51731 | AI14: 0 | AJ14: 59437.54243 | AK14: 0 | AL14: 1052253.978 | AM14: 0 | AN14: 4018.666442 | AO14: 4018.666442 | AP14: 11177.65012 | AQ14: 0 | AR14: 11177.65012 | AS14: 14470.51866 | AT14: 71665.8863 | AU14: 74400 | AV14: 30211.30962 | AW14: 4500 | AX14: 23857 | AY14: 28357 | AZ14: 0 | BA14: 0 | BB14: 22000 | BC14: 0 | BD14: 0 | BE14: 167475.5799 | BF14: 176343.0048 | BG14: 238335 | BH14: 21991932.51 | BJ14: 632494.4828 | BK14: 0 | BL14: 632494.4828 | BM14: 676875.5891 | BN14: 0 | BO14: 676875.5891 | BP14: 0 | BQ14: 930139.1925 | BR14: 162390.6458 | BS14: 0 | BT14: 162390.6458 | BU14: 280868.832 | BV14: 0 | BW14: 0 | BX14: 0 | BY14: 280868.832 | BZ14: 0 | CA14: 280868.832 | CB14: 0 | CC14: 0 | CD14: 0 | CE14: 2682768.742 | CF14: 24674701.26 | CG14: 16598146.2 | CH14: 5393786.314
A15: 512 | B15: Kabale District | C15: 30000 | D15: 1287943.06 | E15: 278744.0915 | F15: 375580.8126 | G15: 1615142.359 | H15: 0 | I15: 126360 | J15: 0 | K15: 0 | L15: 843880.0103 | M15: 15830477.18 | N15: 3995386.443 | O15: 114444.0973 | P15: 4588081.53 | Q15: 23400 | R15: 946430.7567 | S15: 293939.9643 | T15: 130433.3304 | U15: 0 | V15: 0 | W15: 0 | X15: 130433.3304 | Y15: 0 | Z15: 494249.1468 | AA15: 20781.72388 | AB15: 1549221.034 | AC15: 28120.48592 | AD15: 0 | AE15: 28120.48592 | AF15: 200000 | AG15: 65918.51047 | AH15: 32826.77131 | AI15: 0 | AJ15: 98745.28178 | AK15: 0 | AL15: 490354 | AM15: 0 | AN15: 5264.402159 | AO15: 5264.402159 | AP15: 7924.084768 | AQ15: 0 | AR15: 7924.084768 | AS15: 18956.19624 | AT15: 103984.9581 | AU15: 218520 | AV15: 39576.4331 | AW15: 4500 | AX15: 43947 | AY15: 48447 | AZ15: 0 | BA15: 0 | BB15: 22000 | BC15: 75375 | BD15: 120738 | BE15: 352967.0262 | BF15: 0 | BG15: 454785 | BH15: 34830253.41 | BJ15: 627529.0804 | BK15: 0 | BL15: 627529.0804 | BM15: 356129.1629 | BN15: 0 | BO15: 356129.1629 | BP15: 200000 | BQ15: 1753664.391 | BR15: 197781.3881 | BS15: 0 | BT15: 197781.3881 | BU15: 210651.874 | BV15: 0 | BW15: 0 | BX15: 0 | BY15: 210651.874 | BZ15: 0 | CA15: 210651.874 | CB15: 0 | CC15: 0 | CD15: 0 | CE15: 3345755.897 | CF15: 38176009.31 | CG15: 27967537.44 | CH15: 6862715.975
A16: 513 | B16: Kabarole District | C16: 0 | D16: 997672.2155 | E16: 378100.0717 | F16: 751161.6252 | G16: 1536532.36 | H16: 0 | I16: 126360 | J16: 0 | K16: 0 | L16: 528245.2828 | M16: 7239206.681 | N16: 1691114.613 | O16: 109214.3689 | P16: 2840888.829 | Q16: 23400 | R16: 632046.4603 | S16: 196255.074 | T16: 114619.8362 | U16: 8200 | V16: 7200 | W16: 0 | X16: 130019.8362 | Y16: 0 | Z16: 449161.4195 | AA16: 19885.77073 | AB16: 1251913.005 | AC16: 28120.48592 | AD16: 0 | AE16: 28120.48592 | AF16: 0 | AG16: 42650.23661 | AH16: 16134.96248 | AI16: 0 | AJ16: 58785.19909 | AK16: 0 | AL16: 353721 | AM16: 0 | AN16: 5037.440347 | AO16: 5037.440347 | AP16: 8272.953699 | AQ16: 0 | AR16: 8272.953699 | AS16: 18138.94624 | AT16: 61373.2625 | AU16: 119400 | AV16: 37870.19206 | AW16: 4500 | AX16: 23229 | AY16: 27729 | AZ16: 0 | BA16: 0 | BB16: 22000 | BC16: 0 | BD16: 0 | BE16: 363895.0321 | BF16: 0 | BG16: 438135 | BH16: 20443656.12 | BJ16: 580873.0501 | BK16: 0 | BL16: 580873.0501 | BM16: 467252.7183 | BN16: 0 | BO16: 467252.7183 | BP16: 0 | BQ16: 1456955.696 | BR16: 179938.5135 | BS16: 0 | BT16: 179938.5135 | BU16: 280868.832 | BV16: 0 | BW16: 0 | BX16: 15146.56255 | BY16: 296015.3946 | BZ16: 0 | CA16: 296015.3946 | CB16: 0 | CC16: 0 | CD16: 0 | CE16: 2981035.373 | CF16: 23424691.5 | CG16: 15284258.76 | CH16: 5159397.364
A17: 514 | B17: Kaberamaido District | C17: 0 | D17: 367822.2956 | E17: 36488.31626 | F17: 125193.6042 | G17: 859937.5421 | H17: 0 | I17: 126360 | J17: 0 | K17: 59572.52818 | L17: 237527.5653 | M17: 3722592.769 | N17: 889427.9452 | O17: 27289.04256 | P17: 1605334.199 | Q17: 23400 | R17: 453684.6675 | S17: 120199.2938 | T17: 70813.89987 | U17: 0 | V17: 0 | W17: 196735.4362 | X17: 267549.336 | Y17: 0 | Z17: 212942.2655 | AA17: 10385.16754 | AB17: 607569.072 | AC17: 28120.48592 | AD17: 3934.708723 | AE17: 32055.19465 | AF17: 0 | AG17: 24808.15176 | AH17: 8780.516199 | AI17: 21875.17567 | AJ17: 55463.84363 | AK17: 0 | AL17: 0 | AM17: 0 | AN17: 2630.75858 | AO17: 2630.75858 | AP17: 6725.929008 | AQ17: 4721.650468 | AR17: 11447.57948 | AS17: 9472.903928 | AT17: 24926.92798 | AU17: 80400 | AV17: 19777.37221 | AW17: 4500 | AX17: 15444 | AY17: 19944 | AZ17: 0 | BA17: 162649.2427 | BB17: 0 | BC17: 0 | BD17: 0 | BE17: 0 | BF17: 178258.0049 | BG17: 238335 | BH17: 10588636.44 | BJ17: 392265.0844 | BK17: 164425.581 | BL17: 556690.6654 | BM17: 351026.5263 | BN17: 0 | BO17: 351026.5263 | BP17: 0 | BQ17: 770743.6056 | BR17: 123573.5154 | BS17: 177953.2552 | BT17: 301526.7705 | BU17: 175542.895 | BV17: 0 | BW17: 0 | BX17: 0 | BY17: 175542.895 | BZ17: 327377.5404 | CA17: 502920.4354 | CB17: 512002.2805 | CC17: 196735.4362 | CD17: 708737.7167 | CE17: 3191645.72 | CF17: 13780282.16 | CG17: 7855397.666 | CH17: 2733238.77
A18: 515 | B18: Kalangala District | C18: 30000 | D18: 389600.0438 | E18: 46206.86205 | F18: 125193.6042 | G18: 797896.5882 | H18: 0 | I18: 112320 | J18: 0 | K18: 0 | L18: 137305.0428 | M18: 587884.8643 | N18: 322049.456 | O18: 28001.89684 | P18: 1359931.214 | Q18: 23400 | R18: 29698.79993 | S18: 73144.8196 | T18: 88880.77564 | U18: 0 | V18: 0 | W18: 0 | X18: 88880.77564 | Y18: 0 | Z18: 7641.550895 | AA18: 8620.658897 | AB18: 60341.12494 | AC18: 28120.48592 | AD18: 0 | AE18: 28120.48592 | AF18: 16000 | AG18: 33806.0804 | AH18: 2933.629542 | AI18: 0 | AJ18: 36739.70994 | AK18: 0 | AL18: 0 | AM18: 0 | AN18: 2183.7753 | AO18: 2183.7753 | AP18: 3862.81558 | AQ18: 0 | AR18: 3862.81558 | AS18: 7863.394908 | AT18: 11807.19389 | AU18: 29880 | AV18: 16417.06588 | AW18: 4500 | AX18: 16227 | AY18: 20727 | AZ18: 278197.0614 | BA18: 0 | BB18: 22000 | BC18: 0 | BD18: 0 | BE18: 0 | BF18: 196458.0054 | BG18: 155085 | BH18: 5053458.81 | BJ18: 325720.1718 | BK18: 0 | BL18: 325720.1718 | BM18: 375059.9735 | BN18: 0 | BO18: 375059.9735 | BP18: 0 | BQ18: 567674.5673 | BR18: 377049.2811 | BS18: 0 | BT18: 377049.2811 | BU18: 140433.916 | BV18: 0 | BW18: 0 | BX18: 132631.687 | BY18: 273065.603 | BZ18: 0 | CA18: 273065.603 | CB18: 0 | CC18: 0 | CD18: 0 | CE18: 1918569.597 | CF18: 6972028.407 | CG18: 3649067.667 | CH18: 1404391.144
A19: 517 | B19: Kamuli District | C19: 0 | D19: 811048.2996 | E19: 90899.32546 | F19: 125193.6042 | G19: 1564131.467 | H19: 0 | I19: 140400 | J19: 0 | K19: 0 | L19: 0 | M19: 11356436.84 | N19: 2370378.974 | O19: 254587.999 | P19: 3052542.04 | Q19: 28933.24 | R19: 823471.7252 | S19: 197403.7497 | T19: 138714.5643 | U19: 0 | V19: 7200 | W19: 0 | X19: 145914.5643 | Y19: 131633.5989 | Z19: 581826.8841 | AA19: 20525.93334 | AB19: 2168712.886 | AC19: 28120.48592 | AD19: 0 | AE19: 28120.48592 | AF19: 14000 | AG19: 49125.439 | AH19: 20005.72368 | AI19: 0 | AJ19: 69131.16268 | AK19: 0 | AL19: 0 | AM19: 0 | AN19: 5199.605595 | AO19: 5199.605595 | AP19: 7352.715882 | AQ19: 0 | AR19: 7352.715882 | AS19: 18722.87508 | AT19: 58595.4074 | AU19: 127800 | AV19: 39089.30905 | AW19: 4500 | AX19: 34781 | AY19: 39281 | AZ19: 0 | BA19: 0 | BB19: 22000 | BC19: 28200 | BD19: 0 | BE19: 0 | BF19: 0 | BG19: 254985 | BH19: 24576518.69 | BJ19: 732276.4037 | BK19: 0 | BL19: 732276.4037 | BM19: 665723.6855 | BN19: 0 | BO19: 665723.6855 | BP19: 280000 | BQ19: 1091693.469 | BR19: 105519.199 | BS19: 0 | BT19: 105519.199 | BU19: 280868.832 | BV19: 0 | BW19: 272000 | BX19: 280000 | BY19: 832868.832 | BZ19: 0 | CA19: 832868.832 | CB19: 0 | CC19: 0 | CD19: 0 | CE19: 3708081.59 | CF19: 28284600.28 | CG19: 19147589.16 | CH19: 5428929.528
A20: 518 | B20: Kamwenge District | C20: 0 | D20: 742855.501 | E20: 78045.98429 | F20: 125193.6042 | G20: 1152951.62 | H20: 0 | I20: 145080 | J20: 0 | K20: 0 | L20: 603601.0571 | M20: 5947559.615 | N20: 1427613.623 | O20: 28001.89684 | P20: 1866499.802 | Q20: 23400 | R20: 506160.5471 | S20: 187496.2145 | T20: 93012.57442 | U20: 0 | V20: 0 | W20: 0 | X20: 93012.57442 | Y20: 0 | Z20: 54540.46325 | AA20: 15511.85908 | AB20: 822366.1921 | AC20: 28120.48592 | AD20: 0 | AE20: 28120.48592 | AF20: 12000 | AG20: 34906.23518 | AH20: 13364.31236 | AI20: 0 | AJ20: 48270.54753 | AK20: 0 | AL20: 0 | AM20: 0 | AN20: 3929.446129 | AO20: 3929.446129 | AP20: 7231.637907 | AQ20: 0 | AR20: 7231.637907 | AS20: 14149.25184 | AT20: 36897.24143 | AU20: 117240 | AV20: 29540.57405 | AW20: 4500 | AX20: 28754 | AY20: 33254 | AZ20: 0 | BA20: 0 | BB20: 22000 | BC20: 0 | BD20: 120738 | BE20: 0 | BF20: 150832.0041 | BG20: 288285 | BH20: 14732378.74 | BJ20: 536248.4108 | BK20: 0 | BL20: 536248.4108 | BM20: 372291.1194 | BN20: 0 | BO20: 372291.1194 | BP20: 0 | BQ20: 1088966.317 | BR20: 187461.9148 | BS20: 0 | BT20: 187461.9148 | BU20: 210651.874 | BV20: 0 | BW20: 272000 | BX20: 207965.79 | BY20: 690617.664 | BZ20: 0 | CA20: 690617.664 | CB20: 0 | CC20: 0 | CD20: 0 | CE20: 2875585.426 | CF20: 17607964.17 | CG20: 11608186.22 | CH20: 3124192.525
A21: 519 | B21: Kanungu District | C21: 0 | D21: 454660.0137 | E21: 222287.6527 | F21: 500774.4168 | G21: 1306943.734 | H21: 0 | I21: 149760 | J21: 0 | K21: 0 | L21: 396476.7606 | M21: 5327052.444 | N21: 1512233.137 | O21: 56806.64904 | P21: 2539314.987 | Q21: 23400 | R21: 367310.1578 | S21: 159296.9703 | T21: 63758.69489 | U21: 0 | V21: 0 | W21: 0 | X21: 63758.69489 | Y21: 137576.6654 | Z21: 198621.7931 | AA21: 11587.37795 | AB21: 1100874.434 | AC21: 28120.48592 | AD21: 0 | AE21: 28120.48592 | AF21: 16000 | AG21: 36110.2244 | AH21: 13635.94472 | AI21: 0 | AJ21: 49746.16912 | AK21: 0 | AL21: 0 | AM21: 12680.11527 | AN21: 2935.301125 | AO21: 15615.4164 | AP21: 4450.424462 | AQ21: 0 | AR21: 4450.424462 | AS21: 10569.50865 | AT21: 39484.65793 | AU21: 130560 | AV21: 22066.84541 | AW21: 4500 | AX21: 26242 | AY21: 30742 | AZ21: 1811085.382 | BA21: 0 | BB21: 22000 | BC21: 117104 | BD21: 120738 | BE21: 0 | BF21: 266239.0073 | BG21: 321585 | BH21: 17534842.79 | BJ21: 353797.7449 | BK21: 0 | BL21: 353797.7449 | BM21: 356129.1629 | BN21: 0 | BO21: 356129.1629 | BP21: 0 | BQ21: 1068185.964 | BR21: 168098.239 | BS21: 0 | BT21: 168098.239 | BU21: 210651.874 | BV21: 0 | BW21: 0 | BX21: 70787.742 | BY21: 281439.616 | BZ21: 0 | CA21: 281439.616 | CB21: 0 | CC21: 0 | CD21: 0 | CE21: 2227650.726 | CF21: 19762493.51 | CG21: 12134347.13 | CH21: 5400495.657
A22: 520 | B22: Kapchorwa District | C22: 30000 | D22: 272951.9381 | E22: 64853.62665 | F22: 125193.6042 | G22: 858371.4948 | H22: 0 | I22: 140400 | J22: 0 | K22: 0 | L22: 397277.447 | M22: 2620164.895 | N22: 1248001.59 | O22: 31670.9818 | P22: 2069723.473 | Q22: 23400 | R22: 178621.7823 | S22: 54739.10342 | T22: 31601.06275 | U22: 0 | V22: 0 | W22: 35412.37851 | X22: 67013.44126 | Y22: 137576.6654 | Z22: 4587.725678 | AA22: 7097.823833 | AB22: 486207.026 | AC22: 28120.48592 | AD22: 53512.03864 | AE22: 81632.52456 | AF22: 0 | AG22: 20117.24482 | AH22: 8352.695224 | AI22: 14204.03155 | AJ22: 42673.9716 | AK22: 0 | AL22: 0 | AM22: 0 | AN22: 1798.012491 | AO22: 1798.012491 | AP22: 5254.945301 | AQ22: 6295.533957 | AR22: 11550.47926 | AS22: 6474.330147 | AT22: 25055.90118 | AU22: 113520 | AV22: 13516.99944 | AW22: 4500 | AX22: 10547 | AY22: 15047 | AZ22: 0 | BA22: 0 | BB22: 22000 | BC22: 0 | BD22: 120738 | BE22: 157500.5454 | BF22: 0 | BG22: 288285 | BH22: 9717645.382 | BJ22: 181265.1119 | BK22: 130081.4704 | BL22: 311346.5823 | BM22: 373432.0176 | BN22: 88242.43612 | BO22: 461674.4537 | BP22: 230000 | BQ22: 1016903.475 | BR22: 98271.01231 | BS22: 161323.0577 | BT22: 259594.07 | BU22: 105325.937 | BV22: 0 | BW22: 0 | BX22: 0 | BY22: 105325.937 | BZ22: 138501.7471 | CA22: 243827.6841 | CB22: 0 | CC22: 82628.88319 | CD22: 82628.88319 | CE22: 2605975.149 | CF22: 12323620.53 | CG22: 7802488.485 | CH22: 1915156.897
A23: 521 | B23: Kasese District | C23: 0 | D23: 1692550.576 | E23: 225616.2743 | F23: 375580.8126 | G23: 2299251.946 | H23: 0 | I23: 201240 | J23: 0 | K23: 0 | L23: 228517.1808 | M23: 14184813.24 | N23: 2766055.756 | O23: 36528.65047 | P23: 4389477.743 | Q23: 23400 | R23: 919221.8561 | S23: 284198.1926 | T23: 230388.7045 | U23: 0 | V23: 7200 | W23: 0 | X23: 237588.7045 | Y23: 137576.6654 | Z23: 832806.6585 | AA23: 29862.77451 | AB23: 2170091.67 | AC23: 28120.48592 | AD23: 0 | AE23: 28120.48592 | AF23: 0 | AG23: 68877.85712 | AH23: 28786.23988 | AI23: 0 | AJ23: 97664.097 | AK23: 0 | AL23: 0 | AM23: 27665.70605 | AN23: 7564.803359 | AO23: 35230.50941 | AP23: 9213.327511 | AQ23: 0 | AR23: 9213.327511 | AS23: 27239.54072 | AT23: 95215.55649 | AU23: 153120 | AV23: 56870.26275 | AW23: 4500 | AX23: 47211 | AY23: 51711 | AZ23: 0 | BA23: 0 | BB23: 22000 | BC23: 0 | BD23: 0 | BE23: 157500.5454 | BF23: 178232.0049 | BG23: 521385 | BH23: 32467881.03 | BJ23: 1112068.441 | BK23: 0 | BL23: 1112068.441 | BM23: 551546.9968 | BN23: 0 | BO23: 551546.9968 | BP23: 331465.332 | BQ23: 2143718.691 | BR23: 183902.1344 | BS23: 0 | BT23: 183902.1344 | BU23: 280868.832 | BV23: 0 | BW23: 272000 | BX23: 202000 | BY23: 754868.832 | BZ23: 0 | CA23: 754868.832 | CB23: 0 | CC23: 0 | CD23: 0 | CE23: 5077570.428 | CF23: 37545451.46 | CG23: 25026250.33 | CH23: 7441630.702
A24: 522 | B24: Katakwi District | C24: 0 | D24: 376323.7104 | E24: 52790.52731 | F24: 125193.6042 | G24: 936572.6233 | H24: 0 | I24: 126360 | J24: 0 | K24: 55375.51515 | L24: 162481.5885 | M24: 3490515.484 | N24: 627069.8509 | O24: 42715.90095 | P24: 1659420.708 | Q24: 23400 | R24: 336521.4019 | S24: 117853.5664 | T24: 66427.54764 | U24: 0 | V24: 0 | W24: 110171.8442 | X24: 176599.3919 | Y24: 109249.9924 | Z24: 42479.14132 | AA24: 10593.59134 | AB24: 400966.3932 | AC24: 28120.48592 | AD24: 0 | AE24: 28120.48592 | AF24: 0 | AG24: 25994.68452 | AH24: 8481.720597 | AI24: 21320.09352 | AJ24: 55796.49864 | AK24: 0 | AL24: 0 | AM24: 0 | AN24: 2683.556256 | AO24: 2683.556256 | AP24: 7258.487901 | AQ24: 75152.93661 | AR24: 82411.42451 | AS24: 9663.019173 | AT24: 23483.24844 | AU24: 72600 | AV24: 20174.29167 | AW24: 4500 | AX24: 11175 | AY24: 15675 | AZ24: 0 | BA24: 151766.2044 | BB24: 0 | BC24: 0 | BD24: 120738 | BE24: 0 | BF24: 0 | BG24: 205035 | BH24: 9660629.72 | BJ24: 345181.3459 | BK24: 251053.8335 | BL24: 596235.1794 | BM24: 468769.3833 | BN24: 62955.33957 | BO24: 531724.7229 | BP24: 100000 | BQ24: 795860.8901 | BR24: 96964.95375 | BS24: 141649.514 | BT24: 238614.4678 | BU24: 175542.895 | BV24: 0 | BW24: 0 | BX24: 110219.457 | BY24: 285762.352 | BZ24: 262051.601 | CA24: 547813.953 | CB24: 512002.2805 | CC24: 141649.514 | CD24: 653651.7946 | CE24: 3463901.008 | CF24: 13124530.73 | CG24: 7398764.76 | CH24: 2261864.96
A25: 523 | B25: Kayunga District | C25: 0 | D25: 635838.1658 | E25: 93532.32602 | F25: 125193.6042 | G25: 1032073.709 | H25: 0 | I25: 121680 | J25: 0 | K25: 0 | L25: 167412.0115 | M25: 7312616.029 | N25: 2455657.092 | O25: 28001.89684 | P25: 2668585.284 | Q25: 23400 | R25: 634072.3784 | S25: 203020.7451 | T25: 95424.76308 | U25: 0 | V25: 7200 | W25: 0 | X25: 102624.7631 | Y25: 131633.5989 | Z25: 29959.9992 | AA25: 13820.70029 | AB25: 1209101.66 | AC25: 28120.48592 | AD25: 0 | AE25: 28120.48592 | AF25: 0 | AG25: 37635.90935 | AH25: 16359.05918 | AI25: 0 | AJ25: 53994.96853 | AK25: 0 | AL25: 0 | AM25: 10374.63977 | AN25: 3501.043746 | AO25: 13875.68352 | AP25: 6421.041069 | AQ25: 0 | AR25: 6421.041069 | AS25: 12606.64939 | AT25: 44892.41496 | AU25: 71160 | AV25: 26319.95418 | AW25: 4500 | AX25: 35911 | AY25: 40411 | AZ25: 0 | BA25: 0 | BB25: 22000 | BC25: 0 | BD25: 0 | BE25: 0 | BF25: 176824.0048 | BG25: 188385 | BH25: 17673235.17 | BJ25: 501618.358 | BK25: 0 | BL25: 501618.358 | BM25: 520052.3559 | BN25: 0 | BO25: 520052.3559 | BP25: 100000 | BQ25: 814729.9054 | BR25: 189993.4088 | BS25: 0 | BT25: 189993.4088 | BU25: 280868.832 | BV25: 0 | BW25: 272000 | BX25: 0 | BY25: 552868.832 | BZ25: 0 | CA25: 552868.832 | CB25: 0 | CC25: 0 | CD25: 0 | CE25: 2679262.86 | CF25: 20352498.03 | CG25: 14123004.63 | CH25: 3550230.539
A26: 524 | B26: Kibale District | C26: 0 | D26: 1173095.606 | E26: 245473.3037 | F26: 500774.4168 | G26: 1713321.574 | H26: 0 | I26: 243360 | J26: 0 | K26: 0 | L26: 85271.98866 | M26: 9758826.716 | N26: 2182119.788 | O26: 28001.89684 | P26: 2859166.721 | Q26: 23400 | R26: 926031.581 | S26: 252118.5093 | T26: 190077.5912 | U26: 0 | V26: 0 | W26: 0 | X26: 190077.5912 | Y26: 131633.5989 | Z26: 97134.89161 | AA26: 36082.25149 | AB26: 1615329.886 | AC26: 28120.48592 | AD26: 0 | AE26: 28120.48592 | AF26: 0 | AG26: 60222.83414 | AH26: 21078.67152 | AI26: 0 | AJ26: 81301.50567 | AK26: 0 | AL26: 0 | AM26: 38040.34582 | AN26: 9140.314045 | AO26: 47180.65987 | AP26: 8723.440609 | AQ26: 0 | AR26: 8723.440609 | AS26: 32912.68058 | AT26: 56827.49951 | AU26: 226800 | AV26: 68714.55037 | AW26: 4500 | AX26: 73579 | AY26: 78079 | AZ26: 0 | BA26: 0 | BB26: 22000 | BC26: 0 | BD26: 0 | BE26: 0 | BF26: 144355.0039 | BG26: 621285 | BH26: 23477520.15 | BJ26: 1110728.618 | BK26: 0 | BL26: 1110728.618 | BM26: 472906.0166 | BN26: 0 | BO26: 472906.0166 | BP26: 100000 | BQ26: 2289742.537 | BR26: 192834.1966 | BS26: 0 | BT26: 192834.1966 | BU26: 280868.832 | BV26: 0 | BW26: 272000 | BX26: 0 | BY26: 552868.832 | BZ26: 0 | CA26: 552868.832 | CB26: 2230000 | CC26: 0 | CD26: 2230000 | CE26: 6949080.2 | CF26: 30426600.35 | CG26: 18015528.1 | CH26: 5461992.046
A27: 525 | B27: Kiboga District | C27: 0 | D27: 357072.6541 | E27: 148900.4824 | F27: 250387.2084 | G27: 849162.4456 | H27: 0 | I27: 117000 | J27: 0 | K27: 0 | L27: 0 | M27: 4045720.536 | N27: 592749.2747 | O27: 26414.44615 | P27: 1538928.517 | Q27: 23400 | R27: 198479.9798 | S27: 77354.00281 | T27: 56716.1573 | U27: 0 | V27: 0 | W27: 0 | X27: 56716.1573 | Y27: 131633.5989 | Z27: 23822.68387 | AA27: 8344.974089 | AB27: 401161.3735 | AC27: 28120.48592 | AD27: 0 | AE27: 28120.48592 | AF27: 12000 | AG27: 21730.06652 | AH27: 7327.283046 | AI27: 0 | AJ27: 29057.34956 | AK27: 0 | AL27: 0 | AM27: 0 | AN27: 2113.939145 | AO27: 2113.939145 | AP27: 6218.920109 | AQ27: 0 | AR27: 6218.920109 | AS27: 7611.927063 | AT27: 24739.65604 | AU27: 48960 | AV27: 15892.05547 | AW27: 4500 | AX27: 15570 | AY27: 20070 | AZ27: 0 | BA27: 0 | BB27: 22000 | BC27: 0 | BD27: 0 | BE27: 0 | BF27: 0 | BG27: 171735 | BH27: 9235767.668 | BJ27: 303019.225 | BK27: 0 | BL27: 303019.225 | BM27: 414560.0176 | BN27: 0 | BO27: 414560.0176 | BP27: 207534.668 | BQ27: 614898.9433 | BR27: 99933.26866 | BS27: 0 | BT27: 99933.26866 | BU27: 210651.874 | BV27: 0 | BW27: 272000 | BX27: 0 | BY27: 482651.874 | BZ27: 0 | CA27: 482651.874 | CB27: 0 | CC27: 0 | CD27: 0 | CE27: 2122597.997 | CF27: 11358365.66 | CG27: 7615497.428 | CH27: 1620270.24
A28: 526 | B28: Kisoro District | C28: 30000 | D28: 510359.0265 | E28: 72602.17961 | F28: 137298.6692 | G28: 1447576.577 | H28: 0 | I28: 145080 | J28: 0 | K28: 0 | L28: 534193.0862 | M28: 6515950.799 | N28: 1485989.429 | O28: 53366.36584 | P28: 4056272.723 | Q28: 23400 | R28: 515530.1685 | S28: 157937.7451 | T28: 73293.38427 | U28: 0 | V28: 7200 | W28: 0 | X28: 80493.38427 | Y28: 142331.1187 | Z28: 353304.2989 | AA28: 13947.02135 | AB28: 746611.086 | AC28: 28120.48592 | AD28: 0 | AE28: 28120.48592 | AF28: 0 | AG28: 39732.45747 | AH28: 16814.04339 | AI28: 0 | AJ28: 56546.50086 | AK28: 0 | AL28: 0 | AM28: 0 | AN28: 3533.043252 | AO28: 3533.043252 | AP28: 5752.554202 | AQ28: 0 | AR28: 5752.554202 | AS28: 12721.87405 | AT28: 47197.34638 | AU28: 87120 | AV28: 26560.51831 | AW28: 4500 | AX28: 25112 | AY28: 29612 | AZ28: 2494033.58 | BA28: 0 | BB28: 22000 | BC28: 0 | BD28: 0 | BE28: 157500.5454 | BF28: 156860.0043 | BG28: 271635 | BH28: 20421437.13 | BJ28: 402548.7189 | BK28: 0 | BL28: 402548.7189 | BM28: 772428.2645 | BN28: 0 | BO28: 772428.2645 | BP28: 37000 | BQ28: 867262.7829 | BR28: 99933.26866 | BS28: 0 | BT28: 99933.26866 | BU28: 210651.874 | BV28: 0 | BW28: 0 | BX28: 0 | BY28: 210651.874 | BZ28: 0 | CA28: 210651.874 | CB28: 0 | CC28: 0 | CD28: 0 | CE28: 2389824.909 | CF28: 22811262.04 | CG28: 14670762.65 | CH28: 5750674.481
A29: 527 | B29: Kitgum District | C29: 30000 | D29: 384019.6523 | E29: 163656.1141 | F29: 202793.072 | G29: 993938.4144 | H29: 0 | I29: 126360 | J29: 42256.92917 | K29: 200172.4646 | L29: 669165.5728 | M29: 4530948.203 | N29: 1120528.793 | O29: 28001.89684 | P29: 2553786.026 | Q29: 23400 | R29: 381744.5745 | S29: 119385.6508 | T29: 164185.3009 | U29: 0 | V29: 7200 | W29: 118041.2617 | X29: 289426.5626 | Y29: 256929.09 | Z29: 428234.757 | AA29: 17811.93226 | AB29: 1309687.768 | AC29: 28120.48592 | AD29: 39347.08723 | AE29: 67467.57316 | AF29: 0 | AG29: 41548.76649 | AH29: 11782.05383 | AI29: 33430.02497 | AJ29: 86760.8453 | AK29: 0 | AL29: 0 | AM29: 0 | AN29: 4512.097995 | AO29: 4512.097995 | AP29: 8095.401734 | AQ29: 62955.33957 | AR29: 71050.74131 | AS29: 16247.27983 | AT29: 34053.62163 | AU29: 86400 | AV29: 33920.80222 | AW29: 4500 | AX29: 16197 | AY29: 20697 | AZ29: 1484396.621 | BA29: 0 | BB29: 22000 | BC29: 56639 | BD29: 0 | BE29: 280404.425 | BF29: 157987.0043 | BG29: 205035 | BH29: 16499819.48 | BJ29: 639787.6821 | BK29: 323841.527 | BL29: 963629.2092 | BM29: 351026.5263 | BN29: 220343.6885 | BO29: 571370.2148 | BP29: 120000 | BQ29: 802634.5675 | BR29: 132584.7327 | BS29: 354123.7851 | BT29: 486708.5178 | BU29: 105325.937 | BV29: 0 | BW29: 0 | BX29: 0 | BY29: 105325.937 | BZ29: 259690.7757 | CA29: 365016.7127 | CB29: 512002.2805 | CC29: 259727.7588 | CD29: 771730.0394 | CE29: 4081089.261 | CF29: 20580908.75 | CG29: 10453956.98 | CH29: 6045862.506
A30: 528 | B30: Kotido District | C30: 0 | D30: 425813.5057 | E30: 93084.16549 | F30: 125193.6042 | G30: 780543.3537 | H30: 0 | I30: 107640 | J30: 22670.47954 | K30: 73071.87604 | L30: 272977.8067 | M30: 1026434.16 | N30: 159308.4066 | O30: 58278.21793 | P30: 1125567.742 | Q30: 23400 | R30: 115531.3316 | S30: 132411.7932 | T30: 79228.53415 | U30: 0 | V30: 0 | W30: 50071.43568 | X30: 129299.9698 | Y30: 0 | Z30: 137551.2629 | AA30: 10725.44584 | AB30: 238118.3417 | AC30: 28120.48592 | AD30: 33380.95686 | AE30: 61501.44278 | AF30: 16000 | AG30: 21919.8871 | AH30: 4013.368193 | AI30: 33380.95694 | AJ30: 59314.21223 | AK30: 0 | AL30: 0 | AM30: 0 | AN30: 2716.957484 | AO30: 2716.957484 | AP30: 6610.965031 | AQ30: 33380.95686 | AR30: 39991.92189 | AS30: 9783.291184 | AT30: 12228.00766 | AU30: 56640 | AV30: 20425.39359 | AW30: 4500 | AX30: 3641 | AY30: 8141 | AZ30: 337875.4711 | BA30: 0 | BB30: 22000 | BC30: 0 | BD30: 0 | BE30: 105000.3636 | BF30: 0 | BG30: 138435 | BH30: 5947674.525 | BJ30: 668541.6463 | BK30: 200285.7412 | BL30: 868827.3874 | BM30: 470414.2107 | BN30: 417261.9619 | BO30: 887676.1726 | BP30: 0 | BQ30: 527715.2881 | BR30: 100221.308 | BS30: 333809.5694 | BT30: 434030.8774 | BU30: 105325.937 | BV30: 0 | BW30: 0 | BX30: 0 | BY30: 105325.937 | BZ30: 400571.4831 | CA30: 505897.4201 | CB30: 0 | CC30: 166904.7851 | CD30: 166904.7851 | CE30: 3391051.931 | CF30: 9338726.455 | CG30: 3817778.291 | CH30: 2129896.233
A31: 529 | B31: Kumi District | C31: 30000 | D31: 465356.1196 | E31: 61507.36763 | F31: 125193.6042 | G31: 839583.8853 | H31: 0 | I31: 112320 | J31: 0 | K31: 0 | L31: 169685.5905 | M31: 4566429.654 | N31: 945029.2934 | O31: 50676.08832 | P31: 1913610.308 | Q31: 23400 | R31: 507813.4803 | S31: 100621.9709 | T31: 76601.42815 | U31: 0 | V31: 0 | W31: 66890.04829 | X31: 143491.4764 | Y31: 153622.9452 | Z31: 312101.4661 | AA31: 10281.17989 | AB31: 527447.9888 | AC31: 28120.48592 | AD31: 11804.12617 | AE31: 39924.61209 | AF31: 0 | AG31: 25701.65497 | AH31: 10301.65744 | AI31: 18706.02373 | AJ31: 54709.33614 | AK31: 0 | AL31: 0 | AM31: 0 | AN31: 2604.416551 | AO31: 2604.416551 | AP31: 10204.67231 | AQ31: 7869.417446 | AR31: 18074.08976 | AS31: 9378.050863 | AT31: 28174.0554 | AU31: 45960 | AV31: 19579.33954 | AW31: 4500 | AX31: 13184 | AY31: 17684 | AZ31: 0 | BA31: 166376.31 | BB31: 0 | BC31: 0 | BD31: 120738 | BE31: 0 | BF31: 0 | BG31: 155085 | BH31: 11736459.63 | BJ31: 425539.4929 | BK31: 139919.0732 | BL31: 565458.5661 | BM31: 361921.0223 | BN31: 201421.6742 | BO31: 563342.6966 | BP31: 0 | BQ31: 841707.3111 | BR31: 114485.479 | BS31: 192800.7274 | BT31: 307286.2064 | BU31: 210651.874 | BV31: 0 | BW31: 0 | BX31: 0 | BY31: 210651.874 | BZ31: 223491.4555 | CA31: 434143.3295 | CB31: 512002.2805 | CC31: 72398.64051 | CD31: 584400.921 | CE31: 3296339.031 | CF31: 15032798.66 | CG31: 8901013.424 | CH31: 2835446.205
A32: 530 | B32: Kyenjojo District | C32: 30000 | D32: 719322.6772 | E32: 249193.2692 | F32: 500774.4168 | G32: 1045306.39 | H32: 0 | I32: 154440 | J32: 0 | K32: 0 | L32: 680842.3462 | M32: 4850371.132 | N32: 1222715.479 | O32: 53525.21433 | P32: 2079229.042 | Q32: 23400 | R32: 519040.0267 | S32: 160318.727 | T32: 115473.5728 | U32: 0 | V32: 0 | W32: 0 | X32: 115473.5728 | Y32: 109249.9924 | Z32: 80906.87975 | AA32: 19042.03154 | AB32: 964061.5187 | AC32: 28120.48592 | AD32: 0 | AE32: 28120.48592 | AF32: 216000 | AG32: 35299.75543 | AH32: 12012.94134 | AI32: 0 | AJ32: 47312.69677 | AK32: 0 | AL32: 0 | AM32: 18443.80403 | AN32: 4823.705316 | AO32: 23267.50935 | AP32: 8547.533644 | AQ32: 0 | AR32: 8547.533644 | AS32: 17369.32358 | AT32: 34848.90331 | AU32: 129000 | AV32: 36263.3866 | AW32: 4500 | AX32: 26745 | AY32: 31245 | AZ32: 0 | BA32: 0 | BB32: 22000 | BC32: 0 | BD32: 0 | BE32: 189000.6545 | BF32: 0 | BG32: 304935 | BH32: 14665123.21 | BJ32: 670426.9268 | BK32: 0 | BL32: 670426.9268 | BM32: 535499.5786 | BN32: 0 | BO32: 535499.5786 | BP32: 200000 | BQ32: 1270037.47 | BR32: 154352.3753 | BS32: 0 | BT32: 154352.3753 | BU32: 351085.79 | BV32: 0 | BW32: 272000 | BX32: 0 | BY32: 623085.79 | BZ32: 0 | CA32: 623085.79 | CB32: 0 | CC32: 0 | CD32: 0 | CE32: 3453402.141 | CF32: 18118525.35 | CG32: 10915539.02 | CH32: 3749584.189
A33: 531 | B33: Lira District | C33: 47143 | D33: 492415.2848 | E33: 0 | F33: 0 | G33: 1076769.455 | H33: 0 | I33: 121680 | J33: 0 | K33: 201112.0943 | L33: 201860.825 | M33: 6960667.89 | N33: 1872146.157 | O33: 28001.89684 | P33: 2331836.24 | Q33: 23400 | R33: 569729.9784 | S33: 141237.6726 | T33: 124161.2474 | U33: 0 | V33: 0 | W33: 191929.4822 | X33: 316090.7296 | Y33: 0 | Z33: 53839.58634 | AA33: 11437.13139 | AB33: 1364118.882 | AC33: 28120.48592 | AD33: 57578.84497 | AE33: 85699.3309 | AF33: 160000 | AG33: 37171.68628 | AH33: 14715.68337 | AI33: 38385.89647 | AJ33: 90273.26612 | AK33: 0 | AL33: 530953 | AM33: 0 | AN33: 2897.24084 | AO33: 2897.24084 | AP33: 12083.82194 | AQ33: 76771.79304 | AR33: 88855.61497 | AS33: 10432.46018 | AT33: 53389.19624 | AU33: 190800 | AV33: 21780.71789 | AW33: 4500 | AX33: 14942 | AY33: 19442 | AZ33: 0 | BA33: 0 | BB33: 22000 | BC33: 96000 | BD33: 0 | BE33: 204225.7072 | BF33: 0 | BG33: 254985 | BH33: 17645220.36 | BJ33: 523966.6384 | BK33: 345473.0683 | BL33: 869439.7067 | BM33: 568812.2 | BN33: 172736.5341 | BO33: 741548.7342 | BP33: 0 | BQ33: 1095800.794 | BR33: 57387.4216 | BS33: 287894.2233 | BT33: 345281.6449 | BU33: 175542.895 | BV33: 0 | BW33: 0 | BX33: 370423.125 | BY33: 545966.02 | BZ33: 575788.4474 | CA33: 1121754.467 | CB33: 512002.2805 | CC33: 172736.5341 | CD33: 684738.8147 | CE33: 4858564.162 | CF33: 22503784.52 | CG33: 12871347.46 | CH33: 4773872.894
A34: 532 | B34: Luwero District | C34: 30000 | D34: 703550.8744 | E34: 287493.9858 | F34: 453180.2804 | G34: 1390759.756 | H34: 0 | I34: 140400 | J34: 0 | K34: 0 | L34: 582457.3158 | M34: 11370281.18 | N34: 5168814.063 | O34: 37684.90752 | P34: 3330905.348 | Q34: 23400 | R34: 821698.7968 | S34: 199166.4556 | T34: 116655.8125 | U34: 0 | V34: 0 | W34: 0 | X34: 116655.8125 | Y34: 0 | Z34: 181052.5607 | AA34: 19116.9073 | AB34: 2354363.09 | AC34: 28120.48592 | AD34: 0 | AE34: 28120.48592 | AF34: 0 | AG34: 56986.37002 | AH34: 23591.2709 | AI34: 0 | AJ34: 80577.64092 | AK34: 0 | AL34: 0 | AM34: 0 | AN34: 4842.672756 | AO34: 4842.672756 | AP34: 9058.275542 | AQ34: 0 | AR34: 9058.275542 | AS34: 17437.62203 | AT34: 72691.93773 | AU34: 111240 | AV34: 36405.97898 | AW34: 4500 | AX34: 49220 | AY34: 53720 | AZ34: 0 | BA34: 0 | BB34: 22000 | BC34: 91762 | BD34: 0 | BE34: 0 | BF34: 0 | BG34: 254985 | BH34: 27993822.95 | BJ34: 689994.6017 | BK34: 0 | BL34: 689994.6017 | BM34: 475006.6101 | BN34: 0 | BO34: 475006.6101 | BP34: 604000 | BQ34: 1125018.507 | BR34: 139298.2557 | BS34: 0 | BT34: 139298.2557 | BU34: 280868.832 | BV34: 0 | BW34: 0 | BX34: 0 | BY34: 280868.832 | BZ34: 0 | CA34: 280868.832 | CB34: 0 | CC34: 0 | CD34: 0 | CE34: 3314186.806 | CF34: 31308009.76 | CG34: 22752867.85 | CH34: 5240955.097
A35: 533 | B35: Masaka District | C35: 47143 | D35: 449060.5528 | E35: 0 | F35: 0 | G35: 873602.0422 | H35: 0 | I35: 107640 | J35: 0 | K35: 0 | L35: 280910.885 | M35: 3558389.644 | N35: 1353700.943 | O35: 35888.00869 | P35: 1416244.22 | Q35: 23400 | R35: 219878.1152 | S35: 140232.3785 | T35: 77535.34808 | U35: 0 | V35: 0 | W35: 0 | X35: 77535.34808 | Y35: 0 | Z35: 397663.1838 | AA35: 7881.588265 | AB35: 799005.4474 | AC35: 28120.48592 | AD35: 0 | AE35: 28120.48592 | AF35: 0 | AG35: 27294.52569 | AH35: 8821.261053 | AI35: 0 | AJ35: 36115.78674 | AK35: 0 | AL35: 188605 | AM35: 5763.688761 | AN35: 1996.554786 | AO35: 7760.243547 | AP35: 11947.30296 | AQ35: 0 | AR35: 11947.30296 | AS35: 7189.24641 | AT35: 35770.13009 | AU35: 59160 | AV35: 15009.58979 | AW35: 4500 | AX35: 15193 | AY35: 19693 | AZ35: 0 | BA35: 0 | BB35: 22000 | BC35: 0 | BD35: 86780 | BE35: 301098.3226 | BF35: 166152.0045 | BG35: 188385 | BH35: 10961961.47 | BJ35: 240966.2066 | BK35: 0 | BL35: 240966.2066 | BM35: 364684.885 | BN35: 0 | BO35: 364684.885 | BP35: 150000 | BQ35: 666026.969 | BR35: 140378.2027 | BS35: 0 | BT35: 140378.2027 | BU35: 210651.874 | BV35: 0 | BW35: 0 | BX35: 380000 | BY35: 590651.874 | BZ35: 0 | CA35: 590651.874 | CB35: 0 | CC35: 0 | CD35: 0 | CE35: 2152708.137 | CF35: 13114669.61 | CG35: 7838160.743 | CH35: 3123800.727
A36: 534 | B36: Masindi District | C36: 30000 | D36: 530629.9204 | E36: 0 | F36: 0 | G36: 981447.7465 | H36: 0 | I36: 112320 | J36: 0 | K36: 0 | L36: 0 | M36: 3344656.399 | N36: 781915.134 | O36: 70631.00929 | P36: 2429748.934 | Q36: 23400 | R36: 295990.0396 | S36: 105846.145 | T36: 111592.4477 | U36: 0 | V36: 7200 | W36: 66714.53274 | X36: 185506.9805 | Y36: 151227.8895 | Z36: 6889.281118 | AA36: 11045.76204 | AB36: 288473.3148 | AC36: 28120.48592 | AD36: 0 | AE36: 28120.48592 | AF36: 0 | AG36: 26382.10101 | AH36: 9500.341966 | AI36: 26889.31546 | AJ36: 62771.75843 | AK36: 8054.97032 | AL36: 0 | AM36: 0 | AN36: 2798.099611 | AO36: 2798.099611 | AP36: 7361.970881 | AQ36: 8515.506062 | AR36: 15877.47694 | AS36: 10075.46987 | AT36: 37046.14125 | AU36: 50640 | AV36: 21035.39941 | AW36: 4500 | AX36: 15444 | AY36: 19944 | AZ36: 0 | BA36: 0 | BB36: 22000 | BC36: 0 | BD36: 0 | BE36: 157500.5454 | BF36: 0 | BG36: 188385 | BH36: 9973977.903 | BJ36: 368348.0238 | BK36: 119041.5292 | BL36: 487389.553 | BM36: 361803.498 | BN36: 105699.1436 | BO36: 467502.6415 | BP36: 0 | BQ36: 720018.466 | BR36: 148211.9902 | BS36: 333198.9333 | BT36: 481410.9235 | BU36: 140433.916 | BV36: 0 | BW36: 0 | BX36: 0 | BY36: 140433.916 | BZ36: 307286.281 | CA36: 447720.197 | CB36: 0 | CC36: 377120.5318 | CD36: 377120.5318 | CE36: 2981162.313 | CF36: 12955140.22 | CG36: 7932504.223 | CH36: 2041473.68
A37: 535 | B37: Mayuge District | C37: 0 | D37: 707890.0576 | E37: 56227.473 | F37: 125193.6042 | G37: 1079098.108 | H37: 0 | I37: 140400 | J37: 0 | K37: 0 | L37: 932677.8342 | M37: 7623765.402 | N37: 1438789.512 | O37: 155215.1986 | P37: 1831018.179 | Q37: 23400 | R37: 668969.9683 | S37: 203142.4329 | T37: 150803.2191 | U37: 0 | V37: 0 | W37: 0 | X37: 150803.2191 | Y37: 0 | Z37: 200939.6247 | AA37: 20629.15308 | AB37: 1560553.603 | AC37: 28120.48592 | AD37: 0 | AE37: 28120.48592 | AF37: 0 | AG37: 46019.26103 | AH37: 15116.34111 | AI37: 0 | AJ37: 61135.60214 | AK37: 0 | AL37: 0 | AM37: 0 | AN37: 5225.753101 | AO37: 5225.753101 | AP37: 7138.478925 | AQ37: 0 | AR37: 7138.478925 | AS37: 18817.0277 | AT37: 42967.69619 | AU37: 90600 | AV37: 39285.87934 | AW37: 4500 | AX37: 33776 | AY37: 38276 | AZ37: 340252.6989 | BA37: 0 | BB37: 22000 | BC37: 0 | BD37: 0 | BE37: 0 | BF37: 277924.0076 | BG37: 254985 | BH37: 18145442 | BJ37: 827568.6103 | BK37: 0 | BL37: 827568.6103 | BM37: 672357.5685 | BN37: 0 | BO37: 672357.5685 | BP37: 0 | BQ37: 1090884.884 | BR37: 134351.0641 | BS37: 0 | BT37: 134351.0641 | BU37: 280868.832 | BV37: 0 | BW37: 0 | BX37: 0 | BY37: 280868.832 | BZ37: 0 | CA37: 280868.832 | CB37: 0 | CC37: 0 | CD37: 0 | CE37: 3006030.959 | CF37: 21151472.96 | CG37: 13604542.84 | CH37: 4540899.162
A38: 536 | B38: Mbale District | C38: 47143 | D38: 607714.0042 | E38: 60637.6227 | F38: 125193.6042 | G38: 1271779.461 | H38: 0 | I38: 173160 | J38: 0 | K38: 0 | L38: 1223415.687 | M38: 8100325.408 | N38: 2923021.506 | O38: 57087.67969 | P38: 2913579.265 | Q38: 23400 | R38: 583481.4227 | S38: 165569.5201 | T38: 109801.0539 | U38: 0 | V38: 7200 | W38: 110171.8442 | X38: 227172.8981 | Y38: 0 | Z38: 170179.3402 | AA38: 17269.50855 | AB38: 1486874.774 | AC38: 28120.48592 | AD38: 0 | AE38: 28120.48592 | AF38: 200000 | AG38: 42218.70178 | AH38: 16610.31912 | AI38: 23980.83746 | AJ38: 82809.85836 | AK38: 0 | AL38: 575518 | AM38: 0 | AN38: 4374.69185 | AO38: 4374.69185 | AP38: 10472.67826 | AQ38: 7869.417446 | AR38: 18342.09571 | AS38: 15752.50421 | AT38: 72235.99302 | AU38: 153360 | AV38: 32887.81786 | AW38: 4500 | AX38: 19085 | AY38: 23585 | AZ38: 0 | BA38: 0 | BB38: 22000 | BC38: 97230 | BD38: 0 | BE38: 397852.0656 | BF38: 0 | BG38: 421485 | BH38: 22322558.21 | BJ38: 464538.0928 | BK38: 0 | BL38: 464538.0928 | BM38: 624102.6125 | BN38: 211687.3293 | BO38: 835789.9418 | BP38: 0 | BQ38: 1561130.395 | BR38: 178982.0604 | BS38: 393470.8723 | BT38: 572452.9327 | BU38: 175542.895 | BV38: 0 | BW38: 0 | BX38: 0 | BY38: 175542.895 | BZ38: 334450.2415 | CA38: 509993.1365 | CB38: 0 | CC38: 117411.3306 | CD38: 117411.3306 | CE38: 4061315.829 | CF38: 26383874.04 | CG38: 17232447.61 | CH38: 5090110.603
A39: 537 | B39: Mbarara District | C39: 47143 | D39: 977403.7518 | E39: 0 | F39: 0 | G39: 1606562.984 | H39: 0 | I39: 149760 | J39: 0 | K39: 0 | L39: 1361426.307 | M39: 8811489.498 | N39: 2835790.339 | O39: 49058.43072 | P39: 2083568.668 | Q39: 23400 | R39: 460268.4015 | S39: 182752.1893 | T39: 110446.5238 | U39: 0 | V39: 0 | W39: 0 | X39: 110446.5238 | Y39: 0 | Z39: 311298.9917 | AA39: 17280.61577 | AB39: 1161494.855 | AC39: 28120.48592 | AD39: 0 | AE39: 28120.48592 | AF39: 0 | AG39: 46675.08438 | AH39: 20012.51449 | AI39: 0 | AJ39: 66687.59888 | AK39: 0 | AL39: 0 | AM39: 0 | AN39: 4377.505518 | AO39: 4377.505518 | AP39: 11978.77596 | AQ39: 0 | AR39: 11978.77596 | AS39: 15762.63574 | AT39: 74215.95716 | AU39: 127560 | AV39: 32908.97029 | AW39: 4500 | AX39: 36413 | AY39: 40913 | AZ39: 0 | BA39: 107786.8032 | BB39: 0 | BC39: 45902 | BD39: 241476 | BE39: 403676.5918 | BF39: 719436.0196 | BG39: 321585 | BH39: 22431531.9 | BJ39: 393861.3331 | BK39: 0 | BL39: 393861.3331 | BM39: 673530.242 | BN39: 0 | BO39: 673530.242 | BP39: 0 | BQ39: 1196628.711 | BR39: 164140.4858 | BS39: 0 | BT39: 164140.4858 | BU39: 140433.916 | BV39: 0 | BW39: 0 | BX39: 210422.093 | BY39: 350856.009 | BZ39: 0 | CA39: 350856.009 | CB39: 0 | CC39: 0 | CD39: 0 | CE39: 2779016.781 | CF39: 25210548.68 | CG39: 17242641.23 | CH39: 5188890.673
A40: 538 | B40: Moroto District | C40: 0 | D40: 308844.6452 | E40: 0 | F40: 0 | G40: 617836.5604 | H40: 0 | I40: 98280 | J40: 0 | K40: 42659.1921 | L40: 0 | M40: 1901214.75 | N40: 140972.1736 | O40: 28001.89684 | P40: 591299.4604 | Q40: 23400 | R40: 48980.02082 | S40: 58597.18221 | T40: 79223.13216 | U40: 0 | V40: 0 | W40: 34625.43676 | X40: 113848.5689 | Y40: 0 | Z40: 54545.92171 | AA40: 6988.996724 | AB40: 32949.03137 | AC40: 28120.48592 | AD40: 51376.27874 | AE40: 79496.76466 | AF40: 60000 | AG40: 20062.6344 | AH40: 2668.787986 | AI40: 29795.92366 | AJ40: 52527.34604 | AK40: 0 | AL40: 0 | AM40: 0 | AN40: 1770.444534 | AO40: 1770.444534 | AP40: 8555.955642 | AQ40: 15098.26431 | AR40: 23654.21995 | AS40: 6375.062731 | AT40: 15772.79228 | AU40: 41280 | AV40: 13309.75057 | AW40: 4500 | AX40: 3265 | AY40: 7765 | AZ40: 336213.2851 | BA40: 0 | BB40: 22000 | BC40: 27000 | BD40: 0 | BE40: 196905.6818 | BF40: 100555.0027 | BG40: 138435 | BH40: 5191478.75 | BJ40: 371464.7178 | BK40: 125280.9573 | BL40: 496745.6752 | BM40: 495528.9306 | BN40: 174097.483 | BO40: 669626.4136 | BP40: 100000 | BQ40: 563029.0293 | BR40: 162600.6595 | BS40: 412655.7251 | BT40: 575256.3846 | BU40: 105325.937 | BV40: 0 | BW40: 0 | BX40: 0 | BY40: 105325.937 | BZ40: 409209.7072 | CA40: 514535.6442 | CB40: 0 | CC40: 237656.4069 | CD40: 237656.4069 | CE40: 3156849.554 | CF40: 8348328.304 | CG40: 3539439.841 | CH40: 1652038.91
A41: 539 | B41: Moyo District | C41: 0 | D41: 572561.7452 | E41: 91641.35109 | F41: 132155.0892 | G41: 807764.9173 | H41: 0 | I41: 121680 | J41: 0 | K41: 101010.2016 | L41: 283203.2112 | M41: 3031273.943 | N41: 753041.5526 | O41: 51067.20094 | P41: 2661529.866 | Q41: 23400 | R41: 226504.8474 | S41: 167506.0206 | T41: 136120.0176 | U41: 0 | V41: 0 | W41: 88137.4754 | X41: 224257.493 | Y41: 138170.9721 | Z41: 57947.2166 | AA41: 15919.12558 | AB41: 381075.7704 | AC41: 28120.48592 | AD41: 28632.45043 | AE41: 56752.93635 | AF41: 0 | AG41: 26875.95735 | AH41: 9622.57653 | AI41: 29216.98035 | AJ41: 65715.51423 | AK41: 0 | AL41: 0 | AM41: 0 | AN41: 4032.614405 | AO41: 4032.614405 | AP41: 10110.55233 | AQ41: 78694.17446 | AR41: 88804.7268 | AS41: 14520.74285 | AT41: 26179.86736 | AU41: 53520 | AV41: 30316.16685 | AW41: 4500 | AX41: 10798 | AY41: 15298 | AZ41: 0 | BA41: 0 | BB41: 22000 | BC41: 0 | BD41: 0 | BE41: 189000.6545 | BF41: 126455.0035 | BG41: 188385 | BH41: 10722691.75 | BJ41: 858755.914 | BK41: 288020.6785 | BL41: 1146776.592 | BM41: 691363.1111 | BN41: 101122.0142 | BO41: 792485.1253 | BP41: 100000 | BQ41: 777968.5201 | BR41: 161172.1709 | BS41: 291168.4455 | BT41: 452340.6164 | BU41: 105325.937 | BV41: 0 | BW41: 0 | BX41: 0 | BY41: 105325.937 | BZ41: 374860.1974 | CA41: 480186.1344 | CB41: 0 | CC41: 180996.6013 | CD41: 180996.6013 | CE41: 3930753.59 | CF41: 14653445.34 | CG41: 8053500.78 | CH41: 2669190.97
A42: 540 | B42: Mpigi District | C42: 47143 | D42: 443113.8993 | E42: 143386.2384 | F42: 125193.6042 | G42: 870191.9196 | H42: 0 | I42: 112320 | J42: 0 | K42: 0 | L42: 631737.6926 | M42: 4510637.822 | N42: 2163484.57 | O42: 85067.77169 | P42: 1520551.711 | Q42: 23400 | R42: 322705.9601 | S42: 125831.5105 | T42: 61162.47794 | U42: 0 | V42: 0 | W42: 0 | X42: 61162.47794 | Y42: 0 | Z42: 293222.6537 | AA42: 9839.578321 | AB42: 986449.9969 | AC42: 28120.48592 | AD42: 0 | AE42: 28120.48592 | AF42: 0 | AG42: 28064.56228 | AH42: 11035.06483 | AI42: 0 | AJ42: 39099.62711 | AK42: 0 | AL42: 0 | AM42: 0 | AN42: 2492.550553 | AO42: 2492.550553 | AP42: 8339.157685 | AQ42: 0 | AR42: 8339.157685 | AS42: 8975.240871 | AT42: 44618.17893 | AU42: 65520 | AV42: 18738.3595 | AW42: 4500 | AX42: 27498 | AY42: 31998 | AZ42: 0 | BA42: 0 | BB42: 22000 | BC42: 0 | BD42: 0 | BE42: 0 | BF42: 126455.0035 | BG42: 155085 | BH42: 13026882.01 | BJ42: 323604.8051 | BK42: 0 | BL42: 323604.8051 | BM42: 404774.592 | BN42: 0 | BO42: 404774.592 | BP42: 50000 | BQ42: 669553.5535 | BR42: 189939.1691 | BS42: 0 | BT42: 189939.1691 | BU42: 210651.874 | BV42: 0 | BW42: 0 | BX42: 0 | BY42: 210651.874 | BZ42: 0 | CA42: 210651.874 | CB42: 0 | CC42: 0 | CD42: 0 | CE42: 1848523.994 | CF42: 14875406 | CG42: 10197670.09 | CH42: 2829211.919
A43: 541 | B43: Mubende District | C43: 30000 | D43: 1178181.466 | E43: 90970.25465 | F43: 202793.072 | G43: 1470038.409 | H43: 0 | I43: 168480 | J43: 0 | K43: 0 | L43: 148576.7207 | M43: 7611207.452 | N43: 2891214.48 | O43: 22814.52241 | P43: 2393871.379 | Q43: 23400 | R43: 713054.1869 | S43: 231866.7824 | T43: 180369.8648 | U43: 0 | V43: 0 | W43: 0 | X43: 180369.8648 | Y43: 0 | Z43: 65853.36202 | AA43: 25531.2387 | AB43: 2015265.722 | AC43: 28120.48592 | AD43: 0 | AE43: 28120.48592 | AF43: 12000 | AG43: 51850.46862 | AH43: 18491.37325 | AI43: 0 | AJ43: 70341.84187 | AK43: 0 | AL43: 0 | AM43: 0 | AN43: 6467.543736 | AO43: 6467.543736 | AP43: 10140.41833 | AQ43: 0 | AR43: 10140.41833 | AS43: 23288.49972 | AT43: 49701.40085 | AU43: 169200 | AV43: 48621.3447 | AW43: 4500 | AX43: 58009 | AY43: 62509 | AZ43: 0 | BA43: 0 | BB43: 22000 | BC43: 68157 | BD43: 0 | BE43: 0 | BF43: 168686.0046 | BG43: 354885 | BH43: 20557607.45 | BJ43: 845107.9832 | BK43: 0 | BL43: 845107.9832 | BM43: 674530.242 | BN43: 0 | BO43: 674530.242 | BP43: 350000 | BQ43: 1730095.774 | BR43: 145341.158 | BS43: 0 | BT43: 145341.158 | BU43: 280868.832 | BV43: 0 | BW43: 272000 | BX43: 0 | BY43: 552868.832 | BZ43: 0 | CA43: 552868.832 | CB43: 0 | CC43: 0 | CD43: 0 | CE43: 4297943.99 | CF43: 24855551.44 | CG43: 15287281.04 | CH43: 5270326.418
A44: 542 | B44: Mukono District | C44: 0 | D44: 913461.892 | E44: 0 | F44: 0 | G44: 1509342.081 | H44: 0 | I44: 140400 | J44: 0 | K44: 0 | L44: 0 | M44: 8554408.389 | N44: 3909329.077 | O44: 105090.4021 | P44: 2284236.828 | Q44: 23400 | R44: 627087.6607 | S44: 190817.2389 | T44: 153475.9479 | U44: 0 | V44: 0 | W44: 0 | X44: 153475.9479 | Y44: 0 | Z44: 183890.9465 | AA44: 20269.65399 | AB44: 2168565.692 | AC44: 28120.48592 | AD44: 0 | AE44: 28120.48592 | AF44: 0 | AG44: 46791.99805 | AH44: 19122.9185 | AI44: 0 | AJ44: 65914.91654 | AK44: 0 | AL44: 0 | AM44: 14985.59078 | AN44: 5134.68521 | AO44: 20120.27599 | AP44: 9378.877478 | AQ44: 0 | AR44: 9378.877478 | AS44: 18489.10807 | AT44: 70190.59869 | AU44: 115200 | AV44: 38601.25415 | AW44: 4500 | AX44: 36162 | AY44: 40662 | AZ44: 76992.41348 | BA44: 0 | BB44: 22000 | BC44: 0 | BD44: 0 | BE44: 0 | BF44: 0 | BG44: 288285 | BH44: 21577730.74 | BJ44: 513733.6317 | BK44: 0 | BL44: 513733.6317 | BM44: 503319.9073 | BN44: 0 | BO44: 503319.9073 | BP44: 200000 | BQ44: 1196397.955 | BR44: 113597.4116 | BS44: 0 | BT44: 113597.4116 | BU44: 210651.874 | BV44: 0 | BW44: 0 | BX44: 0 | BY44: 210651.874 | BZ44: 0 | CA44: 210651.874 | CB44: 0 | CC44: 0 | CD44: 0 | CE44: 2737700.779 | CF44: 24315431.52 | CG44: 16814491.78 | CH44: 4763238.963
A45: 543 | B45: Nakapiripirit District | C45: 0 | D45: 372290.1606 | E45: 36279.60454 | F45: 125193.6042 | G45: 841707.2011 | H45: 0 | I45: 112320 | J45: 11583.80994 | K45: 50614.72426 | L45: 99521.85108 | M45: 3480680.727 | N45: 428236.823 | O45: 28001.89684 | P45: 1272242.038 | Q45: 34402.44 | R45: 119267.1807 | S45: 76297.7357 | T45: 88389.40362 | U45: 0 | V45: 0 | W45: 31516.76741 | X45: 119906.171 | Y45: 0 | Z45: 54373.53295 | AA45: 10001.11227 | AB45: 113454.8054 | AC45: 28120.48592 | AD45: 31359.96691 | AE45: 59480.45283 | AF45: 0 | AG45: 28643.04104 | AH45: 5439.438109 | AI45: 31359.96726 | AJ45: 65442.44641 | AK45: 0 | AL45: 0 | AM45: 0 | AN45: 2533.470146 | AO45: 2533.470146 | AP45: 9680.630417 | AQ45: 23676.77529 | AR45: 33357.40571 | AS45: 9122.585206 | AT45: 21444.15981 | AU45: 42840 | AV45: 19045.98257 | AW45: 4500 | AX45: 5901 | AY45: 10401 | AZ45: 856698.1537 | BA45: 0 | BB45: 22000 | BC45: 0 | BD45: 0 | BE45: 0 | BF45: 120361.0033 | BG45: 171735 | BH45: 8820837.079 | BJ45: 518344.0884 | BK45: 208543.7819 | BL45: 726887.8703 | BM45: 668909.6406 | BN45: 156799.8361 | BO45: 825709.4767 | BP45: 100000 | BQ45: 695127.2365 | BR45: 190045.4417 | BS45: 225242.9651 | BT45: 415288.4068 | BU45: 140433.916 | BV45: 0 | BW45: 0 | BX45: 0 | BY45: 140433.916 | BZ45: 225242.9651 | CA45: 365676.8811 | CB45: 0 | CC45: 634255.338 | CD45: 634255.338 | CE45: 3762945.209 | CF45: 12583782.29 | CG45: 6594041.582 | CH45: 2226795.497
A46: 544 | B46: Nakasongola District | C46: 30000 | D46: 651941.1981 | E46: 129163.8908 | F46: 375580.8126 | G46: 1030002.337 | H46: 0 | I46: 131040 | J46: 0 | K46: 0 | L46: 209162.7566 | M46: 4713491.694 | N46: 1622067.386 | O46: 108347.2757 | P46: 1989169.146 | Q46: 23400 | R46: 308897.5181 | S46: 111107.5976 | T46: 65628.3507 | U46: 0 | V46: 0 | W46: 0 | X46: 65628.3507 | Y46: 0 | Z46: 25486.68148 | AA46: 9932.704321 | AB46: 855014.8484 | AC46: 28120.48592 | AD46: 0 | AE46: 28120.48592 | AF46: 0 | AG46: 32605.45054 | AH46: 11686.9825 | AI46: 0 | AJ46: 44292.43304 | AK46: 0 | AL46: 0 | AM46: 10374.63977 | AN46: 2516.141123 | AO46: 12890.78089 | AP46: 9648.525424 | AQ46: 0 | AR46: 9648.525424 | AS46: 9060.186409 | AT46: 32609.68527 | AU46: 62760 | AV46: 18915.70739 | AW46: 4500 | AX46: 23606 | AY46: 28106 | AZ46: 0 | BA46: 0 | BB46: 22000 | BC46: 0 | BD46: 0 | BE46: 0 | BF46: 0 | BG46: 221685 | BH46: 12879523 | BJ46: 298572.4166 | BK46: 0 | BL46: 298572.4166 | BM46: 424126.9337 | BN46: 0 | BO46: 424126.9337 | BP46: 0 | BQ46: 822863.143 | BR46: 180356.8236 | BS46: 0 | BT46: 180356.8236 | BU46: 210651.874 | BV46: 0 | BW46: 0 | BX46: 0 | BY46: 210651.874 | BZ46: 0 | CA46: 210651.874 | CB46: 0 | CC46: 0 | CD46: 0 | CE46: 1936571.191 | CF46: 14816094.19 | CG46: 10423946.41 | CH46: 2455576.594
A47: 545 | B47: Nebbi District | C47: 30000 | D47: 464895.4621 | E47: 186471.0327 | F47: 250387.2084 | G47: 1033143.667 | H47: 0 | I47: 149760 | J47: 48033.43599 | K47: 95904.87975 | L47: 335885.2327 | M47: 7556232.041 | N47: 1184138.847 | O47: 44106.18443 | P47: 2811737.117 | Q47: 23400 | R47: 736935.222 | S47: 166520.508 | T47: 113595.2757 | U47: 0 | V47: 0 | W47: 39347.08723 | X47: 152942.3629 | Y47: 137576.6654 | Z47: 420641.2727 | AA47: 15998.5693 | AB47: 802196.2732 | AC47: 28120.48592 | AD47: 0 | AE47: 28120.48592 | AF47: 84000 | AG47: 38493.20109 | AH47: 16977.02281 | AI47: 25168.86749 | AJ47: 80639.0914 | AK47: 0 | AL47: 0 | AM47: 0 | AN47: 4052.738997 | AO47: 4052.738997 | AP47: 6443.550064 | AQ47: 35491.68728 | AR47: 41935.23735 | AS47: 14593.208 | AT47: 44552.8854 | AU47: 145320 | AV47: 30467.4584 | AW47: 4500 | AX47: 25363 | AY47: 29863 | AZ47: 0 | BA47: 0 | BB47: 22000 | BC47: 23060 | BD47: 0 | BE47: 189000.6545 | BF47: 121884.0033 | BG47: 288285 | BH47: 17794679.74 | BJ47: 596062.9027 | BK47: 347264.0139 | BL47: 943326.9166 | BM47: 351026.5263 | BN47: 157388.3489 | BO47: 508414.8752 | BP47: 0 | BQ47: 1117862.285 | BR47: 151384.0604 | BS47: 109354.2495 | BT47: 260738.31 | BU47: 175542.895 | BV47: 0 | BW47: 0 | BX47: 0 | BY47: 175542.895 | BZ47: 231360.8729 | CA47: 406903.7679 | CB47: 0 | CC47: 313068.2473 | CD47: 313068.2473 | CE47: 3550314.402 | CF47: 21344994.15 | CG47: 13677075.3 | CH47: 4117604.447
A48: 546 | B48: Ntungamo District | C48: 30000 | D48: 1202730.335 | E48: 135412.3021 | F48: 375580.8126 | G48: 1393255.763 | H48: 0 | I48: 163800 | J48: 0 | K48: 0 | L48: 782094.0752 | M48: 10068982.93 | N48: 3772319.343 | O48: 54874.08505 | P48: 3637759.716 | Q48: 23400 | R48: 650870.6997 | S48: 260345.4618 | T48: 132739.3742 | U48: 0 | V48: 0 | W48: 0 | X48: 132739.3742 | Y48: 161348.9318 | Z48: 21862.58087 | AA48: 20659.45251 | AB48: 1589149.832 | AC48: 28120.48592 | AD48: 0 | AE48: 28120.48592 | AF48: 0 | AG48: 52506.98738 | AH48: 22525.11387 | AI48: 0 | AJ48: 75032.10124 | AK48: 0 | AL48: 0 | AM48: 0 | AN48: 5233.428518 | AO48: 5233.428518 | AP48: 10825.65519 | AQ48: 0 | AR48: 10825.65519 | AS48: 18844.66554 | AT48: 69747.05732 | AU48: 169080 | AV48: 39343.58117 | AW48: 4500 | AX48: 40054 | AY48: 44554 | AZ48: 0 | BA48: 0 | BB48: 22000 | BC48: 0 | BD48: 0 | BE48: 189000.6545 | BF48: 274239.0075 | BG48: 388185 | BH48: 25811391.34 | BJ48: 652385.6292 | BK48: 0 | BL48: 652385.6292 | BM48: 441359.4399 | BN48: 0 | BO48: 441359.4399 | BP48: 100000 | BQ48: 1532545.393 | BR48: 200538.6213 | BS48: 0 | BT48: 200538.6213 | BU48: 210651.874 | BV48: 0 | BW48: 0 | BX48: 0 | BY48: 210651.874 | BZ48: 0 | CA48: 210651.874 | CB48: 0 | CC48: 0 | CD48: 0 | CE48: 3137480.958 | CF48: 28948872.29 | CG48: 20660251.73 | CH48: 5151139.607
A49: 547 | B49: Pader District | C49: 30000 | D49: 430422.2312 | E49: 67681.94445 | F49: 125193.6042 | G49: 1101253.343 | H49: 0 | I49: 154440 | J49: 17549.49406 | K49: 63205.76333 | L49: 532206.9133 | M49: 3473509.831 | N49: 705103.78 | O49: 21703.70569 | P49: 1821835.32 | Q49: 23400 | R49: 410297.4207 | S49: 96907.5904 | T49: 97395.75756 | U49: 0 | V49: 0 | W49: 149565.6884 | X49: 246961.446 | Y49: 0 | Z49: 23401.79772 | AA49: 13342.30319 | AB49: 290462.6406 | AC49: 28120.48592 | AD49: 16618.40991 | AE49: 44738.89584 | AF49: 0 | AG49: 32262.17508 | AH49: 9113.265846 | AI49: 33236.81959 | AJ49: 74612.26051 | AK49: 0 | AL49: 0 | AM49: 0 | AN49: 3379.85675 | AO49: 3379.85675 | AP49: 6399.793073 | AQ49: 66473.63886 | AR49: 72873.43193 | AS49: 12170.27611 | AT49: 26630.81278 | AU49: 108480 | AV49: 25408.90124 | AW49: 4500 | AX49: 17579 | AY49: 22079 | AZ49: 1355591.257 | BA49: 0 | BB49: 22000 | BC49: 0 | BD49: 120738 | BE49: 0 | BF49: 144355.0039 | BG49: 238335 | BH49: 11920271.83 | BJ49: 555329.612 | BK49: 99710.45868 | BL49: 655040.0707 | BM49: 610275.9643 | BN49: 116328.8686 | BO49: 726604.8329 | BP49: 0 | BQ49: 894608.1996 | BR49: 163132.7198 | BS49: 299131.376 | BT49: 462264.0959 | BU49: 140433.916 | BV49: 0 | BW49: 0 | BX49: 0 | BY49: 140433.916 | BZ49: 565025.933 | CA49: 705459.8491 | CB49: 512002.2805 | CC49: 315749.7859 | CD49: 827752.0665 | CE49: 4271729.115 | CF49: 16192000.94 | CG49: 8196981.497 | CH49: 3723290.328
A50: 548 | B50: Pallisa District | C50: 30000 | D50: 557939.9433 | E50: 119041.2788 | F50: 125193.6042 | G50: 1180083.249 | H50: 0 | I50: 168480 | J50: 0 | K50: 0 | L50: 495089.1775 | M50: 7059677.33 | N50: 1474011.098 | O50: 47461.62024 | P50: 2777380.376 | Q50: 23400 | R50: 644257.9669 | S50: 152224.6584 | T50: 106978.0028 | U50: 0 | V50: 0 | W50: 180996.6013 | X50: 287974.6041 | Y50: 131633.5989 | Z50: 115157.9969 | AA50: 19391.07079 | AB50: 1430280.432 | AC50: 28120.48592 | AD50: 0 | AE50: 28120.48592 | AF50: 0 | AG50: 36890.66328 | AH50: 15809.00364 | AI50: 27054.92007 | AJ50: 79754.587 | AK50: 0 | AL50: 0 | AM50: 21902.01729 | AN50: 4912.123533 | AO50: 26814.14082 | AP50: 8777.022598 | AQ50: 47697.69123 | AR50: 56474.71382 | AS50: 17687.7022 | AT50: 43690.6058 | AU50: 115560 | AV50: 36928.09221 | AW50: 4500 | AX50: 28251 | AY50: 32751 | AZ50: 0 | BA50: 219002.5089 | BB50: 0 | BC50: 0 | BD50: 100363 | BE50: 199500.6908 | BF50: 157987.0043 | BG50: 354885 | BH50: 18308197.54 | BJ50: 617894.8824 | BK50: 50364.27087 | BL50: 668259.1532 | BM50: 530205.1965 | BN50: 354123.7851 | BO50: 884328.9816 | BP50: 0 | BQ50: 1254756.719 | BR50: 146278.5588 | BS50: 322646.1153 | BT50: 468924.6741 | BU50: 175542.895 | BV50: 0 | BW50: 0 | BX50: 195960 | BY50: 371502.895 | BZ50: 283299.0281 | CA50: 654801.9231 | CB50: 0 | CC50: 86563.59191 | CD50: 86563.59191 | CE50: 4017635.043 | CF50: 22325832.58 | CG50: 13705661.45 | CH50: 4602536.082
A51: 549 | B51: Rakai District | C51: 30000 | D51: 1029318.627 | E51: 209456.9232 | F51: 375580.8126 | G51: 1745427.741 | H51: 0 | I51: 182520 | J51: 0 | K51: 0 | L51: 480546.643 | M51: 11685175.8 | N51: 3618365.157 | O51: 122873.425 | P51: 5470297.617 | Q51: 23400 | R51: 809656.2835 | S51: 238342.8032 | T51: 118890.1973 | U51: 0 | V51: 7200 | W51: 0 | X51: 126090.1973 | Y51: 205327.6246 | Z51: 171025.0614 | AA51: 23903.51176 | AB51: 2041569.707 | AC51: 28120.48592 | AD51: 0 | AE51: 28120.48592 | AF51: 86000 | AG51: 67749.08899 | AH51: 28562.14318 | AI51: 0 | AJ51: 96311.23217 | AK51: 0 | AL51: 0 | AM51: 0 | AN51: 6055.20984 | AO51: 6055.20984 | AP51: 9576.549438 | AQ51: 0 | AR51: 9576.549438 | AS51: 21803.7571 | AT51: 76614.99188 | AU51: 151440 | AV51: 45521.5236 | AW51: 4500 | AX51: 39050 | AY51: 43550 | AZ51: 0 | BA51: 0 | BB51: 22000 | BC51: 98195 | BD51: 0 | BE51: 141750.4908 | BF51: 157987.0043 | BG51: 404835 | BH51: 29978639.18 | BJ51: 723781.3537 | BK51: 0 | BL51: 723781.3537 | BM51: 683219.9361 | BN51: 0 | BO51: 683219.9361 | BP51: 237000 | BQ51: 1534165.484 | BR51: 212729.2353 | BS51: 0 | BT51: 212729.2353 | BU51: 280868.832 | BV51: 0 | BW51: 272000 | BX51: 0 | BY51: 552868.832 | BZ51: 0 | CA51: 552868.832 | CB51: 0 | CC51: 0 | CD51: 0 | CE51: 3943764.842 | CF51: 33922404.02 | CG51: 24109022.2 | CH51: 5869616.984
A52: 550 | B52: Rukungiri District | C52: 30000 | D52: 622893.1224 | E52: 0 | F52: 0 | G52: 1198327.118 | H52: 0 | I52: 126360 | J52: 0 | K52: 0 | L52: 645547.8737 | M52: 7287464.958 | N52: 2507985.343 | O52: 28001.89684 | P52: 2662840.722 | Q52: 23400 | R52: 420448.0106 | S52: 192875.9125 | T52: 89110.42815 | U52: 0 | V52: 0 | W52: 0 | X52: 89110.42815 | Y52: 0 | Z52: 716537.173 | AA52: 12566.91463 | AB52: 1459540.647 | AC52: 28120.48592 | AD52: 0 | AE52: 28120.48592 | AF52: 0 | AG52: 39324.02341 | AH52: 18104.29713 | AI52: 0 | AJ52: 57428.32054 | AK52: 0 | AL52: 0 | AM52: 0 | AN52: 3183.43622 | AO52: 3183.43622 | AP52: 6220.899108 | AQ52: 0 | AR52: 6220.899108 | AS52: 11462.99995 | AT52: 57677.24267 | AU52: 128520 | AV52: 23932.26178 | AW52: 4500 | AX52: 33776 | AY52: 38276 | AZ52: 0 | BA52: 0 | BB52: 22000 | BC52: 0 | BD52: 0 | BE52: 152775.529 | BF52: 318225.0087 | BG52: 238335 | BH52: 19110057.3 | BJ52: 374411.4406 | BK52: 0 | BL52: 374411.4406 | BM52: 356129.1629 | BN52: 0 | BO52: 356129.1629 | BP52: 37000 | BQ52: 991453.0588 | BR52: 170077.1156 | BS52: 0 | BT52: 170077.1156 | BU52: 140433.916 | BV52: 0 | BW52: 0 | BX52: 121000 | BY52: 261433.916 | BZ52: 0 | CA52: 261433.916 | CB52: 0 | CC52: 0 | CD52: 0 | CE52: 2190504.694 | CF52: 21300562 | CG52: 14718262.91 | CH52: 4391794.392
A53: 551 | B53: Sembabule District | C53: 30000 | D53: 545137.7217 | E53: 93893.34136 | F53: 250387.2084 | G53: 1144571.007 | H53: 0 | I53: 117000 | J53: 0 | K53: 0 | L53: 84954.485 | M53: 7949105.087 | N53: 1050264.534 | O53: 47641.51788 | P53: 1274344.924 | Q53: 23400 | R53: 455021.6135 | S53: 136961.3646 | T53: 72944.64917 | U53: 0 | V53: 0 | W53: 0 | X53: 72944.64917 | Y53: 0 | Z53: 33834.40675 | AA53: 10252.10693 | AB53: 530641.4495 | AC53: 28120.48592 | AD53: 0 | AE53: 28120.48592 | AF53: 32000 | AG53: 33274.56213 | AH53: 12855.00167 | AI53: 0 | AJ53: 46129.56381 | AK53: 0 | AL53: 0 | AM53: 0 | AN53: 2597.051822 | AO53: 2597.051822 | AP53: 8998.246554 | AQ53: 0 | AR53: 8998.246554 | AS53: 9351.531757 | AT53: 39459.2468 | AU53: 73320 | AV53: 19523.97339 | AW53: 4500 | AX53: 31265 | AY53: 35765 | AZ53: 0 | BA53: 0 | BB53: 22000 | BC53: 55329 | BD53: 0 | BE53: 0 | BF53: 0 | BG53: 171735 | BH53: 14394684.52 | BJ53: 357866.5599 | BK53: 0 | BL53: 357866.5599 | BM53: 672530.242 | BN53: 0 | BO53: 672530.242 | BP53: 200000 | BQ53: 691407.3571 | BR53: 136436.2133 | BS53: 0 | BT53: 136436.2133 | BU53: 70216.95801 | BV53: 0 | BW53: 0 | BX53: 0 | BY53: 70216.95801 | BZ53: 0 | CA53: 70216.95801 | CB53: 0 | CC53: 0 | CD53: 0 | CE53: 2128457.33 | CF53: 16523141.85 | CG53: 12113403.76 | CH53: 2281280.754
A54: 552 | B54: Sironko District | C54: 0 | D54: 478199.0775 | E54: 113417.9245 | F54: 250387.2084 | G54: 1103854.2 | H54: 0 | I54: 177840 | J54: 0 | K54: 0 | L54: 0 | M54: 5867641.918 | N54: 1437298.173 | O54: 22814.52241 | P54: 2179390.157 | Q54: 23400 | R54: 455246.6044 | S54: 125133.988 | T54: 62143.69348 | U54: 0 | V54: 0 | W54: 25182.13583 | X54: 87325.82931 | Y54: 0 | Z54: 33037.66642 | AA54: 15822.22357 | AB54: 972535.256 | AC54: 28120.48592 | AD54: 31597.28493 | AE54: 59717.77085 | AF54: 0 | AG54: 28271.56712 | AH54: 12827.83844 | AI54: 22417.9908 | AJ54: 63517.39636 | AK54: 0 | AL54: 0 | AM54: 0 | AN54: 4008.067299 | AO54: 4008.067299 | AP54: 8382.957677 | AQ54: 17312.71838 | AR54: 25695.67606 | AS54: 14432.35299 | AT54: 36355.64688 | AU54: 219120 | AV54: 30131.62796 | AW54: 4500 | AX54: 19462 | AY54: 23962 | AZ54: 0 | BA54: 0 | BB54: 22000 | BC54: 0 | BD54: 0 | BE54: 0 | BF54: 0 | BG54: 388185 | BH54: 14230470.29 | BJ54: 292407.6049 | BK54: 213153.5615 | BL54: 505561.1665 | BM54: 368411.0697 | BN54: 69438.95261 | BO54: 437850.0223 | BP54: 100000 | BQ54: 1520640.275 | BR54: 122584.0771 | BS54: 251894.5439 | BT54: 374478.6209 | BU54: 105325.937 | BV54: 0 | BW54: 0 | BX54: 0 | BY54: 105325.937 | BZ54: 371861.09 | CA54: 477187.027 | CB54: 0 | CC54: 118041.2617 | CD54: 118041.2617 | CE54: 3533758.373 | CF54: 17764228.66 | CG54: 11450811.18 | CH54: 2779659.108
A55: 553 | B55: Soroti District | C55: 47143 | D55: 439118.5897 | E55: 0 | F55: 0 | G55: 1007544.984 | H55: 0 | I55: 117000 | J55: 0 | K55: 0 | L55: 787559.118 | M55: 3989624.029 | N55: 1728609.927 | O55: 32108.95256 | P55: 1237493.14 | Q55: 23400 | R55: 523141.8609 | S55: 103696.1093 | T55: 97919.39212 | U55: 0 | V55: 0 | W55: 78694.17446 | X55: 176613.5666 | Y55: 0 | Z55: 43467.62348 | AA55: 10905.99318 | AB55: 900379.3805 | AC55: 28120.48592 | AD55: 14495.63849 | AE55: 42616.12441 | AF55: 0 | AG55: 28022.45843 | AH55: 8807.679435 | AI55: 25831.28596 | AJ55: 62661.42382 | AK55: 11654.19647 | AL55: 203371 | AM55: 0 | AN55: 2762.693527 | AO55: 2762.693527 | AP55: 8401.405673 | AQ55: 78694.17446 | AR55: 87095.58014 | AS55: 9947.978717 | AT55: 41640.95657 | AU55: 72600 | AV55: 20769.22549 | AW55: 4500 | AX55: 12431 | AY55: 16931 | AZ55: 0 | BA55: 162649.2427 | BB55: 0 | BC55: 0 | BD55: 0 | BE55: 458309.553 | BF55: 231746.8063 | BG55: 205035 | BH55: 12797597.06 | BJ55: 427933.1824 | BK55: 354123.7843 | BL55: 782056.9667 | BM55: 419594.1672 | BN55: 236082.5234 | BO55: 655676.6906 | BP55: 0 | BQ55: 733766.9773 | BR55: 125948.1673 | BS55: 212474.2711 | BT55: 338422.4383 | BU55: 175542.895 | BV55: 0 | BW55: 0 | BX55: 0 | BY55: 175542.895 | BZ55: 212474.2711 | CA55: 388017.1661 | CB55: 512002.2805 | CC55: 78694.17446 | CD55: 590696.455 | CE55: 3488636.694 | CF55: 16286233.75 | CG55: 9128375.151 | CH55: 3669221.905
A56: 554 | B56: Tororo District | C56: 30000 | D56: 687548.9298 | E56: 113622.4651 | F56: 250387.2084 | G56: 1496450.717 | H56: 0 | I56: 168480 | J56: 0 | K56: 0 | L56: 1215571.849 | M56: 8510166.729 | N56: 3429772.053 | O56: 28001.89684 | P56: 3814887.738 | Q56: 23400 | R56: 988362.0623 | S56: 220280.8452 | T56: 131307.2416 | U56: 0 | V56: 0 | W56: 112139.1986 | X56: 243446.4402 | Y56: 289313.4769 | Z56: 343235.5743 | AA56: 21774.82755 | AB56: 1939840.298 | AC56: 28120.48592 | AD56: 0 | AE56: 28120.48592 | AF56: 0 | AG56: 50209.23713 | AH56: 20094.0042 | AI56: 25934.35859 | AJ56: 96237.59992 | AK56: 0 | AL56: 0 | AM56: 21902.01729 | AN56: 5515.974028 | AO56: 27417.99132 | AP56: 10175.96032 | AQ56: 93449.33218 | AR56: 103625.2925 | AS56: 19862.06277 | AT56: 73141.52077 | AU56: 157680 | AV56: 41467.68626 | AW56: 4500 | AX56: 27121 | AY56: 31621 | AZ56: 0 | BA56: 0 | BB56: 22000 | BC56: 0 | BD56: 241476 | BE56: 300354.866 | BF56: 157987.0043 | BG56: 388185 | BH56: 25503719.62 | BJ56: 645833.7965 | BK56: 250444.2102 | BL56: 896278.0068 | BM56: 597770.9329 | BN56: 74759.46574 | BO56: 672530.3987 | BP56: 187000 | BQ56: 1364903.163 | BR56: 197781.3881 | BS56: 109148.82 | BT56: 306930.2081 | BU56: 210651.874 | BV56: 0 | BW56: 0 | BX56: 0 | BY56: 210651.874 | BZ56: 212937.1305 | CA56: 423589.0045 | CB56: 0 | CC56: 417905.4135 | CD56: 417905.4135 | CE56: 4269136.194 | CF56: 29772855.81 | CG56: 19325303.19 | CH56: 6178416.429
A57: 555 | B57: Wakiso District | C57: 30000 | D57: 1743644.948 | E57: 1007387.157 | F57: 968670.6744 | G57: 1992506.794 | H57: 0 | I57: 177840 | J57: 0 | K57: 0 | L57: 370238.8109 | M57: 12020871.38 | N57: 7994638.121 | O57: 87133.16353 | P57: 4396106.986 | Q57: 23400 | R57: 712821.1964 | S57: 466018.4076 | T57: 164278.9745 | U57: 0 | V57: 7200 | W57: 0 | X57: 171478.9745 | Y57: 213945.0711 | Z57: 366881.255 | AA57: 46048.25178 | AB57: 3243784.052 | AC57: 28120.48592 | AD57: 0 | AE57: 28120.48592 | AF57: 160000 | AG57: 78482.94756 | AH57: 31475.40029 | AI57: 0 | AJ57: 109958.3479 | AK57: 0 | AL57: 0 | AM57: 23054.75504 | AN57: 11664.88966 | AO57: 34719.64471 | AP57: 12204.54691 | AQ57: 0 | AR57: 12204.54691 | AS57: 42003.23814 | AT57: 90857.04331 | AU57: 142680 | AV57: 87693.66614 | AW57: 4500 | AX57: 98315 | AY57: 102815 | AZ57: 0 | BA57: 0 | BB57: 22000 | BC57: 129193 | BD57: 98040 | BE57: 367472.2564 | BF57: 171220.0047 | BG57: 421485 | BH57: 38053877.48 | BJ57: 1835581.002 | BK57: 0 | BL57: 1835581.002 | BM57: 676875.5891 | BN57: 0 | BO57: 676875.5891 | BP57: 740000 | BQ57: 2068060.723 | BR57: 197781.3881 | BS57: 0 | BT57: 197781.3881 | BU57: 210651.874 | BV57: 0 | BW57: 0 | BX57: 0 | BY57: 210651.874 | BZ57: 0 | CA57: 210651.874 | CB57: 0 | CC57: 0 | CD57: 0 | CE57: 5728950.576 | CF57: 43782828.06 | CG57: 28452890.93 | CH57: 9600986.548
A58: 556 | B58: Yumbe District | C58: 0 | D58: 766099.3485 | E58: 124095.2127 | F58: 125193.6042 | G58: 1012104.055 | H58: 0 | I58: 140400 | J58: 27791.46502 | K58: 156761.5686 | L58: 322511.6521 | M58: 6743263.682 | N58: 693842.289 | O58: 47195.35392 | P58: 2478354.091 | Q58: 23400 | R58: 516670.1224 | S58: 179980.3042 | T58: 136252.5546 | U58: 0 | V58: 0 | W58: 62955.33957 | X58: 199207.8942 | Y58: 137576.6654 | Z58: 22990.62507 | AA58: 19695.80671 | AB58: 972586.523 | AC58: 28120.48592 | AD58: 27673.59339 | AE58: 55794.07932 | AF58: 14000 | AG58: 36929.39372 | AH58: 14668.14771 | AI58: 33648.43723 | AJ58: 85245.97866 | AK58: 0 | AL58: 0 | AM58: 0 | AN58: 4989.318883 | AO58: 4989.318883 | AP58: 7474.042858 | AQ58: 31477.66979 | AR58: 38951.71264 | AS58: 17965.66922 | AT58: 37924.66635 | AU58: 114600 | AV58: 37508.42717 | AW58: 4500 | AX58: 19085 | AY58: 23585 | AZ58: 0 | BA58: 0 | BB58: 22000 | BC58: 0 | BD58: 0 | BE58: 284103.7198 | BF58: 0 | BG58: 254985 | BH58: 15701373.84 | BJ58: 1110872.61 | BK58: 157388.186 | BL58: 1268260.796 | BM58: 585414.2113 | BN58: 188866.0187 | BO58: 774280.23 | BP58: 0 | BQ58: 1275055.076 | BR58: 171172.8265 | BS58: 377732.0374 | BT58: 548904.8639 | BU58: 175542.895 | BV58: 0 | BW58: 0 | BX58: 0 | BY58: 175542.895 | BZ58: 330515.5327 | CA58: 506058.4278 | CB58: 0 | CC58: 472165.0468 | CD58: 472165.0468 | CE58: 4844724.441 | CF58: 20546098.28 | CG58: 11841249.73 | CH58: 3860124.108
A59: 557 | B59: Butaleja District | C59: 0 | D59: 378471.0238 | E59: 105089.4601 | F59: 250387.2084 | G59: 816666.9549 | H59: 0 | I59: 135720 | J59: 0 | K59: 0 | L59: 156574.3113 | M59: 5286166.447 | N59: 1350013.891 | O59: 25600.78021 | P59: 1679481.978 | Q59: 23400 | R59: 556814.5003 | S59: 125452.7433 | T59: 61570.11529 | U59: 0 | V59: 0 | W59: 8748.861832 | X59: 70318.97712 | Y59: 153622.9452 | Z59: 23267.96534 | AA59: 12001.62494 | AB59: 818656.2971 | AC59: 28120.48592 | AD59: 4374.430523 | AE59: 32494.91645 | AF59: 0 | AG59: 24871.14319 | AH59: 10872.08541 | AI59: 17497.72338 | AJ59: 53240.95198 | AK59: 0 | AL59: 0 | AM59: 13832.85303 | AN59: 3040.237693 | AO59: 16873.09072 | AP59: 6363.76508 | AQ59: 8748.861832 | AR59: 15112.62691 | AS59: 10947.36697 | AT59: 31082.22487 | AU59: 82440 | AV59: 22855.73177 | AW59: 4500 | AX59: 16072 | AY59: 20572 | AZ59: 0 | BA59: 0 | BB59: 0 | BC59: 6000 | BD59: 0 | BE59: 0 | BF59: 180766.0049 | BG59: 238335 | BH59: 12678427.02 | BJ59: 317778.5304 | BK59: 209972.68 | BL59: 527751.2104 | BM59: 455858.9137 | BN59: 13123.29235 | BO59: 468982.2061 | BP59: 0 | BQ59: 862611.7908 | BR59: 104901.7147 | BS59: 236219.2655 | BT59: 341120.9802 | BU59: 210651.874 | BV59: 0 | BW59: 0 | BX59: 0 | BY59: 210651.874 | BZ59: 262465.851 | CA59: 473117.7251 | CB59: 0 | CC59: 113735.2022 | CD59: 113735.2022 | CE59: 2787319.115 | CF59: 15465746.14 | CG59: 9962346.572 | CH59: 2716080.452
A60: 558 | B60: Ibanda District | C60: 0 | D60: 564563.5308 | E60: 332062.6426 | F60: 500774.4168 | G60: 818787.0608 | H60: 0 | I60: 149760 | J60: 0 | K60: 0 | L60: 349661.89 | M60: 5158179.935 | N60: 1946061.145 | O60: 28001.89684 | P60: 1638416.975 | Q60: 23400 | R60: 338153.3359 | S60: 145440.9064 | T60: 76814.54306 | U60: 0 | V60: 0 | W60: 0 | X60: 76814.54306 | Y60: 0 | Z60: 285685.2982 | AA60: 13591.32308 | AB60: 773810.8342 | AC60: 28120.48592 | AD60: 0 | AE60: 28120.48592 | AF60: 0 | AG60: 28975.08151 | AH60: 12155.54833 | AI60: 0 | AJ60: 41130.62984 | AK60: 0 | AL60: 0 | AM60: 0 | AN60: 3442.938179 | AO60: 3442.938179 | AP60: 4282.033496 | AQ60: 0 | AR60: 4282.033496 | AS60: 12397.42136 | AT60: 34318.33836 | AU60: 102840 | AV60: 25883.13134 | AW60: 4500 | AX60: 30260 | AY60: 34760 | AZ60: 0 | BA60: 0 | BB60: 22000 | BC60: 0 | BD60: 0 | BE60: 271389.2197 | BF60: 0 | BG60: 288285 | BH60: 14012014.93 | BJ60: 392547.0306 | BK60: 0 | BL60: 392547.0306 | BM60: 600616.1673 | BN60: 0 | BO60: 600616.1673 | BP60: 100000 | BQ60: 927113.0636 | BR60: 184354.3422 | BS60: 0 | BT60: 184354.3422 | BU60: 210651.874 | BV60: 0 | BW60: 0 | BX60: 0 | BY60: 210651.874 | BZ60: 0 | CA60: 210651.874 | CB60: 0 | CC60: 0 | CD60: 0 | CE60: 2415282.478 | CF60: 16427297.41 | CG60: 10901328.32 | CH60: 3110686.612
A61: 559 | B61: Kaabong District | C61: 0 | D61: 620217.5001 | E61: 84821.56533 | F61: 125193.6042 | G61: 785854.3391 | H61: 0 | I61: 145080 | J61: 23040.0352 | K61: 101855.8684 | L61: 162615.4649 | M61: 2116886.638 | N61: 213356.2002 | O61: 28001.89684 | P61: 1394272.075 | Q61: 23400 | R61: 248528.9575 | S61: 238093.8449 | T61: 197041.4109 | U61: 0 | V61: 0 | W61: 77943.29196 | X61: 274984.7029 | Y61: 137576.6654 | Z61: 32158.56732 | AA61: 17914.70795 | AB61: 150833.0508 | AC61: 28120.48592 | AD61: 19485.82338 | AE61: 47606.30931 | AF61: 0 | AG61: 37068.39079 | AH61: 5778.978565 | AI61: 38971.64614 | AJ61: 81819.01549 | AK61: 0 | AL61: 0 | AM61: 0 | AN61: 4538.133012 | AO61: 4538.133012 | AP61: 7967.73076 | AQ61: 97429.11535 | AR61: 105396.8461 | AS61: 16341.0274 | AT61: 16907.28622 | AU61: 107760 | AV61: 34116.52684 | AW61: 4500 | AX61: 7785 | AY61: 12285 | AZ61: 681935.4815 | BA61: 0 | BB61: 22000 | BC61: 0 | BD61: 0 | BE61: 0 | BF61: 77701.00212 | BG61: 271635 | BH61: 8404727.312 | BJ61: 1110036.398 | BK61: 292287.346 | BL61: 1402323.744 | BM61: 666909.6406 | BN61: 155886.5847 | BO61: 822796.2253 | BP61: 0 | BQ61: 1302080.036 | BR61: 150569.8708 | BS61: 545603.0461 | BT61: 696172.9169 | BU61: 175542.895 | BV61: 0 | BW61: 0 | BX61: 0 | BY61: 175542.895 | BZ61: 292287.346 | CA61: 467830.2411 | CB61: 0 | CC61: 428688.1074 | CD61: 428688.1074 | CE61: 5119891.271 | CF61: 13524618.58 | CG61: 5266295.218 | CH61: 3138432.094
A62: 560 | B62: Isingiro District | C62: 0 | D62: 964339.5681 | E62: 195613.6505 | F62: 375580.8126 | G62: 1032711.147 | H62: 0 | I62: 159120 | J62: 0 | K62: 0 | L62: 684671.0814 | M62: 6490707.644 | N62: 1517163.577 | O62: 32882.48964 | P62: 2717929.678 | Q62: 23400 | R62: 550497.7555 | S62: 208833.783 | T62: 116055.4102 | U62: 0 | V62: 0 | W62: 0 | X62: 116055.4102 | Y62: 0 | Z62: 42262.77696 | AA62: 20797.99686 | AB62: 772416.9887 | AC62: 28120.48592 | AD62: 0 | AE62: 28120.48592 | AF62: 0 | AG62: 40801.58356 | AH62: 15320.06539 | AI62: 0 | AJ62: 56121.64895 | AK62: 0 | AL62: 0 | AM62: 0 | AN62: 5268.524411 | AO62: 5268.524411 | AP62: 8442.755665 | AQ62: 0 | AR62: 8442.755665 | AS62: 18971.03975 | AT62: 42436.62898 | AU62: 140120 | AV62: 39607.42314 | AW62: 4500 | AX62: 36664 | AY62: 41164 | AZ62: 0 | BA62: 0 | BB62: 22000 | BC62: 0 | BD62: 120738 | BE62: 159075.5508 | BF62: 0 | BG62: 321585 | BH62: 16908635.42 | BJ62: 589382.7776 | BK62: 0 | BL62: 589382.7776 | BM62: 673530.242 | BN62: 0 | BO62: 673530.242 | BP62: 280000 | BQ62: 1248224.36 | BR62: 182620.9959 | BS62: 0 | BT62: 182620.9959 | BU62: 210651.874 | BV62: 0 | BW62: 272000 | BX62: 42000 | BY62: 524651.874 | BZ62: 0 | CA62: 524651.874 | CB62: 0 | CC62: 0 | CD62: 0 | CE62: 3498410.249 | CF62: 20407045.67 | CG62: 13355751.43 | CH62: 3552883.987
A63: 561 | B63: Kaliro District | C63: 0 | D63: 362913.0417 | E63: 76105.84853 | F63: 125193.6042 | G63: 565383.601 | H63: 0 | I63: 107640 | J63: 0 | K63: 0 | L63: 394679.5784 | M63: 4403868.082 | N63: 1314630.868 | O63: 51224.97232 | P63: 1155746.767 | Q63: 23400 | R63: 369400.0733 | S63: 121193.2978 | T63: 63801.97946 | U63: 0 | V63: 0 | W63: 0 | X63: 63801.97946 | Y63: 0 | Z63: 31077.7304 | AA63: 9142.980694 | AB63: 1238556.856 | AC63: 28120.48592 | AD63: 0 | AE63: 28120.48592 | AF63: 0 | AG63: 24428.21031 | AH63: 10614.03466 | AI63: 0 | AJ63: 35042.24497 | AK63: 0 | AL63: 0 | AM63: 6916.426513 | AN63: 2316.089251 | AO63: 9232.515764 | AP63: 6028.076147 | AQ63: 0 | AR63: 6028.076147 | AS63: 8339.834424 | AT63: 26962.75996 | AU63: 69720 | AV63: 17411.76843 | AW63: 4500 | AX63: 16951 | AY63: 21451 | AZ63: 0 | BA63: 0 | BB63: 22000 | BC63: 0 | BD63: 0 | BE63: 210000.7272 | BF63: 241806.0066 | BG63: 138435 | BH63: 11248509.7 | BJ63: 371197.6974 | BK63: 0 | BL63: 371197.6974 | BM63: 416331.678 | BN63: 0 | BO63: 416331.678 | BP63: 0 | BQ63: 548131.7091 | BR63: 151277.7879 | BS63: 0 | BT63: 151277.7879 | BU63: 351085.79 | BV63: 0 | BW63: 272000 | BX63: 27345.26 | BY63: 650431.05 | BZ63: 0 | CA63: 650431.05 | CB63: 0 | CC63: 0 | CD63: 0 | CE63: 2137369.922 | CF63: 13385879.62 | CG63: 8280202.472 | CH63: 2968307.227
A64: 562 | B64: Kiruhura District | C64: 0 | D64: 865092.0532 | E64: 167551.7829 | F64: 375580.8126 | G64: 994833.8848 | H64: 0 | I64: 173160 | J64: 0 | K64: 0 | L64: 0 | M64: 5207786.582 | N64: 962020.6817 | O64: 98610.76965 | P64: 2294635.583 | Q64: 23400 | R64: 359410.477 | S64: 150543.9754 | T64: 105123.4438 | U64: 0 | V64: 0 | W64: 0 | X64: 105123.4438 | Y64: 0 | Z64: 228546.1113 | AA64: 16220.63197 | AB64: 583204.4424 | AC64: 28120.48592 | AD64: 0 | AE64: 28120.48592 | AF64: 0 | AG64: 37731.04358 | AH64: 11136.92696 | AI64: 0 | AJ64: 48867.97055 | AK64: 0 | AL64: 0 | AM64: 0 | AN64: 4108.991654 | AO64: 4108.991654 | AP64: 9267.7845 | AQ64: 0 | AR64: 9267.7845 | AS64: 14795.76404 | AT64: 33566.20079 | AU64: 113760 | AV64: 30890.35153 | AW64: 4500 | AX64: 26870 | AY64: 31370 | AZ64: 0 | BA64: 0 | BB64: 22000 | BC64: 0 | BD64: 0 | BE64: 0 | BF64: 0 | BG64: 338235 | BH64: 13280703.78 | BJ64: 436750.8877 | BK64: 0 | BL64: 436750.8877 | BM64: 673530.242 | BN64: 0 | BO64: 673530.242 | BP64: 0 | BQ64: 1244118.231 | BR64: 114774.8432 | BS64: 0 | BT64: 114774.8432 | BU64: 210651.874 | BV64: 0 | BW64: 0 | BX64: 75616.795 | BY64: 286268.669 | BZ64: 0 | CA64: 286268.669 | CB64: 0 | CC64: 0 | CD64: 0 | CE64: 2755442.873 | CF64: 16036146.65 | CG64: 10468263.31 | CH64: 2812440.467
A65: 563 | B65: Koboko District | C65: 0 | D65: 308475.1116 | E65: 145768.2105 | F65: 173682.2862 | G65: 599938.4076 | H65: 0 | I65: 112320 | J65: 0 | K65: 74199.43178 | L65: 472.74 | M65: 3674607.79 | N65: 1110812.598 | O65: 28985.66278 | P65: 1018026.865 | Q65: 23400 | R65: 356266.604 | S65: 121000.856 | T65: 75327.81862 | U65: 0 | V65: 0 | W65: 44855.67944 | X65: 120183.4981 | Y65: 42000 | Z65: 17026.84042 | AA65: 10094.79523 | AB65: 615413.0757 | AC65: 28120.48592 | AD65: 59020.63085 | AE65: 87141.11677 | AF65: 16000 | AG65: 19027.39445 | AH65: 8142.180141 | AI65: 22966.93944 | AJ65: 50136.51403 | AK65: 0 | AL65: 0 | AM65: 0 | AN65: 2557.201804 | AO65: 2557.201804 | AP65: 4202.393512 | AQ65: 47216.50468 | AR65: 51418.89819 | AS65: 9208.038776 | AT65: 21691.1618 | AU65: 67080 | AV65: 19224.39112 | AW65: 4500 | AX65: 11928 | AY65: 16428 | AZ65: 0 | BA65: 0 | BB65: 22000 | BC65: 46200 | BD65: 0 | BE65: 0 | BF65: 0 | BG65: 155085 | BH65: 9116845.096 | BJ65: 469803.3476 | BK65: 201457.0866 | BL65: 671260.4342 | BM65: 431123.7219 | BN65: 72005.16963 | BO65: 503128.8915 | BP65: 0 | BQ65: 659652.3762 | BR65: 82123.37919 | BS65: 264412.4262 | BT65: 346535.8054 | BU65: 175542.895 | BV65: 0 | BW65: 0 | BX65: 0 | BY65: 175542.895 | BZ65: 216408.9798 | CA65: 391951.8748 | CB65: 0 | CC65: 220003.555 | CD65: 220003.555 | CE65: 2792532.937 | CF65: 11909378.03 | CG65: 6897331.35 | CH65: 2219513.746
A66: 564 | B66: Amolatar District | C66: 0 | D66: 274854.9372 | E66: 114504.6499 | F66: 250387.2084 | G66: 671206.0545 | H66: 0 | I66: 131040 | J66: 0 | K66: 40748.61154 | L66: 276323.5744 | M66: 2983821.87 | N66: 838344.3494 | O66: 49190.09308 | P66: 939068.8162 | Q66: 23400 | R66: 269963.0913 | S66: 103696.8909 | T66: 51585.98797 | U66: 0 | V66: 0 | W66: 47216.50468 | X66: 98802.49265 | Y66: 0 | Z66: 161812.6292 | AA66: 6622.105435 | AB66: 287930.5319 | AC66: 28120.48592 | AD66: 23443.47697 | AE66: 51563.96289 | AF66: 0 | AG66: 21395.52036 | AH66: 6811.181552 | AI66: 19670.18086 | AJ66: 47876.88277 | AK66: 0 | AL66: 0 | AM66: 0 | AN66: 1677.504058 | AO66: 1677.504058 | AP66: 4785.771395 | AQ66: 31477.66979 | AR66: 36263.44118 | AS66: 6040.40025 | AT66: 20435.66744 | AU66: 84360 | AV66: 12611.04777 | AW66: 4500 | AX66: 8915 | AY66: 13415 | AZ66: 0 | BA66: 140734.083 | BB66: 0 | BC66: 0 | BD66: 120738 | BE66: 0 | BF66: 0 | BG66: 221685 | BH66: 8279118.896 | BJ66: 272206.1583 | BK66: 255756.067 | BL66: 527962.2253 | BM66: 435182.4827 | BN66: 62955.33957 | BO66: 498137.8223 | BP66: 0 | BQ66: 810750.2386 | BR66: 79155.06428 | BS66: 251821.3583 | BT66: 330976.4226 | BU66: 140433.916 | BV66: 0 | BW66: 0 | BX66: 0 | BY66: 140433.916 | BZ66: 173127.1838 | CA66: 313561.0998 | CB66: 512002.2805 | CC66: 118041.2617 | CD66: 630043.5422 | CE66: 3111431.351 | CF66: 11390550.25 | CG66: 6384466.966 | CH66: 1894651.929
A67: 565 | B67: Amuria District | C67: 0 | D67: 547428.9246 | E67: 52816.71969 | F67: 125193.6042 | G67: 930215.1745 | H67: 0 | I67: 126360 | J67: 13009.23889 | K67: 121024.3159 | L67: 204924.6437 | M67: 4752555.817 | N67: 938857.9415 | O67: 28001.89684 | P67: 1765683.616 | Q67: 23400 | R67: 517303.0968 | S67: 147602.7625 | T67: 129915.0872 | U67: 0 | V67: 0 | W67: 0 | X67: 129915.0872 | Y67: 0 | Z67: 93569.8001 | AA67: 16871.9055 | AB67: 746516.2308 | AC67: 28120.48592 | AD67: 0 | AE67: 28120.48592 | AF67: 0 | AG67: 31926.44243 | AH67: 11102.97292 | AI67: 28986.97394 | AJ67: 72016.38929 | AK67: 0 | AL67: 0 | AM67: 0 | AN67: 4273.971507 | AO67: 4273.971507 | AP67: 10093.14533 | AQ67: 19096.71532 | AR67: 29189.86065 | AS67: 15389.82778 | AT67: 29668.79048 | AU67: 103320 | AV67: 32130.628 | AW67: 4500 | AX67: 17830 | AY67: 22330 | AZ67: 0 | BA67: 155344.1898 | BB67: 0 | BC67: 0 | BD67: 120738 | BE67: 0 | BF67: 0 | BG67: 304935 | BH67: 12198707.92 | BJ67: 712351.3298 | BK67: 341254.4774 | BL67: 1053605.807 | BM67: 415459.465 | BN67: 126894.3563 | BO67: 542353.8214 | BP67: 200000 | BQ67: 1301710.7 | BR67: 133467.8984 | BS67: 331105.7391 | BT67: 464573.6375 | BU67: 175542.895 | BV67: 0 | BW67: 0 | BX67: 0 | BY67: 175542.895 | BZ67: 413144.4159 | CA67: 588687.311 | CB67: 512002.2805 | CC67: 188866.0187 | CD67: 700868.2992 | CE67: 4851799.576 | CF67: 17050507.5 | CG67: 9200127.694 | CH67: 2998580.225
A68: 566 | B68: Manafwa District | C68: 0 | D68: 564116.1894 | E68: 136100.0342 | F68: 250387.2084 | G68: 1219820.847 | H68: 0 | I68: 219960 | J68: 0 | K68: 0 | L68: 166752.9031 | M68: 8187274.068 | N68: 2215985.836 | O68: 28001.89684 | P68: 2315975.769 | Q68: 23400 | R68: 753282.5614 | S68: 147967.005 | T68: 91722.43146 | U68: 0 | V68: 0 | W68: 39347.08723 | X68: 131069.5187 | Y68: 0 | Z68: 31000.03617 | AA68: 24157.99847 | AB68: 1933345.347 | AC68: 28120.48592 | AD68: 47216.50468 | AE68: 75336.9906 | AF68: 0 | AG68: 39339.97088 | AH68: 17330.14489 | AI68: 22226.65522 | AJ68: 78896.77098 | AK68: 0 | AL68: 0 | AM68: 0 | AN68: 6119.676118 | AO68: 6119.676118 | AP68: 7097.002933 | AQ68: 23608.25234 | AR68: 30705.25527 | AS68: 22035.88896 | AT68: 48757.34256 | AU68: 266640 | AV68: 46006.16464 | AW68: 4500 | AX68: 24108 | AY68: 28608 | AZ68: 0 | BA68: 0 | BB68: 22000 | BC68: 0 | BD68: 120738 | BE68: 0 | BF68: 0 | BG68: 538035 | BH68: 19632476.31 | BJ68: 525804.1752 | BK68: 354123.7638 | BL68: 879927.939 | BM68: 667909.6406 | BN68: 118041.2617 | BO68: 785950.9023 | BP68: 0 | BQ68: 1988384.289 | BR68: 88305.53931 | BS68: 90498.30063 | BT68: 178803.8399 | BU68: 175542.895 | BV68: 0 | BW68: 0 | BX68: 0 | BY68: 175542.895 | BZ68: 275429.6106 | CA68: 450972.5056 | CB68: 0 | CC68: 140841.3249 | CD68: 140841.3249 | CE68: =SUM(BL68,BO68,BP68:BQ68,BT68,CA68,CD68) -> 4424880.801 | CF68: 24057357.11 | CG68: 15165593.53 | CH68: 4466882.779
A69: 567 | B69: Bukwo District | C69: 0 | D69: 214513.4515 | E69: 60751.90162 | F69: 125193.6042 | G69: 1038811.335 | H69: 0 | I69: 135720 | J69: 0 | K69: 0 | L69: 0 | M69: 1991110.976 | N69: 786567.0997 | O69: 47965.09536 | P69: 1496287.256 | Q69: 23400 | R69: 224140.9429 | S69: 77613.07152 | T69: 23006.79124 | U69: 0 | V69: 0 | W69: 19673.54362 | X69: =SUM(T69:W69) -> 42680.33486 | Y69: 109499.9924 | Z69: 7519.60009 | AA69: 7954.85998 | AB69: 565434.8888 | AC69: 28120.48592 | AD69: 0 | AE69: =SUM(AC69:AD69) -> 28120.48592 | AF69: 0 | AG69: 18092.90236 | AH69: 6295.080059 | AI69: 13188.93658 | AJ69: =SUM(AG69:AI69) -> 37576.91901 | AK69: 0 | AL69: 0 | AM69: 0 | AN69: 2015.115892 | AO69: =SUM(AM69:AN69) -> 2015.115892 | AP69: 3925.033567 | AQ69: 19673.54362 | AR69: =SUM(AP69:AQ69) -> 23598.57718 | AS69: 7256.081722 | AT69: 18820.80435 | AU69: 95640 | AV69: 15149.12746 | AW69: 4500 | AX69: 9919 | AY69: =SUM(AW69:AX69) -> 14419 | AZ69: 1038874.571 | BA69: 0 | BB69: 22000 | BC69: 0 | BD69: 0 | BE69: 0 | BF69: 0 | BG69: 238335 | BH69: =SUM(C69:S69,X69,Y69:AB69,AE69,AF69,AJ69,AK69:AL69,AO69,AR69,AS69:AV69,AY69,AZ69:BG69) -> 8496970.092 | BJ69: 134422.4537 | BK69: 185718.2517 | BL69: =SUM(BJ69:BK69) -> 320140.7054 | BM69: 387613.4252 | BN69: 55085.92212 | BO69: =SUM(BM69:BN69) -> 442699.3473 | BP69: 37000 | BQ69: 825395.9706 | BR69: 213040.7383 | BS69: 136319.4828 | BT69: =SUM(BR69:BS69) -> 349360.2211 | BU69: 140433.916 | BV69: 0 | BW69: 0 | BX69: 0 | BY69: =SUM(BU69:BX69) -> 140433.916 | BZ69: 135353.9801 | CA69: =SUM(BY69:BZ69) -> 275787.8961 | CB69: 0 | CC69: 94433.16832 | CD69: =SUM(CB69:CC69) -> 94433.16832 | CE69: 2344817.309 | CF69: =SUM(BH69,CE69) -> 10841787.4 | CG69: =SUM(F69:G69,I69,L69:Q69,BG69) -> 5883390.366 | CH69: =SUM(C69:E69,H69,J69:K69,R69:S69,X69,Y69:AB69,AE69,AF69,AJ69,AK69:AL69,AO69,AR69,AS69:AV69,AY69,AZ69:BF69) -> 2613579.726
A70: 568 | B70: Mityana District | C70: 0 | D70: 660200.6171 | E70: 136656.3129 | F70: 202793.072 | G70: 1027899.392 | H70: 0 | I70: 145080 | J70: 0 | K70: 0 | L70: 482089.8549 | M70: 6068096.828 | N70: 2122236.027 | O70: 23037.76832 | P70: 3420987.124 | Q70: 23400 | R70: 382272.5532 | S70: 166403.6947 | T70: 81664.19766 | U70: 8200 | V70: 0 | W70: 0 | X70: 89864.19766 | Y70: 152434.3319 | Z70: 140317.2576 | AA70: 15026.5357 | AB70: 1328809.009 | AC70: 28120.48592 | AD70: 0 | AE70: 28120.48592 | AF70: 0 | AG70: 37477.42045 | AH70: 14946.57088 | AI70: 0 | AJ70: 52423.99133 | AK70: 0 | AL70: 0 | AM70: 0 | AN70: 3806.504572 | AO70: 3806.504572 | AP70: 8247.548704 | AQ70: 0 | AR70: 8247.548704 | AS70: 13706.56068 | AT70: 43213.56232 | AU70: 101520 | AV70: 28616.33078 | AW70: 4500 | AX70: 34278 | AY70: 38778 | AZ70: 0 | BA70: 0 | BB70: 22000 | BC70: 0 | BD70: 0 | BE70: 397790.2354 | BF70: 0 | BG70: 238335 | BH70: 17564162.8 | BJ70: 430666.8381 | BK70: 0 | BL70: 430666.8381 | BM70: 461565.3186 | BN70: 0 | BO70: 461565.3186 | BP70: 0 | BQ70: 1027331.003 | BR70: 186355.205 | BS70: 0 | BT70: 186355.205 | BU70: 210651.874 | BV70: 0 | BW70: 272000 | BX70: 0 | BY70: 482651.874 | BZ70: 0 | CA70: 482651.874 | CB70: 0 | CC70: 0 | CD70: 0 | CE70: 2588570.239 | CF70: 20152733.03 | CG70: 13753955.07 | CH70: 3810207.729
A71: 569 | B71: Nakaseke District | C71: 0 | D71: 374678.4082 | E71: 206697.77 | F71: 625968.021 | G71: 898227.8541 | H71: 0 | I71: 149760 | J71: 0 | K71: 0 | L71: 532906.5266 | M71: 3901946.958 | N71: 1989231.769 | O71: 34213.84628 | P71: 2639163.696 | Q71: 23400 | R71: 316994.1909 | S71: 108181.3063 | T71: 73505.70255 | U71: 0 | V71: 0 | W71: 0 | X71: 73505.70255 | Y71: 131633.5989 | Z71: 158696.3108 | AA71: 14710.50348 | AB71: 520744.8832 | AC71: 28120.48592 | AD71: 0 | AE71: 28120.48592 | AF71: 0 | AG71: 34311.02454 | AH71: 10423.89201 | AI71: 0 | AJ71: 44734.91655 | AK71: 0 | AL71: 0 | AM71: 0 | AN71: 3726.447657 | AO71: 3726.447657 | AP71: 6054.811142 | AQ71: 0 | AR71: 6054.811142 | AS71: 13418.28966 | AT71: 34540.0882 | AU71: 94920 | AV71: 28014.48331 | AW71: 4500 | AX71: 25991 | AY71: 30491 | AZ71: 0 | BA71: 0 | BB71: 22000 | BC71: 0 | BD71: 0 | BE71: 311990.6583 | BF71: 0 | BG71: 288285 | BH71: 13606957.53 | BJ71: 352403.661 | BK71: 0 | BL71: 352403.661 | BM71: 355899.7862 | BN71: 0 | BO71: 355899.7862 | BP71: 230000 | BQ71: 1034530.496 | BR71: 156224.9794 | BS71: 0 | BT71: 156224.9794 | BU71: 210651.874 | BV71: 0 | BW71: 0 | BX71: 0 | BY71: 210651.874 | BZ71: 0 | CA71: 210651.874 | CB71: 0 | CC71: 0 | CD71: 0 | CE71: 2339710.797 | CF71: 15946668.32 | CG71: 11083103.67 | CH71: 2523853.855
A72: 570 | B72: Amuru District | C72: 0 | D72: 367760.8849 | E72: 61441.82635 | F72: 125193.6042 | G72: 800467.95 | H72: 0 | I72: 102960 | J72: 16704.79542 | K72: 91707.86672 | L72: 244582.6022 | M72: 2508621.028 | N72: 599141.2358 | O72: 28001.89684 | P72: 1793810.054 | Q72: 23400 | R72: 262886.3773 | S72: 123446.2641 | T72: 86578.78558 | U72: 0 | V72: 0 | W72: 76358.56599 | X72: 162937.3516 | Y72: 0 | Z72: 48755.24672 | AA72: 8957.226621 | AB72: 321680.5633 | AC72: 28120.48592 | AD72: 76358.56599 | AE72: 104479.0519 | AF72: 0 | AG72: 29247.94916 | AH72: 6532.758378 | AI72: 31166.76187 | AJ72: 66947.46942 | AK72: 0 | AL72: 0 | AM72: 0 | AN72: 2269.034245 | AO72: 2269.034245 | AP72: 5330.926286 | AQ72: 76358.56599 | AR72: 81689.49228 | AS72: 8170.397534 | AT72: 20445.27968 | AU72: 26040 | AV72: 17058.02089 | AW72: 4500 | AX72: 9166 | AY72: 13666 | AZ72: 905810.1814 | BA72: 0 | BB72: 22000 | BC72: 0 | BD72: 89044 | BE72: 0 | BF72: 0 | BG72: 121785 | BH72: 9171860.702 | BJ72: 487120.5833 | BK72: 152717.1328 | BL72: 639837.716 | BM72: 495528.9306 | BN72: 152717.1328 | BO72: 648246.0633 | BP72: 0 | BQ72: 570716.4005 | BR72: 70853.67692 | BS72: 305434.2663 | BT72: 376287.9432 | BU72: 140433.916 | BV72: 0 | BW72: 0 | BX72: 0 | BY72: 140433.916 | BZ72: 381792.8323 | CA72: 522226.7483 | CB72: 512002.2805 | CC72: 305434.2695 | CD72: 817436.55 | CE72: 3574751.421 | CF72: 12746612.12 | CG72: 6347963.371 | CH72: 2823897.33
A73: 571 | B73: Budaka District | C73: 0 | D73: 306971.8137 | E73: 93177.1917 | F73: 125193.6042 | G73: 702622.683 | H73: 0 | I73: 140400 | J73: 0 | K73: 0 | L73: 0 | M73: 4051297.763 | N73: 1391112.44 | O73: 28001.89684 | P73: 1385546.34 | Q73: 23400 | R73: 412921.3147 | S73: 92988.23162 | T73: 50568.77863 | U73: 8200 | V73: 0 | W73: 44855.67944 | X73: 103624.4581 | Y73: 0 | Z73: 44034.01384 | AA73: 8871.079893 | AB73: 1041993.026 | AC73: 28120.48592 | AD73: 35412.37851 | AE73: 63532.86443 | AF73: 0 | AG73: 21252.96504 | AH73: 8807.679435 | AI73: 16743.30234 | AJ73: 46803.94682 | AK73: 0 | AL73: 0 | AM73: 9221.902017 | AN73: 2247.211656 | AO73: 11469.11367 | AP73: 5475.330257 | AQ73: 26992.10184 | AR73: 32467.4321 | AS73: 8091.818188 | AT73: 25552.86663 | AU73: 64080 | AV73: 16893.96423 | AW73: 4500 | AX73: 12556 | AY73: 17056 | AZ73: 0 | BA73: 0 | BB73: 22000 | BC73: 0 | BD73: 0 | BE73: 0 | BF73: 0 | BG73: 254985 | BH73: 10515088.86 | BJ73: 320605.5717 | BK73: 138851.501 | BL73: 459457.0727 | BM73: 591292.5252 | BN73: 78694.17446 | BO73: 669986.6997 | BP73: 0 | BQ73: 858035.848 | BR73: 151277.7879 | BS73: 236082.5234 | BT73: 387360.3113 | BU73: 175542.895 | BV73: 0 | BW73: 0 | BX73: 0 | BY73: 175542.895 | BZ73: 143852.9509 | CA73: 319395.8459 | CB73: 0 | CC73: 115680.5057 | CD73: 115680.5057 | CE73: 2809916.283 | CF73: 13325005.15 | CG73: 8102559.727 | CH73: 2412529.136
A74: 572 | B74: Oyam District | C74: 0 | D74: 484633.2335 | E74: 55319.65413 | F74: 125193.6042 | G74: 970530.1751 | H74: 0 | I74: 135720 | J74: 0 | K74: 85725.55711 | L74: 693091.2441 | M74: 7739606.806 | N74: 1531991.555 | O74: 34815.97648 | P74: 1390539.183 | Q74: 23400 | R74: 742653.9909 | S74: 190805.129 | T74: 108308.6106 | U74: 0 | V74: 0 | W74: 82628.88319 | X74: 190937.4938 | Y74: 0 | Z74: 360964.815 | AA74: 14974.00015 | AB74: 490920.8059 | AC74: 28120.48592 | AD74: 47216.50468 | AE74: 75336.9906 | AF74: 0 | AG74: 37123.56134 | AH74: 16216.45219 | AI74: 35825.15841 | AJ74: 89165.17194 | AK74: 0 | AL74: 0 | AM74: 0 | AN74: 3793.196329 | AO74: 3793.196329 | AP74: 7337.087885 | AQ74: 47216.50468 | AR74: 54553.59256 | AS74: 13658.64001 | AT74: 40658.98286 | AU74: 159720 | AV74: 28516.2828 | AW74: 4500 | AX74: 18081 | AY74: 22581 | AZ74: 0 | BA74: 0 | BB74: 22000 | BC74: 0 | BD74: 120738 | BE74: 394088.2826 | BF74: 154326.0042 | BG74: 238335 | BH74: 16679294.37 | BJ74: 599365.0133 | BK74: 137714.8053 | BL74: 737079.8186 | BM74: 470414.2107 | BN74: 281725.1446 | BO74: 752139.3552 | BP74: 0 | BQ74: 943892.5352 | BR74: 141106.3621 | BS74: 533585.946 | BT74: 674692.3081 | BU74: 175542.895 | BV74: 0 | BW74: 0 | BX74: 44096.786 | BY74: 219639.681 | BZ74: 456152.4986 | CA74: 675792.1796 | CB74: 512002.2805 | CC74: 169192.4751 | CD74: 681194.7556 | CE74: 4464790.952 | CF74: 21144085.32 | CG74: 12883223.54 | CH74: 3796070.823
A75: 573 | B75: Abim District | C75: 0 | D75: 225184.1469 | E75: 81284.19513 | F75: 125193.6042 | G75: 823572.566 | H75: 0 | I75: 107640 | J75: 20717.11395 | K75: 30256.07898 | L75: 72274.04787 | M75: 2594058.709 | N75: 386222.4163 | O75: 16133.29258 | P75: 1853305.604 | Q75: 23400 | R75: 173079.0062 | S75: 90039.54415 | T75: 36892.19211 | U75: 0 | V75: 0 | W75: 78694.11151 | X75: 115586.3036 | Y75: 137576.6654 | Z75: 119867.3925 | AA75: 6327.048275 | AB75: 352297.736 | AC75: 28120.48592 | AD75: 25182.13583 | AE75: 53302.62175 | AF75: 0 | AG75: 22389.99354 | AH75: 6186.427113 | AI75: 28532.42176 | AJ75: 57108.84241 | AK75: 0 | AL75: 0 | AM75: 0 | AN75: 1602.760521 | AO75: 1602.760521 | AP75: 6350.782083 | AQ75: 44855.67944 | AR75: 51206.46153 | AS75: 5771.261777 | AT75: 19441.56165 | AU75: 56160 | AV75: 12049.14492 | AW75: 4500 | AX75: 6529 | AY75: 11029 | AZ75: 1052892.305 | BA75: 0 | BB75: 22000 | BC75: 0 | BD75: 0 | BE75: 0 | BF75: 121884.0033 | BG75: 138435 | BH75: 8956898.434 | BJ75: 261128.8763 | BK75: 414411.5487 | BL75: 675540.425 | BM75: 613896.5657 | BN75: 125910.6791 | BO75: 739807.2449 | BP75: 0 | BQ75: 556134.3701 | BR75: 126153.3837 | BS75: 243951.9408 | BT75: 370105.3245 | BU75: 140433.916 | BV75: 0 | BW75: 0 | BX75: 0 | BY75: 140433.916 | BZ75: 244738.8826 | CA75: 385172.7986 | CB75: 0 | CC75: 220343.6885 | CD75: 220343.6885 | CE75: 2947103.852 | CF75: 11904002.29 | CG75: 6140235.24 | CH75: 2816663.194
A76: 574 | B76: Namutumba District | C76: 0 | D76: 347584.3697 | E76: 53748.3584 | F76: 125193.6042 | G76: 698580.0301 | H76: 0 | I76: 112320 | J76: 0 | K76: 0 | L76: 0 | M76: 5086233.143 | N76: 861110.4824 | O76: 35475.96502 | P76: 1183287.506 | Q76: 23400 | R76: 428150.6993 | S76: 132005.6231 | T76: 62337.66178 | U76: 0 | V76: 0 | W76: 0 | X76: 62337.66178 | Y76: 0 | Z76: 86014.75456 | AA76: 9657.845486 | AB76: 1272383.298 | AC76: 28120.48592 | AD76: 0 | AE76: 28120.48592 | AF76: 0 | AG76: 23359.171 | AH76: 9928.162941 | AI76: 0 | AJ76: 33287.33395 | AK76: 0 | AL76: 0 | AM76: 0 | AN76: 2446.514203 | AO76: 2446.514203 | AP76: 6615.23903 | AQ76: 0 | AR76: 6615.23903 | AS76: 8809.471981 | AT76: 26112.52292 | AU76: 61680 | AV76: 18392.26996 | AW76: 4500 | AX76: 16825 | AY76: 21325 | AZ76: 0 | BA76: 0 | BB76: 22000 | BC76: 0 | BD76: 0 | BE76: 0 | BF76: 0 | BG76: 155085 | BH76: 10901357.18 | BJ76: 332071.6171 | BK76: 0 | BL76: 332071.6171 | BM76: 461646.6686 | BN76: 0 | BO76: 461646.6686 | BP76: 37000 | BQ76: 573408.6532 | BR76: 180461.8304 | BS76: 0 | BT76: 180461.8304 | BU76: 351085.79 | BV76: 0 | BW76: 272000 | BX76: 0 | BY76: 623085.79 | BZ76: 0 | CA76: 623085.79 | CB76: 0 | CC76: 0 | CD76: 0 | CE76: 2207674.559 | CF76: 13109031.74 | CG76: 8280685.73 | CH76: 2620671.449
A77: 575 | B77: Dokolo District | C77: 0 | D77: 301647.1221 | E77: 67120.68357 | F77: 125193.6042 | G77: 904294.8082 | H77: 0 | I77: 131040 | J77: 0 | K77: 52306.05786 | L77: 213354.0146 | M77: 3402012.826 | N77: 1011373.301 | O77: 28001.89684 | P77: 1143416.153 | Q77: 23400 | R77: 362231.363 | S77: 145362.5742 | T77: 55172.61456 | U77: 0 | V77: 0 | W77: 36027.39158 | X77: 91200.00614 | Y77: 0 | Z77: 15168.07528 | AA77: 10262.91221 | AB77: 397061.518 | AC77: 28120.48592 | AD77: 0 | AE77: 28120.48592 | AF77: 14000 | AG77: 21787.36774 | AH77: 8101.435286 | AI77: 30847.81965 | AJ77: 60736.62268 | AK77: 0 | AL77: 0 | AM77: 0 | AN77: 2599.789004 | AO77: 2599.789004 | AP77: 6217.498109 | AQ77: 39347.08723 | AR77: 45564.58534 | AS77: 9361.387872 | AT77: 23395.39345 | AU77: 87720 | AV77: 19544.55083 | AW77: 4500 | AX77: 10547 | AY77: 15047 | AZ77: 0 | BA77: 148039.1359 | BB77: 0 | BC77: 0 | BD77: 120738 | BE77: 0 | BF77: 0 | BG77: 221685 | BH77: 9220998.867 | BJ77: 327357.5062 | BK77: 354123.7851 | BL77: 681481.2913 | BM77: 461669.7802 | BN77: 118041.2617 | BO77: 579711.0419 | BP77: 0 | BQ77: 819603.5415 | BR77: 82123.37919 | BS77: 295103.1542 | BT77: 377226.5334 | BU77: 140433.916 | BV77: 0 | BW77: 0 | BX77: 0 | BY77: 140433.916 | BZ77: 472165.0468 | CA77: 612598.9628 | CB77: 512002.2805 | CC77: 196735.4362 | CD77: 708737.7167 | CE77: 3779359.088 | CF77: 13000357.95 | CG77: 7203771.604 | CH77: 2017227.263
A78: 576 | B78: Bullisa District | C78: 0 | D78: 250581.5322 | E78: 58757.35218 | F78: 125193.6042 | G78: 414046.835 | H78: 0 | I78: 112320 | J78: 0 | K78: 0 | L78: 0 | M78: 1566046.61 | N78: 319419.6631 | O78: 28001.89684 | P78: 716104.7834 | Q78: 23400 | R78: 155732.7072 | S78: 81900.36881 | T78: 35596.02584 | U78: 0 | V78: 0 | W78: 15738.83489 | X78: 51334.86074 | Y78: 0 | Z78: 0 | AA78: 4370.860096 | AB78: 268919.9552 | AC78: 28120.48592 | AD78: 9487.804852 | AE78: 37608.29078 | AF78: 12000 | AG78: 15451.51606 | AH78: 3972.623338 | AI78: 18020.26819 | AJ78: 37444.4076 | AK78: 0 | AL78: 0 | AM78: 0 | AN78: 1107.221203 | AO78: 1107.221203 | AP78: 5980.566157 | AQ78: 0 | AR78: 5980.566157 | AS78: 3986.910911 | AT78: 11269.65951 | AU78: 35400 | AV78: 8323.806685 | AW78: 4500 | AX78: 4520 | AY78: 9020 | AZ78: 0 | BA78: 0 | BB78: 22000 | BC78: 0 | BD78: 0 | BE78: 0 | BF78: 0 | BG78: 155085 | BH78: 4515356.892 | BJ78: 180671.4354 | BK78: 125910.6791 | BL78: 306582.1145 | BM78: 509970.5775 | BN78: 47216.50468 | BO78: 557187.0822 | BP78: 137000 | BQ78: 508219.2559 | BR78: 121700.9113 | BS78: 212474.2711 | BT78: 334175.1824 | BU78: 210651.874 | BV78: 0 | BW78: 0 | BX78: 0 | BY78: 210651.874 | BZ78: 393470.8723 | CA78: 604122.7463 | CB78: 0 | CC78: 78694.17446 | CD78: 78694.17446 | CE78: 2525980.556 | CF78: 7041337.447 | CG78: 3459618.392 | CH78: 1055738.499
A79: 577 | B79: Maracha District | C79: 0 | D79: 391772.7629 | E79: 48686.3843 | F79: 125193.6042 | G79: 509264.9492 | H79: 0 | I79: 117000 | J79: 0 | K79: 49894.34142 | L79: 0 | M79: 5046594.469 | N79: 944718.7506 | O79: 25248.33347 | P79: 1395637.246 | Q79: 23400 | R79: 477277.7142 | S79: 117455.0032 | T79: 59531.54919 | U79: 0 | V79: 0 | W79: 39347.08723 | X79: 98878.63642 | Y79: 0 | Z79: 320681.9845 | AA79: 9902.570385 | AB79: 381489.4448 | AC79: 28120.48592 | AD79: 29903.7863 | AE79: 58024.27222 | AF79: 0 | AG79: 24550.69911 | AH79: 9337.362547 | AI79: 22135.8496 | AJ79: 56023.91125 | AK79: 0 | AL79: 0 | AM79: 0 | AN79: 2508.50763 | AO79: 2508.50763 | AP79: 4207.840511 | AQ79: 22034.36885 | AR79: 26242.20936 | AS79: 9032.699526 | AT79: 26709.40128 | AU79: 74880 | AV79: 18858.32073 | AW79: 4500 | AX79: 10924 | AY79: 15424 | AZ79: 0 | BA79: 0 | BB79: 22000 | BC79: 0 | BD79: 0 | BE79: 0 | BF79: 0 | BG79: 171735 | BH79: 10564534.52 | BJ79: 393350.6654 | BK79: 314870.2157 | BL79: 708220.8811 | BM79: 681564.2936 | BN79: 78694.17446 | BO79: 760258.4681 | BP79: 0 | BQ79: 633533.1513 | BR79: 154246.1028 | BS79: 251821.3583 | BT79: 406067.4611 | BU79: 210651.874 | BV79: 0 | BW79: 0 | BX79: 0 | BY79: 210651.874 | BZ79: 155184.912 | CA79: 365836.7861 | CB79: 0 | CC79: 192800.7274 | CD79: 192800.7274 | CE79: 3066717.475 | CF79: 13631251.99 | CG79: 8358792.353 | CH79: 2205742.164
A80: 578 | B80: Bukedea Distrct | C80: 0 | D80: 306790.5846 | E80: 98889.23702 | F80: 125193.6042 | G80: 689265.5789 | H80: 0 | I80: 107640 | J80: 0 | K80: 0 | L80: 195752.2357 | M80: 6020941.071 | N80: 972631.5418 | O80: 41298.78828 | P80: 917061.575 | Q80: 23400 | R80: 414349.257 | S80: 107208.5803 | T80: 57887.57452 | U80: 0 | V80: 0 | W80: 81054.9997 | X80: 138942.5742 | Y80: 0 | Z80: 38085.96362 | AA80: 8378.323981 | AB80: 703704.8864 | AC80: 28120.48592 | AD80: 23608.25234 | AE80: 51728.73826 | AF80: 0 | AG80: 24366.28924 | AH80: 7537.798129 | AI80: 16013.41533 | AJ80: 47917.5027 | AK80: 0 | AL80: 0 | AM80: 0 | AN80: 2122.387301 | AO80: 2122.387301 | AP80: 6732.789006 | AQ80: 31477.66979 | AR80: 38210.45879 | AS80: 7642.347402 | AT80: 28259.51387 | AU80: 41760 | AV80: 15955.56655 | AW80: 4500 | AX80: 16072 | AY80: 20572 | AZ80: 0 | BA80: 144988.6055 | BB80: 0 | BC80: 0 | BD80: 0 | BE80: 126525.4381 | BF80: 0 | BG80: 138435 | BH80: 11573651.36 | BJ80: 315416.9087 | BK80: 142436.4558 | BL80: 457853.3645 | BM80: 363789.0026 | BN80: 103876.3103 | BO80: 467665.3129 | BP80: 0 | BQ80: 716525.975 | BR80: 128824.8671 | BS80: 78694.17446 | BT80: 207519.0416 | BU80: 175542.895 | BV80: 0 | BW80: 0 | BX80: 0 | BY80: 175542.895 | BZ80: 196735.4362 | CA80: 372278.3312 | CB80: 512002.2805 | CC80: 126774.0526 | CD80: 638776.3331 | CE80: 2860618.358 | CF80: 14434269.72 | CG80: 9231619.395 | CH80: 2342031.966
A81: 579 | B81: Bududa District | C81: 0 | D81: 428994.2292 | E81: 71103.44024 | F81: 125193.6042 | G81: 678173.4051 | H81: 0 | I81: 154440 | J81: 0 | K81: 0 | L81: 0 | M81: 4014445.474 | N81: 805100.7573 | O81: 52284.26112 | P81: 1616150.032 | Q81: 23400 | R81: 307652.5684 | S81: 107783.0192 | T81: 46584.68579 | U81: 0 | V81: 0 | W81: 35412.37851 | X81: 81997.0643 | Y81: 132633.5989 | Z81: 9584.894571 | AA81: 12712.77902 | AB81: 576972.9783 | AC81: 28120.48592 | AD81: 28329.90281 | AE81: 56450.38873 | AF81: 0 | AG81: 20276.93282 | AH81: 9120.056655 | AI81: 16620.63226 | AJ81: 46017.62173 | AK81: 0 | AL81: 0 | AM81: 0 | AN81: 3220.386418 | AO81: 3220.386418 | AP81: 5105.825331 | AQ81: 16066.20659 | AR81: 21172.03192 | AS81: 11596.05118 | AT81: 24890.27834 | AU81: 157680 | AV81: 24210.04394 | AW81: 4500 | AX81: 16700 | AY81: 21200 | AZ81: 0 | BA81: 0 | BB81: 22000 | BC81: 0 | BD81: 0 | BE81: 0 | BF81: 0 | BG81: 304935 | BH81: 9891993.907 | BJ81: 261044.1928 | BK81: 174307.5964 | BL81: 435351.7892 | BM81: 366405.7927 | BN81: 64303.66746 | BO81: 430709.4602 | BP81: 37000 | BQ81: 1117002.642 | BR81: 190462.486 | BS81: 132065.4395 | BT81: 322527.9255 | BU81: 140433.916 | BV81: 0 | BW81: 0 | BX81: 0 | BY81: 140433.916 | BZ81: 144621.3075 | CA81: 285055.2235 | CB81: 0 | CC81: 219304.4816 | CD81: 219304.4816 | CE81: 2846951.522 | CF81: 12738945.43 | CG81: 7774122.533 | CH81: 2117871.374
A82: 580 | B82: Lyantonde District | C82: 0 | D82: 241178.2313 | E82: 52931.11922 | F82: 125193.6042 | G82: 830272.3009 | H82: 0 | I82: 107640 | J82: 0 | K82: 0 | L82: 0 | M82: 1601990.89 | N82: 700959.9917 | O82: 28001.89684 | P82: 1562392.081 | Q82: 23400 | R82: 132054.6639 | S82: 79805.41466 | T82: 26442.94403 | U82: 0 | V82: 0 | W82: 0 | X82: 26442.94403 | Y82: 129256.3722 | Z82: 16644.26967 | AA82: 5398.341393 | AB82: 329261.0801 | AC82: 28121.06798 | AD82: 0 | AE82: 28121.06798 | AF82: 0 | AG82: 14824.05077 | AH82: 4739.984769 | AI82: 0 | AJ82: 19564.03554 | AK82: 0 | AL82: 0 | AM82: 0 | AN82: 1367.501573 | AO82: 1367.501573 | AP82: 5122.864328 | AQ82: 0 | AR82: 5122.864328 | AS82: 4924.135235 | AT82: 16672.74575 | AU82: 44760 | AV82: 10280.52813 | AW82: 4500 | AX82: 9543 | AY82: 14043 | AZ82: 0 | BA82: 0 | BB82: 22000 | BC82: 0 | BD82: 0 | BE82: 0 | BF82: 0 | BG82: 138435 | BH82: 6298114.079 | BJ82: 129706.655 | BK82: 0 | BL82: 129706.655 | BM82: 439179.3182 | BN82: 0 | BO82: 439179.3182 | BP82: 0 | BQ82: 436962.4274 | BR82: 152267.2262 | BS82: 0 | BT82: 152267.2262 | BU82: 210651.874 | BV82: 0 | BW82: 0 | BX82: 0 | BY82: 210651.874 | BZ82: 0 | CA82: 210651.874 | CB82: 0 | CC82: 0 | CD82: 0 | CE82: 1368767.501 | CF82: 7666881.58 | CG82: 5118285.764 | CH82: 1179828.315
A83: 581 | B83: Amudat District | C83: 0 | D83: 251515.6051 | E83: 52587.76714 | F83: 125193.6042 | G83: 643771.8704 | H83: 0 | I83: 98280 | J83: 16440.8271 | K83: 35611.96874 | L83: 0 | M83: 426471.5035 | N83: 57562.632 | O83: 22402.47874 | P83: 463618.7571 | Q83: 23400 | R83: 35523.56457 | S83: 62124.36574 | T83: 51052.17753 | U83: 0 | V83: 0 | W83: 58444.88223 | X83: 109497.0598 | Y83: 0 | Z83: 201683.1673 | AA83: 5411.444728 | AB83: 37109.48883 | AC83: 28120.48592 | AD83: 29222.44112 | AE83: 57342.92704 | AF83: 0 | AG83: 11263.52907 | AH83: 1120.483506 | AI83: 29222.441 | AJ83: 41606.45358 | AK83: 0 | AL83: 0 | AM83: 0 | AN83: 1370.820894 | AO83: 1370.820894 | AP83: 4631.920426 | AQ83: 43833.66167 | AR83: 48465.5821 | AS83: 4936.087534 | AT83: 6378.57007 | AU83: 29880 | AV83: 10305.48195 | AW83: 4500 | AX83: 3265 | AY83: 7765 | AZ83: 189410.1008 | BA83: 0 | BB83: 22000 | BC83: 0 | BD83: 0 | BE83: 0 | BF83: 0 | BG83: 105135 | BH83: 3192802.129 | BJ83: 302252.839 | BK83: 263001.9685 | BL83: 565254.8074 | BM83: 495528.9306 | BN83: 146112.2048 | BO83: 641641.1354 | BP83: 0 | BQ83: 382909.3865 | BR83: 100305.2227 | BS83: 233779.5281 | BT83: 334084.7508 | BU83: 140433.916 | BV83: 0 | BW83: 0 | BX83: 0 | BY83: 140433.916 | BZ83: 175334.6459 | CA83: 315768.5619 | CB83: 0 | CC83: 482170.2768 | CD83: 482170.2768 | CE83: 2721828.919 | CF83: 5914631.048 | CG83: 1965835.846 | CH83: 1226966.283
A84: 582 | B84: Buikwe District | C84: 30000 | D84: 677879.8071 | E84: 503318.5384 | F84: 655973.3523 | G84: 1001173.715 | H84: 0 | I84: 135720 | J84: 0 | K84: 0 | L84: 217708.9518 | M84: 6977814.702 | N84: 1538388.795 | O84: 59578.26035 | P84: 2295172.512 | Q84: 23400 | R84: 434431.4455 | S84: 170822.2313 | T84: 107664.8826 | U84: 0 | V84: 0 | W84: 0 | X84: 107664.8826 | Y84: 153622.3453 | Z84: 296327.5066 | AA84: 18069.43637 | AB84: 1515173.262 | AC84: 28120.48592 | AD84: 0 | AE84: 28120.48592 | AF84: 0 | AG84: 37702.01772 | AH84: 13676.68958 | AI84: 0 | AJ84: 51378.7073 | AK84: 0 | AL84: 0 | AM84: 13832.85303 | AN84: 4577.328638 | AO84: 18410.18166 | AP84: 7059.115941 | AQ84: 0 | AR84: 7059.115941 | AS84: 16482.16403 | AT84: 42218.95453 | AU84: 87720 | AV84: 34411.18956 | AW84: 4500 | AX84: 34781 | AY84: 39281 | AZ84: 0 | BA84: 0 | BB84: 22000 | BC84: 57600 | BD84: 0 | BE84: 130725.4527 | BF84: 0 | BG84: 238335 | BH84: 17585982 | BJ84: 681443.4594 | BK84: 0 | BL84: 681443.4594 | BM84: 502319.9073 | BN84: 0 | BO84: 502319.9073 | BP84: 444000 | BQ84: 942388.3699 | BR84: 148947.1084 | BS84: 0 | BT84: 148947.1084 | BU84: 210651.874 | BV84: 0 | BW84: 272000 | BX84: 0 | BY84: 482651.874 | BZ84: 0 | CA84: 482651.874 | CB84: 0 | CC84: 0 | CD84: 0 | CE84: 3201750.719 | CF84: 20787732.71 | CG84: 13143265.29 | CH84: 4442716.707
A85: 583 | B85: Buyende District | C85: 0 | D85: 485780.8172 | E85: 69293.70278 | F85: 125193.6042 | G85: 711964.3979 | H85: 0 | I85: 107640 | J85: 0 | K85: 0 | L85: 0 | M85: 4525999.365 | N85: 414185.5692 | O85: 57591.71438 | P85: 916940.5315 | Q85: 23400 | R85: 440235.211 | S85: 112485.2462 | T85: 84233.03575 | U85: 0 | V85: 0 | W85: 0 | X85: 84233.03575 | Y85: 0 | Z85: 90504.92 | AA85: 15630.0521 | AB85: 969968.8941 | AC85: 28120.48592 | AD85: 0 | AE85: 28120.48592 | AF85: 0 | AG85: 24409.59837 | AH85: 5969.121221 | AI85: 0 | AJ85: 30378.71959 | AK85: 0 | AL85: 0 | AM85: 0 | AN85: 3959.386647 | AO85: 3959.386647 | AP85: 4605.331431 | AQ85: 0 | AR85: 4605.331431 | AS85: 14257.06243 | AT85: 22472.4781 | AU85: 61560 | AV85: 29765.65924 | AW85: 4500 | AX85: 23982 | AY85: 28482 | AZ85: 0 | BA85: 0 | BB85: 22000 | BC85: 0 | BD85: 0 | BE85: 0 | BF85: 0 | BG85: 138435 | BH85: 9535083.185 | BJ85: 445131.364 | BK85: 0 | BL85: 445131.364 | BM85: 502319.9073 | BN85: 0 | BO85: 502319.9073 | BP85: 200000 | BQ85: 597359.2993 | BR85: 98943.83035 | BS85: 0 | BT85: 98943.83035 | BU85: 421302.748 | BV85: 0 | BW85: 272000 | BX85: 0 | BY85: 693302.748 | BZ85: 0 | CA85: 693302.748 | CB85: 0 | CC85: 0 | CD85: 0 | CE85: 2537057.149 | CF85: 12072140.33 | CG85: 7021350.182 | CH85: 2513733.002
A86: 584 | B86: Kyegegwa District | C86: 0 | D86: 886148.8957 | E86: 53389.73676 | F86: 125193.6042 | G86: 719471.866 | H86: 0 | I86: 117000 | J86: 0 | K86: 0 | L86: 0 | M86: 2297620.882 | N86: 890985.5787 | O86: 28001.89684 | P86: 1159324.071 | Q86: 23400 | R86: 268387.155 | S86: 76734.69872 | T86: 50352.59247 | U86: 0 | V86: 0 | W86: 0 | X86: 50352.59247 | Y86: 0 | Z86: 11300.83999 | AA86: 8875.448987 | AB86: 326892.3333 | AC86: 28121.06798 | AD86: 0 | AE86: 28121.06798 | AF86: 0 | AG86: 18805.62975 | AH86: 6125.309831 | AI86: 0 | AJ86: 24930.93958 | AK86: 0 | AL86: 0 | AM86: 9221.902017 | AN86: 2248.31843 | AO86: 11470.22045 | AP86: 4936.566365 | AQ86: 0 | AR86: 4936.566365 | AS86: 8095.803488 | AT86: 17751.22203 | AU86: 77640 | AV86: 16902.28467 | AW86: 4500 | AX86: 19713 | AY86: 24213 | AZ86: 0 | BA86: 0 | BB86: 22000 | BC86: 0 | BD86: 0 | BE86: 0 | BF86: 0 | BG86: 171735 | BH86: 7450875.705 | BJ86: 232254.347 | BK86: 0 | BL86: 232254.347 | BM86: 365531.8507 | BN86: 0 | BO86: 365531.8507 | BP86: 0 | BQ86: 601404.3631 | BR86: 65302.92803 | BS86: 0 | BT86: 65302.92803 | BU86: 351085.79 | BV86: 0 | BW86: 272000 | BX86: 0 | BY86: 623085.79 | BZ86: 0 | CA86: 623085.79 | CB86: 0 | CC86: 0 | CD86: 0 | CE86: 1887579.279 | CF86: 9338454.983 | CG86: 5532732.899 | CH86: 1918142.805
A87: 585 | B87: Lamwo District | C87: 0 | D87: 386231.3286 | E87: 80009.26366 | F87: 250387.2084 | G87: 1076780.843 | H87: 0 | I87: 131040 | J87: 26810.38275 | K87: 53652.86055 | L87: 0 | M87: 2724360.638 | N87: 376110.364 | O87: 28001.89684 | P87: 1212542.112 | Q87: 23400 | R87: 322916.9516 | S87: 81741.49077 | T87: 96813.1808 | U87: 0 | V87: 0 | W87: 253726.8386 | X87: 350540.0194 | Y87: 0 | Z87: 14342.9058 | AA87: 11615.22029 | AB87: 172955.4073 | AC87: 28120.48592 | AD87: 6820.613754 | AE87: 34941.09968 | AF87: 0 | AG87: 32014.23654 | AH87: 5867.259084 | AI87: 31430.50256 | AJ87: 69311.99818 | AK87: 0 | AL87: 0 | AM87: 0 | AN87: 2942.354114 | AO87: 2942.354114 | AP87: 5505.774251 | AQ87: 21382.62448 | AR87: 26888.39874 | AS87: 10594.90523 | AT87: 19076.99817 | AU87: 74160 | AV87: 22119.86798 | AW87: 4500 | AX87: 9919 | AY87: 14419 | AZ87: 1058934.252 | BA87: 0 | BB87: 23000 | BC87: 0 | BD87: 0 | BE87: 0 | BF87: 178795.0049 | BG87: 221685 | BH87: 9080307.772 | BJ87: 512117.6188 | BK87: 199319.5852 | BL87: 711437.204 | BM87: 351026.5263 | BN87: 134775.3308 | BO87: 485801.8571 | BP87: 0 | BQ87: 888525.0222 | BR87: 105093.0053 | BS87: 179783.7226 | BT87: 284876.7279 | BU87: 140433.916 | BV87: 0 | BW87: 0 | BX87: 0 | BY87: 140433.916 | BZ87: 320423.4282 | CA87: 460857.3443 | CB87: 403776.7985 | CC87: 423862.4814 | CD87: 827639.2799 | CE87: 3659137.435 | CF87: 12739445.21 | CG87: 6044308.063 | CH87: 3035999.71
A88: 586 | B88: Otuke District | C88: 0 | D88: 218936.0997 | E88: 46145.20186 | F88: 125193.6042 | G88: 711964.3979 | H88: 0 | I88: 107640 | J88: 0 | K88: 22363.18881 | L88: 0 | M88: 2313231.418 | N88: 616857.4225 | O88: 28001.89684 | P88: 1137824.228 | Q88: 23400 | R88: 197643.0137 | S88: 47988.783 | T88: 33837.29278 | U88: 0 | V88: 0 | W88: 106237.1355 | X88: 140074.4283 | Y88: 0 | Z88: 17820.6267 | AA88: 5401.704575 | AB88: 235035.5455 | AC88: 28120.48592 | AD88: 0 | AE88: 28120.48592 | AF88: 0 | AG88: 17036.9466 | AH88: 4597.377778 | AI88: 27814.80176 | AJ88: 49449.12613 | AK88: 0 | AL88: 0 | AM88: 0 | AN88: 1368.35353 | AO88: 1368.35353 | AP88: 5828.298187 | AQ88: 7869.417446 | AR88: 13697.71563 | AS88: 4927.202985 | AT88: 16531.76683 | AU88: 74280 | AV88: 10286.93293 | AW88: 4500 | AX88: 7785 | AY88: 12285 | AZ88: 0 | BA88: 0 | BB88: 0 | BC88: 0 | BD88: 0 | BE88: 0 | BF88: 0 | BG88: 138435 | BH88: 6344903.144 | BJ88: 178468.3184 | BK88: 255855.6403 | BL88: 434323.9588 | BM88: 441197.8282 | BN88: 129845.3879 | BO88: 571043.2161 | BP88: 200000 | BQ88: 487606.3412 | BR88: 79155.06428 | BS88: 361993.2025 | BT88: 441148.2668 | BU88: 140433.916 | BV88: 0 | BW88: 0 | BX88: 0 | BY88: 140433.916 | BZ88: 327997.3192 | CA88: 468431.2352 | CB88: 403776.7985 | CC88: 173127.1838 | CD88: 576903.9823 | CE88: 3179457 | CF88: 9524360.144 | CG88: 5202547.968 | CH88: 1142355.176
A89: 587 | B89: Zombo District | C89: 0 | D89: 321836.2732 | E89: 131706.0417 | F89: 250387.2084 | G89: 746060.6616 | H89: 0 | I89: 126360 | J89: 40695.11659 | K89: 50301.51433 | L89: 244931.761 | M89: 4062958.112 | N89: 812173.0406 | O89: 29216.8656 | P89: 1114608.11 | Q89: 23400 | R89: 450258.806 | S89: 113911.9379 | T89: 60492.21502 | U89: 0 | V89: 0 | W89: 53836.91573 | X89: 114329.1307 | Y89: 0 | Z89: 336749.6614 | AA89: 9392.964858 | AB89: 294989.3447 | AC89: 28120.48592 | AD89: 4759.188376 | AE89: 32879.6743 | AF89: 0 | AG89: 21050.97537 | AH89: 8210.088232 | AI89: 21534.76618 | AJ89: 50795.82978 | AK89: 0 | AL89: 0 | AM89: 0 | AN89: 2379.414949 | AO89: 2379.414949 | AP89: 4265.342499 | AQ89: 53836.91573 | AR89: 58102.25823 | AS89: 8567.859245 | AT89: 24678.45214 | AU89: 111120 | AV89: 17887.83488 | AW89: 4500 | AX89: 14942 | AY89: 19442 | AZ89: 0 | BA89: 0 | BB89: 23000 | BC89: 0 | BD89: 0 | BE89: 0 | BF89: 0 | BG89: 205035 | BH89: 9828154.874 | BJ89: 361763.9991 | BK89: 313290.8519 | BL89: 675054.851 | BM89: 330808.0164 | BN89: 123412.6656 | BO89: 454220.682 | BP89: 37000 | BQ89: 706224.3926 | BR89: 55972.89301 | BS89: 161510.7464 | BT89: 217483.6394 | BU89: 210651.874 | BV89: 0 | BW89: 0 | BX89: 0 | BY89: 210651.874 | BZ89: 183045.5127 | CA89: 393697.3867 | CB89: 0 | CC89: 161510.7464 | CD89: 161510.7464 | CE89: 2645191.698 | CF89: 12473346.57 | CG89: 7615130.759 | CH89: 2213024.115
A90: 588 | B90: Alebtong District | C90: 0 | D90: 359383.6866 | E90: 49365.36749 | F90: 125193.6042 | G90: 711964.3979 | H90: 0 | I90: 121680 | J90: 0 | K90: 54028.71246 | L90: 219092.581 | M90: 4606394.816 | N90: 977652.2359 | O90: 28001.89684 | P90: 942813.7682 | Q90: 23400 | R90: 440833.1868 | S90: 89152.70736 | T90: 68901.33142 | U90: 0 | V90: 0 | W90: 0 | X90: 68901.33142 | Y90: 0 | Z90: 18647.1054 | AA90: 14478.4578 | AB90: 272969.7482 | AC90: 28121.06798 | AD90: 31639.04163 | AE90: 59760.10961 | AF90: 0 | AG90: 22877.72853 | AH90: 8461.34817 | AI90: 31639.04171 | AJ90: 62978.1184 | AK90: 0 | AL90: 0 | AM90: 0 | AN90: 3667.666116 | AO90: 3667.666116 | AP90: 4089.054534 | AQ90: 15819.52082 | AR90: 19908.57535 | AS90: 13206.62755 | AT90: 25139.9495 | AU90: 98520 | AV90: 27572.57866 | AW90: 4500 | AX90: 12807 | AY90: 17307 | AZ90: 0 | BA90: 0 | BB90: 0 | BC90: 0 | BD90: 0 | BE90: 0 | BF90: 0 | BG90: 188385 | BH90: 9640399.229 | BJ90: 393407.3499 | BK90: 474585.6261 | BL90: 867992.9759 | BM90: 379630.1779 | BN90: 142375.6874 | BO90: 522005.8653 | BP90: 0 | BQ90: 715060.7538 | BR90: 43535.28536 | BS90: 300570.8963 | BT90: 344106.1817 | BU90: 175542.895 | BV90: 0 | BW90: 0 | BX90: 0 | BY90: 175542.895 | BZ90: 585322.2718 | CA90: 760865.1668 | CB90: 403776.7985 | CC90: 0 | CD90: 403776.7985 | CE90: 3613807.742 | CF90: 13254206.97 | CG90: 7944578.3 | CH90: 1695820.929
A91: 589 | B91: Bulambuli District | C91: 0 | D91: 270296.1102 | E91: 102755.1043 | F91: 250387.2084 | G91: 950638.244 | H91: 0 | I91: 159120 | J91: 0 | K91: 0 | L91: 0 | M91: 2822019.81 | N91: 617231.112 | O91: 24826.99547 | P91: 1322376.756 | Q91: 23400 | R91: 267768.18 | S91: 76456.46733 | T91: 37084.04705 | U91: 0 | V91: 0 | W91: 50802.58168 | X91: 87886.62874 | Y91: 0 | Z91: 6844.285618 | AA91: 11818.34644 | AB91: 716191.5285 | AC91: 28120.48592 | AD91: 0 | AE91: 28120.48592 | AF91: 0 | AG91: 18755.9639 | AH91: 6417.314623 | AI91: 14811.24848 | AJ91: 39984.527 | AK91: 0 | AL91: 0 | AM91: 0 | AN91: 2993.809796 | AO91: 2993.809796 | AP91: 4984.922355 | AQ91: 14515.02323 | AR91: 19499.94558 | AS91: 10780.18819 | AT91: 20942.9534 | AU91: 186360 | AV91: 22506.69867 | AW91: 4500 | AX91: 11426 | AY91: 15926 | AZ91: 0 | BA91: 0 | BB91: 0 | BC91: 0 | BD91: 0 | BE91: 0 | BF91: 0 | BG91: 354885 | BH91: 8412016.386 | BJ91: 218554.8326 | BK91: 159665.2578 | BL91: 378220.0905 | BM91: 313838.997 | BN91: 87090.14093 | BO91: 400929.1379 | BP91: 37000 | BQ91: 1287231.006 | BR91: 77176.18767 | BS91: 166922.7698 | BT91: 244098.9575 | BU91: 175542.895 | BV91: 0 | BW91: 0 | BX91: 0 | BY91: 175542.895 | BZ91: 159665.2578 | CA91: 335208.1529 | CB91: 0 | CC91: 87090.14407 | CD91: 87090.14407 | CE91: 2769777.488 | CF91: 11181793.87 | CG91: 6524885.126 | CH91: 1887131.26
A92: 590 | B92: Buvuma District | C92: 0 | D92: 366842.4494 | E92: 49164.03732 | F92: 125193.6042 | G92: 769116.5918 | H92: 0 | I92: 102960 | J92: 0 | K92: 0 | L92: 0 | M92: 416635.7439 | N92: 95996.0784 | O92: 31687.52834 | P92: 743214.503 | Q92: 23400 | R92: 40004.3835 | S92: 36932.21159 | T92: 91547.65949 | U92: 0 | V92: 0 | W92: 0 | X92: 91547.65949 | Y92: 0 | Z92: 14093.99934 | AA92: 7543.860338 | AB92: 36917.14342 | AC92: 28120.48592 | AD92: 0 | AE92: 28120.48592 | AF92: 0 | AG92: 31888.56526 | AH92: 1602.630953 | AI92: 0 | AJ92: 33491.19621 | AK92: 0 | AL92: 0 | AM92: 0 | AN92: 1911.00194 | AO92: 1911.00194 | AP92: 5184.130316 | AQ92: 0 | AR92: 5184.130316 | AS92: 6881.185495 | AT92: 7755.009669 | AU92: 40200 | AV92: 14366.42531 | AW92: 4500 | AX92: 24024 | AY92: 28524 | AZ92: 370940.1703 | BA92: 0 | BB92: 23000 | BC92: 0 | BD92: 0 | BE92: 0 | BF92: 0 | BG92: 121785 | BH92: 3633408.399 | BJ92: 342292.1617 | BK92: 0 | BL92: 342292.1617 | BM92: 387626.4794 | BN92: 0 | BO92: 387626.4794 | BP92: 37000 | BQ92: 523387.373 | BR92: 37598.65553 | BS92: 0 | BT92: 37598.65553 | BU92: 210651.874 | BV92: 0 | BW92: 0 | BX92: 0 | BY92: 210651.874 | BZ92: 0 | CA92: 210651.874 | CB92: 0 | CC92: 0 | CD92: 0 | CE92: 1538556.544 | CF92: 5171964.943 | CG92: 2429989.05 | CH92: 1203419.35
A93: 591 | B93: Gomba District | C93: 0 | D93: 363090.7059 | E93: 51579.9993 | F93: 125193.6042 | G93: 677868.1341 | H93: 0 | I93: 102960 | J93: 0 | K93: 0 | L93: 560243.8738 | M93: 3289366.689 | N93: 731547.2112 | O93: 64332.85249 | P93: 789873.5722 | Q93: 23400 | R93: 275329.8745 | S93: 87170.14418 | T93: 62207.7125 | U93: 0 | V93: 0 | W93: 0 | X93: 62207.7125 | Y93: 0 | Z93: 16076.80108 | AA93: 9607.399101 | AB93: 394766.5475 | AC93: 28120.48592 | AD93: 0 | AE93: 28120.48592 | AF93: 0 | AG93: 20801.60569 | AH93: 7076.023108 | AI93: 0 | AJ93: 27877.6288 | AK93: 0 | AL93: 0 | AM93: 0 | AN93: 2433.735183 | AO93: 2433.735183 | AP93: 5660.55522 | AQ93: 0 | AR93: 5660.55522 | AS93: 8763.456955 | AT93: 20633.22624 | AU93: 51480 | AV93: 18296.20054 | AW93: 4500 | AX93: 17704 | AY93: 22204 | AZ93: 0 | BA93: 0 | BB93: 23000 | BC93: 0 | BD93: 0 | BE93: 393622.411 | BF93: 152355.0042 | BG93: 121785 | BH93: 8500846.825 | BJ93: 238386.3075 | BK93: 0 | BL93: 238386.3075 | BM93: 331453.0512 | BN93: 0 | BO93: 331453.0512 | BP93: 300000 | BQ93: 497061.9522 | BR93: 64313.48973 | BS93: 0 | BT93: 64313.48973 | BU93: 280868.832 | BV93: 0 | BW93: 0 | BX93: 0 | BY93: 280868.832 | BZ93: 0 | CA93: 280868.832 | CB93: 0 | CC93: 0 | CD93: 0 | CE93: 1712083.633 | CF93: 10212930.46 | CG93: 6486570.937 | CH93: 2014275.888
A94: 592 | B94: Kiryandongo District | C94: 0 | D94: 491128.4127 | E94: 257418.382 | F94: 375580.8126 | G94: 677868.1341 | H94: 0 | I94: 112320 | J94: 0 | K94: 0 | L94: 224889.9727 | M94: 3874485.626 | N94: 515977.5005 | O94: 34115.68722 | P94: 1579326.7 | Q94: 23400 | R94: 387773.3309 | S94: 115239.8034 | T94: 114059.8688 | U94: 0 | V94: 0 | W94: 118041.2617 | X94: 232101.1305 | Y94: 145698.3078 | Z94: 32051.765 | AA94: 16780.93518 | AB94: 390872.2117 | AC94: 28121.06798 | AD94: 0 | AE94: 28121.06798 | AF94: 18000 | AG94: 27922.28681 | AH94: 8244.042278 | AI94: 25757.68391 | AJ94: 61924.013 | AK94: 0 | AL94: 0 | AM94: 0 | AN94: 4250.927011 | AO94: 4250.927011 | AP94: 5625.008228 | AQ94: 23608.25234 | AR94: 29233.26057 | AS94: 15306.84856 | AT94: 23754.9768 | AU94: 45720 | AV94: 31957.38535 | AW94: 4500 | AX94: 16951 | AY94: 21451 | AZ94: 0 | BA94: 0 | BB94: 23000 | BC94: 0 | BD94: 0 | BE94: 0 | BF94: 155171.0042 | BG94: 155085 | BH94: 10100004.2 | BJ94: 670323.4939 | BK94: 168353.6975 | BL94: 838677.1914 | BM94: 495528.9306 | BN94: 132868.0311 | BO94: 628396.9617 | BP94: 0 | BQ94: 508393.5936 | BR94: 50461.35348 | BS94: 231798.5345 | BT94: 282259.888 | BU94: 175542.895 | BV94: 0 | BW94: 0 | BX94: 0 | BY94: 175542.895 | BZ94: 268569.0525 | CA94: 444111.9475 | CB94: 0 | CC94: 318887.6815 | CD94: 318887.6815 | CE94: 3020727.264 | CF94: 13120731.46 | CG94: 7573049.433 | CH94: 2526954.763
A95: 593 | B95: Luuka District | C95: 0 | D95: 439516.4915 | E95: 71511.68563 | F95: 125193.6042 | G95: 780156.9253 | H95: 0 | I95: 117000 | J95: 0 | K95: 0 | L95: 0 | M95: 6323386.534 | N95: 780598.1617 | O95: 37209.16992 | P95: 1113756.416 | Q95: 23400 | R95: 401581.7729 | S95: 109099.0984 | T95: 52821.15242 | U95: 0 | V95: 0 | W95: 0 | X95: 52821.15242 | Y95: 0 | Z95: 53459.98887 | AA95: 9240.3953 | AB95: 1154712.703 | AC95: 28120.48592 | AD95: 0 | AE95: 28120.48592 | AF95: 0 | AG95: 24699.24986 | AH95: 8732.980535 | AI95: 0 | AJ95: 33432.23039 | AK95: 0 | AL95: 0 | AM95: 0 | AN95: 2340.766206 | AO95: 2340.766206 | AP95: 4838.286385 | AQ95: 0 | AR95: 4838.286385 | AS95: 8428.691845 | AT95: 29530.63325 | AU95: 50640 | AV95: 17597.28348 | AW95: 4500 | AX95: 19085 | AY95: 23585 | AZ95: 0 | BA95: 0 | BB95: 23000 | BC95: 0 | BD95: 0 | BE95: 0 | BF95: 0 | BG95: 171735 | BH95: 11985892.48 | BJ95: 421163.5773 | BK95: 0 | BL95: 421163.5773 | BM95: 475207.877 | BN95: 0 | BO95: 475207.877 | BP95: 0 | BQ95: 653317.5233 | BR95: 94986.07714 | BS95: 0 | BT95: 94986.07714 | BU95: 351085.79 | BV95: 0 | BW95: 272000 | BX95: 0 | BY95: 623085.79 | BZ95: 0 | CA95: 623085.79 | CB95: 0 | CC95: 0 | CD95: 0 | CE95: 2267760.845 | CF95: 14253653.32 | CG95: 9472435.812 | CH95: 2513456.666
A96: 594 | B96: Namayingo District | C96: 0 | D96: 488989.655 | E96: 73319.18907 | F96: 125193.6042 | G96: 746060.6616 | H96: 0 | I96: 112320 | J96: 0 | K96: 72758.66612 | L96: 0 | M96: 3197723.707 | N96: 637284.8668 | O96: 28001.89684 | P96: 885064.8071 | Q96: 23400 | R96: 319787.0781 | S96: 89372.22394 | T96: 102729.1605 | U96: 0 | V96: 0 | W96: 0 | X96: 102729.1605 | Y96: 0 | Z96: 25033.4668 | AA96: 10097.82772 | AB96: 394700.6757 | AC96: 28120.48592 | AD96: 0 | AE96: 28120.48592 | AF96: 0 | AG96: 29618.76275 | AH96: 6043.820121 | AI96: 0 | AJ96: 35662.58287 | AK96: 0 | AL96: 0 | AM96: 0 | AN96: 2557.96999 | AO96: 2557.96999 | AP96: 5207.133311 | AQ96: 0 | AR96: 5207.133311 | AS96: 9210.804881 | AT96: 19108.18255 | AU96: 57360 | AV96: 19230.16615 | AW96: 4500 | AX96: 11677 | AY96: 16177 | AZ96: 879954.1861 | BA96: 0 | BB96: 23000 | BC96: 0 | BD96: 0 | BE96: 0 | BF96: 0 | BG96: 155085 | BH96: 8582510.998 | BJ96: 511448.0817 | BK96: 0 | BL96: 511448.0817 | BM96: 502319.9073 | BN96: 0 | BO96: 502319.9073 | BP96: 300000 | BQ96: 714104.352 | BR96: 63324.05143 | BS96: 0 | BT96: 63324.05143 | BU96: 351085.79 | BV96: 0 | BW96: 0 | BX96: 0 | BY96: 351085.79 | BZ96: 0 | CA96: 351085.79 | CB96: 0 | CC96: 0 | CD96: 0 | CE96: 2442282.183 | CF96: 11024793.18 | CG96: 5910134.543 | CH96: 2672376.455
A97: 595 | B97: Ntoroko District | C97: 0 | D97: 203091.2609 | E97: 212197.4976 | F97: 500774.4168 | G97: 872203.2603 | H97: 0 | I97: 121680 | J97: 13537.17554 | K97: 0 | L97: 0 | M97: 1317203.887 | N97: 237145.887 | O97: 28001.89684 | P97: 606148.6205 | Q97: 23400 | R97: 84446.58769 | S97: 54895.5285 | T97: 31883.075 | U97: 0 | V97: 0 | W97: 0 | X97: 31883.075 | Y97: 0 | Z97: 9903.427328 | AA97: 6193.598313 | AB97: 129559.1221 | AC97: 28120.48592 | AD97: 0 | AE97: 28120.48592 | AF97: 0 | AG97: 14726.32984 | AH97: 2886.093878 | AI97: 0 | AJ97: 17612.42371 | AK97: 0 | AL97: 0 | AM97: 0 | AN97: 1568.955132 | AO97: 1568.955132 | AP97: 4435.060465 | AQ97: 0 | AR97: 4435.060465 | AS97: 5649.534452 | AT97: 12647.49221 | AU97: 53040 | AV97: 11795.00462 | AW97: 4500 | AX97: 6529 | AY97: 11029 | AZ97: 561273.4765 | BA97: 0 | BB97: 23000 | BC97: 0 | BD97: 0 | BE97: 0 | BF97: 0 | BG97: 205035 | BH97: 5387471.674 | BJ97: 215114.6453 | BK97: 0 | BL97: 215114.6453 | BM97: 328999.546 | BN97: 0 | BO97: 328999.546 | BP97: 0 | BQ97: 680789.4763 | BR97: 119403.217 | BS97: 0 | BT97: 119403.217 | BU97: 210651.874 | BV97: 0 | BW97: 0 | BX97: 0 | BY97: 210651.874 | BZ97: 0 | CA97: 210651.874 | CB97: 0 | CC97: 0 | CD97: 0 | CE97: 1554958.759 | CF97: 6942430.433 | CG97: 3911592.968 | CH97: 1475878.706
A98: 596 | B98: Serere District | C98: 0 | D98: 458287.8204 | E98: 126916.9581 | F98: 250387.2084 | G98: 780156.9253 | H98: 100000 | I98: 121680 | J98: 14857.01716 | K98: 79586.64253 | L98: 0 | M98: 4674374.759 | N98: 1272775.916 | O98: 53870.13217 | P98: 1281052.832 | Q98: 23400 | R98: 492338.1056 | S98: 96579.7656 | T98: 96692.3322 | U98: 0 | V98: 0 | W98: 27542.96106 | X98: 124235.2933 | Y98: 0 | Z98: 35363.79839 | AA98: 4306.339522 | AB98: 811452.5665 | AC98: 28121.06798 | AD98: 61381.45608 | AE98: 89502.52406 | AF98: 19910 | AG98: 27273.86173 | AH98: 9588.622484 | AI98: 20300.73486 | AJ98: 57163.21907 | AK98: 0 | AL98: 0 | AM98: 0 | AN98: 1090.876927 | AO98: 1090.876927 | AP98: 5254.046302 | AQ98: 56516.58222 | AR98: 61770.62852 | AS98: 3928.058014 | AT98: 27379.48677 | AU98: 54600 | AV98: 8200.934579 | AW98: 4500 | AX98: 21220 | AY98: 25720 | AZ98: 0 | BA98: 151766.2044 | BB98: 0 | BC98: 111277 | BD98: 0 | BE98: 0 | BF98: 0 | BG98: 205035 | BH98: 11618966.01 | BJ98: 314760.4142 | BK98: 357281.717 | BL98: 672042.1312 | BM98: 644723.759 | BN98: 34502.67385 | BO98: 679226.4329 | BP98: 0 | BQ98: 733996.652 | BR98: 99735.381 | BS98: 175363.6723 | BT98: 275099.0533 | BU98: 140433.916 | BV98: 0 | BW98: 0 | BX98: 0 | BY98: 140433.916 | BZ98: 141696.7305 | CA98: 282130.6466 | CB98: 403776.7985 | CC98: 140450.2148 | CD98: 544227.0133 | CE98: 3186721.929 | CF98: 14805687.94 | CG98: 8662732.773 | CH98: 2956233.239
A99: 597 | B99: Kyankwanzi District | C99: 0 | D99: 429202.3427 | E99: 81819.00113 | F99: 250387.2084 | G99: 780156.9253 | H99: 0 | I99: 121680 | J99: 0 | K99: 0 | L99: 0 | M99: 4061001.922 | N99: 995588.0805 | O99: 28001.89684 | P99: 1024008.236 | Q99: 23400 | R99: 238688.3551 | S99: 83799.00304 | T99: 75626.28368 | U99: 0 | V99: 0 | W99: 0 | X99: 75626.28368 | Y99: 0 | Z99: 43822.46532 | AA99: 8731.495076 | AB99: 247893.7041 | AC99: 28120.48592 | AD99: 0 | AE99: 28120.48592 | AF99: 0 | AG99: 24946.59136 | AH99: 7069.232299 | AI99: 0 | AJ99: 32015.82365 | AK99: 0 | AL99: 0 | AM99: 0 | AN99: 2211.852193 | AO99: 2211.852193 | AP99: 5620.548228 | AQ99: 0 | AR99: 5620.548228 | AS99: 7964.494911 | AT99: 23685.57127 | AU99: 60120 | AV99: 16628.1408 | AW99: 4500 | AX99: 21471 | AY99: 25971 | AZ99: 0 | BA99: 0 | BB99: 23000 | BC99: 0 | BD99: 0 | BE99: 0 | BF99: 0 | BG99: 188385 | BH99: 8907529.836 | BJ99: 324033.944 | BK99: 0 | BL99: 324033.944 | BM99: 502319.9073 | BN99: 0 | BO99: 502319.9073 | BP99: 0 | BQ99: 738843.1853 | BR99: 59366.29821 | BS99: 0 | BT99: 59366.29821 | BU99: 210651.874 | BV99: 0 | BW99: 272000 | BX99: 0 | BY99: 482651.874 | BZ99: 0 | CA99: 482651.874 | CB99: 0 | CC99: 0 | CD99: 0 | CE99: 2107215.209 | CF99: 11014745.04 | CG99: 7472609.269 | CH99: 1434920.567
A100: 598 | B100: Kalungu District | C100: 0 | D100: 360003.6055 | E100: 102297.9475 | F100: 250387.2084 | G100: 677868.1341 | H100: 0 | I100: 112320 | J100: 0 | K100: 0 | L100: 159085.024 | M100: 4486276.069 | N100: 2217530.367 | O100: 47203.728 | P100: 1178840.741 | Q100: 23400 | R100: 382567.5412 | S100: 86614.11605 | T100: 44070.10394 | U100: 0 | V100: 0 | W100: 0 | X100: 44070.10394 | Y100: 0 | Z100: 267123.9905 | AA100: 7692.909443 | AB100: 1111116.168 | AC100: 28120.48592 | AD100: 0 | AE100: 28120.48592 | AF100: 0 | AG100: 24115.32299 | AH100: 8739.771344 | AI100: 0 | AJ100: 32855.09433 | AK100: 0 | AL100: 0 | AM100: 0 | AN100: 1948.758886 | AO100: 1948.758886 | AP100: 5012.30135 | AQ100: 0 | AR100: 5012.30135 | AS100: 7017.141689 | AT100: 29486.91326 | AU100: 53520 | AV100: 14650.2724 | AW100: 4500 | AX100: 17579 | AY100: 22079 | AZ100: 0 | BA100: 0 | BB100: 23000 | BC100: 0 | BD100: 0 | BE100: 157500.5454 | BF100: 0 | BG100: 138435 | BH100: 12028023.17 | BJ100: 222387.0989 | BK100: 0 | BL100: 222387.0989 | BM100: 328999.546 | BN100: 0 | BO100: 328999.546 | BP100: 100000 | BQ100: 495822.8202 | BR100: 47789.87006 | BS100: 0 | BT100: 47789.87006 | BU100: 280868.832 | BV100: 0 | BW100: 0 | BX100: 0 | BY100: 280868.832 | BZ100: 0 | CA100: 280868.832 | CB100: 0 | CC100: 0 | CD100: 0 | CE100: 1475868.167 | CF100: 13503891.33 | CG100: 9291346.271 | CH100: 2736676.895
A101: 599 | B101: Lwengo District | C101: 0 | D101: 492883.2008 | E101: 87656.4589 | F101: 250387.2084 | G101: 746073.8037 | H101: 0 | I101: 117000 | J101: 0 | K101: 0 | L101: 0 | M101: 6147194.42 | N101: 1924514.589 | O101: 23925.33913 | P101: 1279554.932 | Q101: 23400 | R101: 496811.9248 | S101: 111361.0067 | T101: 68588.38438 | U101: 8200 | V101: 0 | W101: 0 | X101: 76788.38438 | Y101: 0 | Z101: 73553.85487 | AA101: 11044.44278 | AB101: 1264241.555 | AC101: 28120.48592 | AD101: 0 | AE101: 28120.48592 | AF101: 18000 | AG101: 27381.32272 | AH101: 10838.13136 | AI101: 0 | AJ101: 38219.45409 | AK101: 0 | AL101: 0 | AM101: 0 | AN101: 2797.76542 | AO101: 2797.76542 | AP101: 4591.433434 | AQ101: 0 | AR101: 4591.433434 | AS101: 10074.2665 | AT101: 33275.42227 | AU101: 53040 | AV101: 21032.88704 | AW101: 4500 | AX101: 25866 | AY101: 30366 | AZ101: 0 | BA101: 0 | BB101: 23000 | BC101: 0 | BD101: 0 | BE101: 0 | BF101: 0 | BG101: 171735 | BH101: 13560643.83 | BJ101: 333058.373 | BK101: 0 | BL101: 333058.373 | BM101: 455373.4951 | BN101: 0 | BO101: 455373.4951 | BP101: 100000 | BQ101: 636195.4884 | BR101: 61444.11865 | BS101: 0 | BT101: 61444.11865 | BU101: 280868.832 | BV101: 0 | BW101: 0 | BX101: 0 | BY101: 280868.832 | BZ101: 0 | CA101: 280868.832 | CB101: 0 | CC101: 0 | CD101: 0 | CE101: 1866940.307 | CF101: 15427584.14 | CG101: 10683785.29 | CH101: 2876858.542
A102: 600 | B102: Bukomansimbi District | C102: 0 | D102: 322367.1471 | E102: 43929.45304 | F102: 125193.6042 | G102: 677868.1341 | H102: 0 | I102: 102960 | J102: 0 | K102: 0 | L102: 0 | M102: 3352803.305 | N102: 1750830.687 | O102: 28001.89684 | P102: 651290.3546 | Q102: 23400 | R102: 281913.6084 | S102: 74240.67131 | T102: 34480.72375 | U102: 0 | V102: 0 | W102: 0 | X102: 34480.72375 | Y102: 0 | Z102: 48968.23477 | AA102: 6134.622971 | AB102: 699739.4092 | AC102: 28121.06798 | AD102: 0 | AE102: 28121.06798 | AF102: 18000 | AG102: 17258.70074 | AH102: 6274.707631 | AI102: 0 | AJ102: 23533.40837 | AK102: 0 | AL102: 0 | AM102: 0 | AN102: 1554.015567 | AO102: 1554.015567 | AP102: 4426.211467 | AQ102: 0 | AR102: 4426.211467 | AS102: 5595.739676 | AT102: 21420.70434 | AU102: 53760 | AV102: 11682.69278 | AW102: 4500 | AX102: 11928 | AY102: 16428 | AZ102: 0 | BA102: 0 | BB102: 23000 | BC102: 0 | BD102: 0 | BE102: 0 | BF102: 0 | BG102: 121785 | BH102: 8553428.693 | BJ102: 166290.0448 | BK102: 0 | BL102: 166290.0448 | BM102: 329000.4494 | BN102: 0 | BO102: 329000.4494 | BP102: 0 | BQ102: 392452.501 | BR102: 40962.74577 | BS102: 0 | BT102: 40962.74577 | BU102: 280868.832 | BV102: 0 | BW102: 0 | BX102: 0 | BY102: 280868.832 | BZ102: 0 | CA102: 280868.832 | CB102: 0 | CC102: 0 | CD102: 0 | CE102: 1209574.573 | CF102: 9763003.266 | CG102: 6834132.982 | CH102: 1719295.711
A103: 601 | B103: Mitooma District | C103: 0 | D103: 423687.1701 | E103: 80207.24261 | F103: 250387.2084 | G103: 882445.7165 | H103: 0 | I103: 135720 | J103: 0 | K103: 0 | L103: 315910.8984 | M103: 5004068.528 | N103: 1591584.163 | O103: 28001.89684 | P103: 966489.5833 | Q103: 23400 | R103: 290066.279 | S103: 86269.57801 | T103: 48320.00067 | U103: 0 | V103: 0 | W103: 0 | X103: 48320.00067 | Y103: 0 | Z103: 18164.96364 | AA103: 11351.23745 | AB103: 1058168.484 | AC103: 28120.48592 | AD103: 0 | AE103: 28120.48592 | AF103: 0 | AG103: 23829.20573 | AH103: 10138.67802 | AI103: 0 | AJ103: 33967.88375 | AK103: 0 | AL103: 0 | AM103: 13832.85303 | AN103: 2875.48229 | AO103: 16708.33532 | AP103: 6578.339037 | AQ103: 0 | AR103: 6578.339037 | AS103: 10354.11143 | AT103: 30177.41379 | AU103: 103920 | AV103: 21617.14265 | AW103: 4500 | AX103: 22350 | AY103: 26850 | AZ103: 0 | BA103: 0 | BB103: 23000 | BC103: 0 | BD103: 0 | BE103: 0 | BF103: 164744.0045 | BG103: 238335 | BH103: 11918615.67 | BJ103: 232597.4824 | BK103: 0 | BL103: 232597.4824 | BM103: 371636.9802 | BN103: 0 | BO103: 371636.9802 | BP103: 0 | BQ103: 822193.332 | BR103: 73796.08234 | BS103: 0 | BT103: 73796.08234 | BU103: 210651.874 | BV103: 0 | BW103: 0 | BX103: 0 | BY103: 210651.874 | BZ103: 0 | CA103: 210651.874 | CB103: 0 | CC103: 0 | CD103: 0 | CE103: 1710875.751 | CF103: 13629491.42 | CG103: 9436342.994 | CH103: 2482272.672
A104: 602 | B104: Rubirizi District | C104: 0 | D104: 317584.4134 | E104: 86045.81758 | F104: 250387.2084 | G104: 814253.189 | H104: 0 | I104: 131040 | J104: 0 | K104: 0 | L104: 0 | M104: 2333983.203 | N104: 545289.9814 | O104: 29323.80672 | P104: 681087.4336 | Q104: 23400 | R104: 151124.8934 | S104: 57513.05182 | T104: 40533.6763 | U104: 0 | V104: 0 | W104: 0 | X104: 40533.6763 | Y104: 0 | Z104: 17931.97672 | AA104: 9169.602341 | AB104: 453792.873 | AC104: 28120.48592 | AD104: 0 | AE104: 28120.48592 | AF104: 20000 | AG104: 16296.72142 | AH104: 4807.89286 | AI104: 0 | AJ104: 21104.61428 | AK104: 0 | AL104: 0 | AM104: 12680.11527 | AN104: 2322.833016 | AO104: 15002.94829 | AP104: 5184.279316 | AQ104: 0 | AR104: 5184.279316 | AS104: 8364.117548 | AT104: 15951.27521 | AU104: 64560 | AV104: 17462.46633 | AW104: 4500 | AX104: 12807 | AY104: 17307 | AZ104: 0 | BA104: 0 | BB104: 23000 | BC104: 0 | BD104: 0 | BE104: 0 | BF104: 0 | BG104: 221685 | BH104: 6400203.313 | BJ104: 153364.7148 | BK104: 0 | BL104: 153364.7148 | BM104: 502319.907 | BN104: 0 | BO104: 502319.907 | BP104: 0 | BQ104: 736379.8955 | BR104: 75865.80318 | BS104: 0 | BT104: 75865.80318 | BU104: 210651.874 | BV104: 0 | BW104: 0 | BX104: 0 | BY104: 210651.874 | BZ104: 0 | CA104: 210651.874 | CB104: 0 | CC104: 0 | CD104: 0 | CE104: 1678582.195 | CF104: 8078785.508 | CG104: 5030449.822 | CH104: 1369753.491
A105: 603 | B105: Ngora District | C105: 0 | D105: 336650.5823 | E105: 63659.8092 | F105: 125193.6042 | G105: 677868.1341 | H105: 0 | I105: 102960 | J105: 0 | K105: 0 | L105: 370592.7896 | M105: 3506280.394 | N105: 1283366.402 | O105: 23265.35058 | P105: 971281.3469 | Q105: 23400 | R105: 296109.0348 | S105: 61997.57321 | T105: 47678.37694 | U105: 0 | V105: 0 | W105: 38134.34311 | X105: 85812.72005 | Y105: 0 | Z105: 473402.4129 | AA105: 6981.515421 | AB105: 527105.4559 | AC105: 28120.48592 | AD105: 8008.211936 | AE105: 36128.69786 | AF105: 0 | AG105: 20385.75929 | AH105: 6824.763171 | AI105: 15565.66951 | AJ105: 42776.19198 | AK105: 0 | AL105: 0 | AM105: 0 | AN105: 1768.549379 | AO105: 1768.549379 | AP105: 5529.095247 | AQ105: 15253.73725 | AR105: 20782.83249 | AS105: 6368.238607 | AT105: 22222.80193 | AU105: 37080 | AV105: 13295.50328 | AW105: 4500 | AX105: 10547 | AY105: 15047 | AZ105: 0 | BA105: 155344.1898 | BB105: 0 | BC105: 0 | BD105: 0 | BE105: 312649.8086 | BF105: 0 | BG105: 121785 | BH105: 9721175.938 | BJ105: 260421.3872 | BK105: 236082.5234 | BL105: 496503.9106 | BM105: 351026.5263 | BN105: 99149.29288 | BO105: 450175.8192 | BP105: 0 | BQ105: 664124.9529 | BR105: 70539.48375 | BS105: 152537.374 | BT105: 223076.8578 | BU105: 175542.895 | BV105: 0 | BW105: 0 | BX105: 0 | BY105: 175542.895 | BZ105: 99149.29288 | CA105: 274692.1879 | CB105: 403776.7985 | CC105: 114403.0309 | CD105: 518179.8294 | CE105: 2626753.558 | CF105: 12347929.5 | CG105: 7205993.021 | CH105: 2515182.918
A106: 604 | B106: Napak District | C106: 0 | D106: 364945.2504 | E106: 44332.11337 | F106: 125193.6042 | G106: 746060.6616 | H106: 0 | I106: 117000 | J106: 15332.16014 | K106: 52083.99202 | L106: 46480.1085 | M106: 1479455.053 | N106: 282140.3804 | O106: 28001.89684 | P106: 1012905.691 | Q106: 23400 | R106: 141980.2629 | S106: 91595.03702 | T106: 96695.4941 | U106: 0 | V106: 0 | W106: 76333.34923 | X106: 173028.8433 | Y106: 0 | Z106: 606819.9247 | AA106: 10256.23948 | AB106: 140467.4779 | AC106: 28121.06798 | AD106: 55085.92212 | AE106: 83206.9901 | AF106: 0 | AG106: 24990.9834 | AH106: 3178.09867 | AI106: 30519.67717 | AJ106: 58688.75923 | AK106: 0 | AL106: 0 | AM106: 0 | AN106: 2598.098675 | AO106: 2598.098675 | AP106: 5541.732244 | AQ106: 62955.33957 | AR106: 68497.07182 | AS106: 9355.301293 | AT106: 12510.29078 | AU106: 45600 | AV106: 19531.84337 | AW106: 4500 | AX106: 5399 | AY106: 9899 | AZ106: 344360.8067 | BA106: 0 | BB106: 23000 | BC106: 0 | BD106: 0 | BE106: 0 | BF106: 0 | BG106: 171735 | BH106: 6350461.859 | BJ106: 485071.6389 | BK106: 157388.3489 | BL106: 642459.9878 | BM106: 359347.341 | BN106: 254497.7472 | BO106: 613845.0881 | BP106: 100000 | BQ106: 708960.4096 | BR106: 75536.65391 | BS106: 589888.384 | BT106: 665425.0379 | BU106: 140433.916 | BV106: 0 | BW106: 0 | BX106: 0 | BY106: 140433.916 | BZ106: 175922.4009 | CA106: 316356.3169 | CB106: 0 | CC106: 123392.6891 | CD106: 123392.6891 | CE106: 3170439.529 | CF106: 9520901.389 | CG106: 4032372.396 | CH106: 2318089.463
A107: 605 | B107: Kibuku District | C107: 0 | D107: 353043.8928 | E107: 35070.92578 | F107: 125193.6042 | G107: 848349.4528 | H107: 0 | I107: 126360 | J107: 0 | K107: 0 | L107: 0 | M107: 3966537.001 | N107: 706652.0837 | O107: 28001.89684 | P107: 958349.2231 | Q107: 23400 | R107: 331118.6202 | S107: 78418.76374 | T107: 53384.79378 | U107: 0 | V107: 0 | W107: 15738.83489 | X107: 69123.62867 | Y107: 0 | Z107: 28720.3712 | AA107: 9949.359337 | AB107: 791583.0227 | AC107: 28120.48592 | AD107: 0 | AE107: 28120.48592 | AF107: 0 | AG107: 18719.5433 | AH107: 5649.953192 | AI107: 16323.1573 | AJ107: 40692.65379 | AK107: 0 | AL107: 0 | AM107: 11527.37752 | AN107: 2520.360153 | AO107: 14047.73767 | AP107: 5442.774264 | AQ107: 62955.33957 | AR107: 68398.11384 | AS107: 9075.378399 | AT107: 21874.98499 | AU107: 42360 | AV107: 18947.42498 | AW107: 4500 | AX107: 13937 | AY107: 18437 | AZ107: 0 | BA107: 126123.9774 | BB107: 0 | BC107: 0 | BD107: 0 | BE107: 0 | BF107: 0 | BG107: 205035 | BH107: 9072984.603 | BJ107: 298814.1222 | BK107: 188551.2428 | BL107: 487365.365 | BM107: 495528.9306 | BN107: 78694.17446 | BO107: 574223.105 | BP107: 0 | BQ107: 760430.9445 | BR107: 75355.6212 | BS107: 55085.92212 | BT107: 130441.5433 | BU107: 210651.874 | BV107: 0 | BW107: 0 | BX107: 0 | BY107: 210651.874 | BZ107: 383070.3591 | CA107: 593722.2331 | CB107: 0 | CC107: 15738.83489 | CD107: 15738.83489 | CE107: 2561922.026 | CF107: 11634906.63 | CG107: 6987878.262 | CH107: 2085106.341
A108: 606 | B108: Nwoya District | C108: 0 | D108: 242700.3533 | E108: 41513.49106 | F108: 125193.6042 | G108: 677868.1341 | H108: 0 | I108: 102960 | J108: 13326.00088 | K108: 16913.33608 | L108: 0 | M108: 2202898.174 | N108: 520670.8888 | O108: 25763.91888 | P108: 1239204.197 | Q108: 23400 | R108: 194294.149 | S108: 36873.55944 | T108: 55868.42507 | U108: 0 | V108: 7200 | W108: 55872.86387 | X108: 118941.2889 | Y108: 137170.9904 | Z108: 24150.62769 | AA108: 5449.49873 | AB108: 204800.4287 | AC108: 28120.48592 | AD108: 7919.05301 | AE108: 36039.53893 | AF108: 0 | AG108: 23557.86959 | AH108: 4291.791367 | AI108: 27225.98534 | AJ108: 55075.6463 | AK108: 0 | AL108: 0 | AM108: 0 | AN108: 1380.46069 | AO108: 1380.46069 | AP108: 5807.797191 | AQ108: 11017.18442 | AR108: 16824.98162 | AS108: 4970.79876 | AT108: 15803.79816 | AU108: 30600 | AV108: 10377.95147 | AW108: 4500 | AX108: 6655 | AY108: 11155 | AZ108: 424517.3062 | BA108: 0 | BB108: 23000 | BC108: 0 | BD108: 0 | BE108: 0 | BF108: 0 | BG108: 121785 | BH108: 6705623.124 | BJ108: 219736.8298 | BK108: 81841.94144 | BL108: 301578.7712 | BM108: 248001.1003 | BN108: 64686.61141 | BO108: 312687.7117 | BP108: 37000 | BQ108: 503831.0001 | BR108: 72167.42891 | BS108: 236082.5234 | BT108: 308249.9523 | BU108: 140433.916 | BV108: 0 | BW108: 0 | BX108: 0 | BY108: 140433.916 | BZ108: 481608.3477 | CA108: 622042.2637 | CB108: 403776.7985 | CC108: 395044.7558 | CD108: 798821.5543 | CE108: 2884211.253 | CF108: 9589834.377 | CG108: 5039743.918 | CH108: 1665879.206
A109: 607 | B109: Kole District | C109: 0 | D109: 432363.2542 | E109: 38090.87825 | F109: 125193.6042 | G109: 711964.3979 | H109: 0 | I109: 107640 | J109: 12639.68324 | K109: 66243.89963 | L109: 258302.9013 | M109: 4806388.628 | N109: 1090693.211 | O109: 69082.00249 | P109: 914052.0355 | Q109: 23400 | R109: 449119.852 | S109: 105530.7023 | T109: 70490.47039 | U109: 0 | V109: 0 | W109: 29076.04398 | X109: 99566.51437 | Y109: 0 | Z109: 9924.42615 | AA109: 9064.822437 | AB109: 471509.7292 | AC109: 28120.48592 | AD109: 38481.45131 | AE109: 66601.93724 | AF109: 0 | AG109: 22495.32131 | AH109: 9615.785721 | AI109: 22283.0537 | AJ109: 54394.16074 | AK109: 0 | AL109: 0 | AM109: 0 | AN109: 2296.290293 | AO109: 2296.290293 | AP109: 9787.645396 | AQ109: 19384.02932 | AR109: 29171.67472 | AS109: 8268.541819 | AT109: 25873.81418 | AU109: 75960 | AV109: 17262.9249 | AW109: 4500 | AX109: 11928 | AY109: 16428 | AZ109: 0 | BA109: 0 | BB109: 0 | BC109: 0 | BD109: 0 | BE109: 0 | BF109: 0 | BG109: 138435 | BH109: 10235462.89 | BJ109: 376783.0426 | BK109: 142685.1978 | BL109: 519468.2404 | BM109: 432830.627 | BN109: 135690.5661 | BO109: 568521.1931 | BP109: 0 | BQ109: 695931.772 | BR109: 50263.46582 | BS109: 210182.0648 | BT109: 260445.5306 | BU109: 175542.895 | BV109: 0 | BW109: 0 | BX109: 0 | BY109: 175542.895 | BZ109: 380679.7119 | CA109: 556222.6069 | CB109: 403776.7985 | CC109: 135690.5661 | CD109: 539467.3645 | CE109: 3140056.708 | CF109: 13375519.59 | CG109: 8245151.78 | CH109: 1990311.106
A110: 608 | B110: Butambala District | C110: 0 | D110: 239934.9879 | E110: 57821.23441 | F110: 125193.6042 | G110: 711964.3979 | H110: 0 | I110: 107640 | J110: 0 | K110: 0 | L110: 263399.5968 | M110: 2899842.202 | N110: 2635647.147 | O110: 28549.77216 | P110: 1328732.345 | Q110: 23400 | R110: 170315.1179 | S110: 35490.93943 | T110: 26051.40038 | U110: 0 | V110: 0 | W110: 0 | X110: 26051.40038 | Y110: 131633.5989 | Z110: 25211.56814 | AA110: 5752.923316 | AB110: 978845.7662 | AC110: 28121.06798 | AD110: 0 | AE110: 28121.06798 | AF110: 18000 | AG110: 19559.29905 | AH110: 8033.527195 | AI110: 0 | AJ110: 27592.82625 | AK110: 0 | AL110: 0 | AM110: 0 | AN110: 1457.323853 | AO110: 1457.323853 | AP110: 4397.875473 | AQ110: 0 | AR110: 4397.875473 | AS110: 5247.56964 | AT110: 26028.71014 | AU110: 33240 | AV110: 10955.78914 | AW110: 4500 | AX110: 13812 | AY110: 18312 | AZ110: 0 | BA110: 0 | BB110: 23000 | BC110: 0 | BD110: 0 | BE110: 0 | BF110: 171899.0047 | BG110: 138435 | BH110: 10302113.77 | BJ110: 137352.4626 | BK110: 0 | BL110: 137352.4626 | BM110: 328999.546 | BN110: 0 | BO110: 328999.546 | BP110: 0 | BQ110: 406649.0096 | BR110: 28693.7108 | BS110: 0 | BT110: 28693.7108 | BU110: 210651.874 | BV110: 0 | BW110: 0 | BX110: 0 | BY110: 210651.874 | BZ110: 0 | CA110: 210651.874 | CB110: 0 | CC110: 0 | CD110: 0 | CE110: 1112346.603 | CF110: 11414460.37 | CG110: 8262804.064 | CH110: 2039309.704
A111: 609 | B111: Sheema District | C111: 0 | D111: 510088.0408 | E111: 271578.8947 | F111: 375580.8126 | G111: 862823.0411 | H111: 0 | I111: 131040 | J111: 0 | K111: 0 | L111: 303975.5984 | M111: 6082459.844 | N111: 3152752.767 | O111: 28001.89684 | P111: 1854870.513 | Q111: 23400 | R111: 338610.3175 | S111: 102701.8786 | T111: 53099.97196 | U111: 0 | V111: 0 | W111: 0 | X111: 53099.97196 | Y111: 131633.9908 | Z111: 17706.98934 | AA111: 11571.60442 | AB111: 1236974.551 | AC111: 28120.48592 | AD111: 0 | AE111: 28120.48592 | AF111: 0 | AG111: 31082.25011 | AH111: 13676.68958 | AI111: 0 | AJ111: 44758.93969 | AK111: 0 | AL111: 0 | AM111: 12680.11527 | AN111: 2931.305393 | AO111: 15611.42067 | AP111: 5125.729327 | AQ111: 0 | AR111: 5125.729327 | AS111: 10555.12071 | AT111: 41016.26672 | AU111: 93360 | AV111: 22036.80651 | AW111: 4500 | AX111: 21345 | AY111: 25845 | AZ111: 0 | BA111: 104059.7358 | BB111: 0 | BC111: 0 | BD111: 0 | BE111: 0 | BF111: 357706.0098 | BG111: 221685 | BH111: 16458751.23 | BJ111: 266716.5061 | BK111: 0 | BL111: 266716.5061 | BM111: 356129.1629 | BN111: 0 | BO111: 356129.1629 | BP111: 0 | BQ111: 788314.1031 | BR111: 64041.3942 | BS111: 0 | BT111: 64041.3942 | BU111: 280868.832 | BV111: 0 | BW111: 0 | BX111: 0 | BY111: 280868.832 | BZ111: 0 | CA111: 280868.832 | CB111: 0 | CC111: 0 | CD111: 0 | CE111: 1756069.998 | CF111: 18214821.22 | CG111: 13036589.47 | CH111: 3422161.754
A112: 610 | B112: Buhweju District | C112: 0 | D112: 274650.7791 | E112: 41513.49106 | F112: 125193.6042 | G112: 780156.9253 | H112: 0 | I112: 117000 | J112: 0 | K112: 0 | L112: 0 | M112: 2307335.64 | N112: 412193.9088 | O112: 28001.89684 | P112: 566483.6292 | Q112: 23400 | R112: 117079.2691 | S112: 49296.90351 | T112: 28790.46634 | U112: 0 | V112: 0 | W112: 0 | X112: 28790.46634 | Y112: 0 | Z112: 17706.98934 | AA112: 6937.866212 | AB112: 178335.8089 | AC112: 28120.48592 | AD112: 0 | AE112: 28120.48592 | AF112: 0 | AG112: 13545.57852 | AH112: 3972.623338 | AI112: 0 | AJ112: 17518.20186 | AK112: 0 | AL112: 0 | AM112: 9221.902017 | AN112: 1757.492212 | AO112: 10979.39423 | AP112: 5923.822168 | AQ112: 0 | AR112: 5923.822168 | AS112: 6328.423673 | AT112: 14360.17553 | AU112: 48480 | AV112: 13212.37832 | AW112: 4500 | AX112: 11426 | AY112: 15926 | AZ112: 0 | BA112: 0 | BB112: 23000 | BC112: 0 | BD112: 0 | BE112: 0 | BF112: 0 | BG112: 171735 | BH112: 5429661.06 | BJ112: 142220.8409 | BK112: 0 | BL112: 142220.8409 | BM112: 328999.5199 | BN112: 0 | BO112: 328999.5199 | BP112: 0 | BQ112: 542197.3611 | BR112: 96744.19622 | BS112: 0 | BT112: 96744.19622 | BU112: 210651.874 | BV112: 0 | BW112: 0 | BX112: 256500 | BY112: 467151.874 | BZ112: 0 | CA112: 467151.874 | CB112: 0 | CC112: 0 | CD112: 0 | CE112: =SUM(BL112,BO112,BP112:BQ112,BT112,CA112,CD112) -> 1577313.792 | CF112: 7006974.852 | CG112: 4531500.604 | CH112: 898160.4553
A113: 611 | B113: Agago District | C113: 0 | D113: 471129.1316 | E113: 212914.3625 | F113: 375580.8126 | G113: 848349.4528 | H113: 0 | I113: 159120 | J113: 56713.59437 | K113: 84472.7174 | L113: 116497.7334 | M113: 3785027.282 | N113: 644398.6354 | O113: 28001.89684 | P113: 1564116.26 | Q113: 23400 | R113: 471903.9313 | S113: 123336.9339 | T113: 119779.0075 | U113: 0 | V113: 0 | W113: 94433.00936 | X113: 214212.0168 | Y113: 0 | Z113: 550849.0661 | AA113: 17683.9026 | AB113: 361027.0555 | AC113: 28120.48592 | AD113: 14164.9514 | AE113: 42285.43733 | AF113: 0 | AG113: 33617.56801 | AH113: 9045.357754 | AI113: 35524.6167 | AJ113: 78187.54247 | AK113: 0 | AL113: 0 | AM113: 0 | AN113: 4479.665671 | AO113: 4479.665671 | AP113: 6419.518069 | AQ113: 6295.533957 | AR113: 12715.05203 | AS113: 16130.49668 | AT113: 25335.38597 | AU113: 149400 | AV113: 33676.98428 | AW113: 4500 | AX113: 15570 | AY113: 20070 | AZ113: 1445447.138 | BA113: 0 | BB113: 23000 | BC113: 0 | BD113: 0 | BE113: 0 | BF113: 0 | BG113: 304935 | BH113: 12264397.49 | BJ113: 723170.774 | BK113: 215389.8902 | BL113: 938560.6643 | BM113: 495529.0256 | BN113: 102302.4268 | BO113: 597831.4524 | BP113: 0 | BQ113: 1182416.992 | BR113: 80342.39025 | BS113: 535120.3864 | BT113: 615462.7766 | BU113: 140433.916 | BV113: 0 | BW113: 0 | BX113: 0 | BY113: 140433.916 | BZ113: 647088.0317 | CA113: 787521.9477 | CB113: 403776.7985 | CC113: 125911.9886 | CD113: 529688.7871 | CE113: 4651482.62 | CF113: 16915880.11 | CG113: 7849427.073 | CH113: 4414970.414
A114: 612 | B114: Kween District | C114: 0 | D114: 273018.2366 | E114: 38090.87825 | F114: 125193.6042 | G114: 711964.3979 | H114: 0 | I114: 131040 | J114: 0 | K114: 0 | L114: 0 | M114: 1708949.689 | N114: 549230.2742 | O114: 18194.76135 | P114: 1206672.243 | Q114: 23400 | R114: 161578.4709 | S114: 50528.40368 | T114: 41645.58533 | U114: 8200 | V114: 0 | W114: 7869.417446 | X114: 57715.00278 | Y114: 0 | Z114: 14362.17708 | AA114: 7917.65739 | AB114: 555277.4705 | AC114: 28121.06798 | AD114: 0 | AE114: 28121.06798 | AF114: 0 | AG114: 14747.65431 | AH114: 4400.444313 | AI114: 13846.44825 | AJ114: 32994.54688 | AK114: 0 | AL114: 0 | AM114: 0 | AN114: 2005.691775 | AO114: 2005.691775 | AP114: 5280.294296 | AQ114: 32126.13575 | AR114: 37406.43005 | AS114: 7222.147117 | AT114: 15158.95599 | AU114: 90120 | AV114: 15078.27935 | AW114: 4500 | AX114: 10673 | AY114: 15173 | AZ114: 0 | BA114: 0 | BB114: 23000 | BC114: 0 | BD114: 0 | BE114: 0 | BF114: 0 | BG114: 238335 | BH114: 6137748.386 | BJ114: 171091.1996 | BK114: 94433.00936 | BL114: 265524.209 | BM114: 449193.2525 | BN114: 102302.4268 | BO114: 551495.6793 | BP114: 0 | BQ114: 851792.9915 | BR114: 90711.70367 | BS114: 141649.514 | BT114: 232361.2177 | BU114: 140433.916 | BV114: 0 | BW114: 0 | BX114: 0 | BY114: 140433.916 | BZ114: 103360.0246 | CA114: 243793.9406 | CB114: 0 | CC114: 196735.4362 | CD114: 196735.4362 | CE114: 2341703.474 | CF114: 8479451.86 | CG114: 4712979.97 | CH114: 1424768.416
A115: 751 | B115: Arua Municipal Council | C115: 0 | D115: 0 | E115: 300414.301 | F115: 447642.4506 | G115: 0 | H115: 0 | I115: 32760 | J115: 0 | K115: 0 | L115: 509.549 | M115: 1701330.828 | N115: 1007515.563 | O115: 11570.25792 | P115: 365207.7301 | Q115: 0 | R115: 131808.6739 | S115: 42342.63076 | T115: 0 | U115: 0 | V115: 0 | W115: 0 | X115: 0 | Y115: 0 | Z115: 0 | AA115: 2599.946976 | AB115: 325229.7312 | AC115: 5212.432197 | AD115: 11568.04365 | AE115: 16780.47584 | AF115: 0 | AG115: 9986.935273 | AH115: 4291.791367 | AI115: 5896.417856 | AJ115: 20175.1445 | AK115: 10698.54443 | AL115: 0 | AM115: 0 | AN115: 658.6155485 | AO115: 658.6155485 | AP115: 0 | AQ115: 5458.227941 | AR115: 5458.227941 | AS115: 2371.56 | AT115: 0 | AU115: 43680 | AV115: 4951.303758 | AW115: 4500 | AX115: 6906 | AY115: 11406 | AZ115: 0 | BA115: 0 | BB115: 0 | BC115: 0 | BD115: 0 | BE115: 0 | BF115: 0 | BG115: 0 | BH115: 4485111.535 | BJ115: 145799.9747 | BK115: 92528.99751 | BL115: 238328.9722 | BM115: 0 | BN115: 0 | BO115: 0 | BP115: 0 | BQ115: 0 | BR115: 98426.45249 | BS115: 41341.19761 | BT115: 139767.6501 | BU115: 210651.874 | BV115: 0 | BW115: 0 | BX115: 0 | BY115: 210651.874 | BZ115: 43791.73421 | CA115: 254443.6082 | CB115: 0 | CC115: 94236.27392 | CD115: 94236.27392 | CE115: 726776.5045 | CF115: 5211888.039 | CG115: 3566536.379 | CH115: 918575.1559
A116: 752 | B116: Entebbe Municipal Council | C116: 0 | D116: 0 | E116: 374767.2296 | F116: 424665.3452 | G116: 0 | H116: 0 | I116: 32760 | J116: 0 | K116: 0 | L116: 0 | M116: 1185879.866 | N116: 1064344.746 | O116: 10912.80426 | P116: 1173526.961 | Q116: 2103.253 | R116: 59003.61578 | S116: 49862.81921 | T116: 0 | U116: 0 | V116: 0 | W116: 0 | X116: 0 | Y116: 0 | Z116: 0 | AA116: 3157.307042 | AB116: 292486.2196 | AC116: 5212.432197 | AD116: 0 | AE116: 5212.432197 | AF116: 0 | AG116: 10925.75342 | AH116: 4217.092467 | AI116: 0 | AJ116: 15142.84589 | AK116: 4788.834504 | AL116: 0 | AM116: 0 | AN116: 799.8053532 | AO116: 799.8053532 | AP116: 0 | AQ116: 0 | AR116: 0 | AS116: 2879.959921 | AT116: 0 | AU116: 4560 | AV116: 6012.732708 | AW116: 4500 | AX116: 6529 | AY116: 11029 | AZ116: 0 | BA116: 0 | BB116: 0 | BC116: 87000 | BD116: 0 | BE116: 0 | BF116: 0 | BG116: 0 | BH116: 4810895.777 | BJ116: 202852.1387 | BK116: 0 | BL116: 202852.1387 | BM116: 0 | BN116: 0 | BO116: 0 | BP116: 200000 | BQ116: 0 | BR116: 69260.68125 | BS116: 0 | BT116: 69260.68125 | BU116: 210651.874 | BV116: 0 | BW116: 0 | BX116: 0 | BY116: 210651.874 | BZ116: 0 | CA116: 210651.874 | CB116: 0 | CC116: 0 | CD116: 0 | CE116: 682764.694 | CF116: 5493660.471 | CG116: 3894192.975 | CH116: 916702.8019
A117: 753 | B117: Fort-Portal Municipal Council | C117: 0 | D117: 0 | E117: 528191.6037 | F117: 556499.0138 | G117: 0 | H117: 0 | I117: 37440 | J117: 0 | K117: 0 | L117: 0 | M117: 1332987.74 | N117: 1376693.654 | O117: 11620.44 | P117: 622281.3036 | Q117: 0 | R117: 81485.70733 | S117: 40199.22877 | T117: 0 | U117: 0 | V117: 0 | W117: 0 | X117: 0 | Y117: 0 | Z117: 0 | AA117: 2742.118002 | AB117: 621078.0431 | AC117: 5212.432197 | AD117: 0 | AE117: 5212.432197 | AF117: 0 | AG117: 11015.91402 | AH117: 4183.138421 | AI117: 0 | AJ117: 15199.05244 | AK117: 88379.96972 | AL117: 0 | AM117: 0 | AN117: 694.6301477 | AO117: 694.6301477 | AP117: 0 | AQ117: 0 | AR117: 0 | AS117: 2501.242305 | AT117: 0 | AU117: 12720 | AV117: 5222.052331 | AW117: 4500 | AX117: 5274 | AY117: 9774 | AZ117: 0 | BA117: 0 | BB117: 0 | BC117: 55800 | BD117: 0 | BE117: 0 | BF117: 0 | BG117: 0 | BH117: 5406722.231 | BJ117: 116542.4547 | BK117: 0 | BL117: 116542.4547 | BM117: 0 | BN117: 0 | BO117: 0 | BP117: 0 | BQ117: 0 | BR117: 100273.5784 | BS117: 0 | BT117: 100273.5784 | BU117: 210651.874 | BV117: 0 | BW117: 0 | BX117: 0 | BY117: 210651.874 | BZ117: 0 | CA117: 210651.874 | CB117: 0 | CC117: 0 | CD117: 0 | CE117: 427467.9071 | CF117: 5834190.138 | CG117: 3937522.151 | CH117: 1469200.08
A118: 754 | B118: Gulu Municipal Council | C118: 0 | D118: 0 | E118: 438444.7569 | F118: 581214.4245 | G118: 0 | H118: 0 | I118: 42120 | J118: 0 | K118: 0 | L118: 168293.7222 | M118: 3421991.62 | N118: 1521530.702 | O118: 10912.80426 | P118: 508568.4651 | Q118: 0 | R118: 240622.2769 | S118: 53636.25857 | T118: 0 | U118: 0 | V118: 0 | W118: 39347.08723 | X118: 39347.08723 | Y118: 0 | Z118: 0 | AA118: 6167.125629 | AB118: 779293.9957 | AC118: 5212.432197 | AD118: 0 | AE118: 5212.432197 | AF118: 0 | AG118: 15693.86419 | AH118: 8318.741178 | AI118: 9038.539605 | AJ118: 33051.14498 | AK118: 39658.89883 | AL118: 0 | AM118: 0 | AN118: 1562.249102 | AO118: 1562.249102 | AP118: 0 | AQ118: 39347.08723 | AR118: 39347.08723 | AS118: 5625.387206 | AT118: 0 | AU118: 9000 | AV118: 11744.5904 | AW118: 4500 | AX118: 8538 | AY118: 13038 | AZ118: 0 | BA118: 0 | BB118: 0 | BC118: 77400 | BD118: 0 | BE118: 0 | BF118: 0 | BG118: 0 | BH118: 8047783.029 | BJ118: 386930.7021 | BK118: 136030.0213 | BL118: 522960.7234 | BM118: 0 | BN118: 0 | BO118: 0 | BP118: 0 | BQ118: 0 | BR118: 58376.85991 | BS118: 92134.22346 | BT118: 150511.0834 | BU118: 140433.916 | BV118: 0 | BW118: 0 | BX118: 0 | BY118: 140433.916 | BZ118: 136030.0213 | CA118: 276463.9373 | CB118: 0 | CC118: 0 | CD118: 0 | CE118: 949935.7441 | CF118: 8997718.773 | CG118: 6254631.738 | CH118: 1793151.291
A119: 755 | B119: Jinja Municipal Council | C119: 30000 | D119: 0 | E119: 765173.2451 | F119: 814683.7088 | G119: 0 | H119: 0 | I119: 37440 | J119: 0 | K119: 0 | L119: 363025.7106 | M119: 2313139.468 | N119: 1660032.16 | O119: 10912.80426 | P119: 955554.3432 | Q119: 0 | R119: 119604.167 | S119: 55935.76207 | T119: 0 | U119: 0 | V119: 0 | W119: 0 | X119: 0 | Y119: 0 | Z119: 0 | AA119: 3906.395647 | AB119: 265755.4781 | AC119: 5212.432197 | AD119: 0 | AE119: 5212.432197 | AF119: 0 | AG119: 14826.96528 | AH119: 6193.217922 | AI119: 0 | AJ119: 21020.1832 | AK119: 30825.39594 | AL119: 0 | AM119: 0 | AN119: 989.5636087 | AO119: 989.5636087 | AP119: 0 | AQ119: 0 | AR119: 0 | AS119: 3563.246383 | AT119: 0 | AU119: 7800 | AV119: 7439.286888 | AW119: 4500 | AX119: 4646 | AY119: 9146 | AZ119: 0 | BA119: 0 | BB119: 0 | BC119: 0 | BD119: 0 | BE119: 0 | BF119: 0 | BG119: 0 | BH119: 7481159.351 | BJ119: 218699.9621 | BK119: 0 | BL119: 218699.9621 | BM119: 0 | BN119: 0 | BO119: 0 | BP119: 0 | BQ119: 0 | BR119: 63324.05143 | BS119: 0 | BT119: 63324.05143 | BU119: 210651.874 | BV119: 0 | BW119: 0 | BX119: 0 | BY119: 210651.874 | BZ119: 0 | CA119: 210651.874 | CB119: 0 | CC119: 0 | CD119: 0 | CE119: 492675.8875 | CF119: 7973835.239 | CG119: 6154788.195 | CH119: 1326371.156
A120: 757 | B120: Kabale Municipal Council | C120: 0 | D120: 0 | E120: 217896.1494 | F120: 468456.4161 | G120: 0 | H120: 0 | I120: 37440 | J120: 0 | K120: 0 | L120: 440500.891 | M120: 1772518.725 | N120: 1924046.307 | O120: 19570.46208 | P120: 333909.3194 | Q120: 0 | R120: 76532.90746 | S120: 43481.73101 | T120: 0 | U120: 0 | V120: 0 | W120: 0 | X120: 0 | Y120: 0 | Z120: 0 | AA120: 2692.472273 | AB120: 235931.4008 | AC120: 5212.432197 | AD120: 0 | AE120: 5212.432197 | AF120: 0 | AG120: 12327.37262 | AH120: 5914.794748 | AI120: 0 | AJ120: 18242.16737 | AK120: 11396.448 | AL120: 0 | AM120: 0 | AN120: 682.0539493 | AO120: 682.0539493 | AP120: 0 | AQ120: 0 | AR120: 0 | AS120: 2455.957603 | AT120: 0 | AU120: 10320 | AV120: 5127.507679 | AW120: 4500 | AX120: 7785 | AY120: 12285 | AZ120: 0 | BA120: 0 | BB120: 0 | BC120: 0 | BD120: 0 | BE120: 0 | BF120: 158450.0043 | BG120: 0 | BH120: 5797148.353 | BJ120: 109228.0747 | BK120: 0 | BL120: 109228.0747 | BM120: 0 | BN120: 0 | BO120: 0 | BP120: 0 | BQ120: 0 | BR120: 59366.29821 | BS120: 0 | BT120: 59366.29821 | BU120: 210651.874 | BV120: 0 | BW120: 0 | BX120: 0 | BY120: 210651.874 | BZ120: 0 | CA120: 210651.874 | CB120: 0 | CC120: 0 | CD120: 0 | CE120: 379246.2469 | CF120: 6176394.6 | CG120: 4996442.121 | CH120: 800706.232
A121: 758 | B121: Lira Municipal Council | C121: 0 | D121: 0 | E121: 434409.8778 | F121: 530906.2196 | G121: 0 | H121: 0 | I121: 42120 | J121: 0 | K121: 0 | L121: 95696.70626 | M121: 2105246.844 | N121: 819332.5298 | O121: 10912.80426 | P121: 314300.5759 | Q121: 0 | R121: 169724.1418 | S121: 36217.5145 | T121: 0 | U121: 0 | V121: 0 | W121: 9038.546893 | X121: 9038.546893 | Y121: 0 | Z121: 0 | AA121: 4915.432367 | AB121: 620184.8227 | AC121: 5212.432197 | AD121: 0 | AE121: 5212.432197 | AF121: 0 | AG121: 11296.20628 | AH121: 5133.851698 | AI121: 9038.539605 | AJ121: 25468.59758 | AK121: 9397.905969 | AL121: 0 | AM121: 0 | AN121: 1245.171619 | AO121: 1245.171619 | AP121: 0 | AQ121: 4519.146749 | AR121: 4519.146749 | AS121: 4483.646356 | AT121: 0 | AU121: 7560 | AV121: 9360.882733 | AW121: 4500 | AX121: 6153 | AY121: 10653 | AZ121: 0 | BA121: 0 | BB121: 0 | BC121: 0 | BD121: 0 | BE121: 0 | BF121: 0 | BG121: 0 | BH121: 5270906.8 | BJ121: 265755.8068 | BK121: 153655.6458 | BL121: 419411.4526 | BM121: 0 | BN121: 0 | BO121: 0 | BP121: 0 | BQ121: 0 | BR121: 13852.13625 | BS121: 90385.47286 | BT121: 104237.6091 | BU121: 140433.916 | BV121: 0 | BW121: 0 | BX121: 0 | BY121: 140433.916 | BZ121: 90385.47286 | CA121: 230819.3889 | CB121: 0 | CC121: 94904.15531 | CD121: 94904.15531 | CE121: 849372.6059 | CF121: 6120279.405 | CG121: 3918515.68 | CH121: 1352391.119
A122: 759 | B122: Masaka Municipal Council | C122: 0 | D122: 0 | E122: 286550.0022 | F122: 482537.0144 | G122: 0 | H122: 0 | I122: 37440 | J122: 0 | K122: 0 | L122: 191194.1197 | M122: 930096.8007 | N122: 1612571.266 | O122: 10912.80426 | P122: 260805.9526 | Q122: 0 | R122: 57892.66068 | S122: 50114.57567 | T122: 0 | U122: 0 | V122: 0 | W122: 0 | X122: 0 | Y122: 0 | Z122: 0 | AA122: 3569.091507 | AB122: 519704.1101 | AC122: 5212.432197 | AD122: 0 | AE122: 5212.432197 | AF122: 0 | AG122: 9846.48166 | AH122: 3626.292073 | AI122: 0 | AJ122: 13472.77373 | AK122: 0 | AL122: 0 | AM122: 0 | AN122: 904.1181156 | AO122: 904.1181156 | AP122: 0 | AQ122: 0 | AR122: 0 | AS122: 3255.572029 | AT122: 0 | AU122: 7320 | AV122: 6796.929458 | AW122: 4500 | AX122: 7534 | AY122: 12034 | AZ122: 0 | BA122: 0 | BB122: 0 | BC122: 0 | BD122: 0 | BE122: 0 | BF122: 0 | BG122: 0 | BH122: 4492384.224 | BJ122: 188223.3787 | BK122: 0 | BL122: 188223.3787 | BM122: 0 | BN122: 0 | BO122: 0 | BP122: 0 | BQ122: 0 | BR122: 33640.90232 | BS122: 0 | BT122: 33640.90232 | BU122: 210651.874 | BV122: 0 | BW122: 0 | BX122: 0 | BY122: 210651.874 | BZ122: 0 | CA122: 210651.874 | CB122: 0 | CC122: 0 | CD122: 0 | CE122: 432516.1551 | CF122: 4924900.379 | CG122: 3525557.958 | CH122: 966826.2656
A123: 760 | B123: Mbale Municipal Council | C123: 0 | D123: 0 | E123: 326787.2314 | F123: 598026.2521 | G123: 0 | H123: 0 | I123: 37440 | J123: 0 | K123: 0 | L123: 97635.59149 | M123: 2404528.247 | N123: 2009819.227 | O123: 10912.80426 | P123: 700478.8533 | Q123: 0 | R123: 186134.4787 | S123: 50740.88212 | T123: 0 | U123: 0 | V123: 0 | W123: 0 | X123: 0 | Y123: 0 | Z123: 0 | AA123: 4130.859234 | AB123: 1340102.055 | AC123: 5212.432197 | AD123: 0 | AE123: 5212.432197 | AF123: 0 | AG123: 15790.60336 | AH123: 6804.390743 | AI123: 4325.356981 | AJ123: 26920.35109 | AK123: 86603.48792 | AL123: 0 | AM123: 0 | AN123: 1046.424464 | AO123: 1046.424464 | AP123: 0 | AQ123: 0 | AR123: 0 | AS123: 3767.99243 | AT123: 0 | AU123: 11280 | AV123: 7866.752298 | AW123: 4500 | AX123: 9543 | AY123: 14043 | AZ123: 0 | BA123: 0 | BB123: 0 | BC123: 0 | BD123: 0 | BE123: 0 | BF123: 0 | BG123: 0 | BH123: 7923476.922 | BJ123: 238936.4134 | BK123: 12116.73563 | BL123: 251053.149 | BM123: 0 | BN123: 0 | BO123: 0 | BP123: 0 | BQ123: 0 | BR123: 69260.68125 | BS123: 0 | BT123: 69260.68125 | BU123: 140433.916 | BV123: 0 | BW123: 0 | BX123: 0 | BY123: 140433.916 | BZ123: 62088.12977 | CA123: 202522.0458 | CB123: 0 | CC123: 137737.6266 | CD123: 137737.6266 | CE123: 660573.5027 | CF123: 8584050.425 | CG123: 5858840.975 | CH123: 2064635.947
A124: 761 | B124: Mbarara Municipal Council | C124: 0 | D124: 0 | E124: 365765.6891 | F124: 467515.2868 | G124: 0 | H124: 0 | I124: 37440 | J124: 0 | K124: 0 | L124: 242021.488 | M124: 1875563.675 | N124: 2687864.742 | O124: 10912.80426 | P124: 449018.7392 | Q124: 0 | R124: 100259.9487 | S124: 57682.29139 | T124: 0 | U124: 0 | V124: 0 | W124: 0 | X124: 0 | Y124: 0 | Z124: 0 | AA124: 3766.450214 | AB124: 516649.5197 | AC124: 5212.432197 | AD124: 0 | AE124: 5212.432197 | AF124: 0 | AG124: 13831.31759 | AH124: 5996.284457 | AI124: 0 | AJ124: 19827.60205 | AK124: 0 | AL124: 0 | AM124: 0 | AN124: 954.1127941 | AO124: 954.1127941 | AP124: 0 | AQ124: 0 | AR124: 0 | AS124: 3435.594168 | AT124: 0 | AU124: 6960 | AV124: 7172.776703 | AW124: 4500 | AX124: 7031 | AY124: 11531 | AZ124: 0 | BA124: 0 | BB124: 0 | BC124: 0 | BD124: 0 | BE124: 0 | BF124: 0 | BG124: 0 | BH124: 6869554.153 | BJ124: 208459.8301 | BK124: 0 | BL124: 208459.8301 | BM124: 0 | BN124: 0 | BO124: 0 | BP124: 0 | BQ124: 0 | BR124: 38588.09384 | BS124: 0 | BT124: 38588.09384 | BU124: 210651.874 | BV124: 0 | BW124: 0 | BX124: 0 | BY124: 210651.874 | BZ124: 0 | CA124: 210651.874 | CB124: 0 | CC124: 0 | CD124: 0 | CE124: 457699.7979 | CF124: 7327253.951 | CG124: 5770336.736 | CH124: 1099217.417
A125: 762 | B125: Moroto Municipal Council | C125: 0 | D125: 0 | E125: 76101.99358 | F125: 233679.9347 | G125: 0 | H125: 0 | I125: 32760 | J125: 16599.2081 | K125: 0 | L125: 293375.0796 | M125: 264141.6311 | N125: 192485.7973 | O125: 10912.80426 | P125: 378943.0809 | Q125: 0 | R125: 17051.31099 | S125: 25937.291 | T125: 0 | U125: 0 | V125: 0 | W125: 31477.66979 | X125: 31477.66979 | Y125: 0 | Z125: 0 | AA125: 1301.505448 | AB125: 146672.5934 | AC125: 5212.432197 | AD125: 0 | AE125: 5212.432197 | AF125: 24000 | AG125: 4906.30121 | AH125: 1460.023962 | AI125: 9038.539605 | AJ125: 15404.86478 | AK125: 7391.433218 | AL125: 0 | AM125: 0 | AN125: 329.6958487 | AO125: 329.6958487 | AP125: 0 | AQ125: 12431.30615 | AR125: 12431.30615 | AS125: 1187.177388 | AT125: 0 | AU125: 2040 | AV125: 2478.569323 | AW125: 4500 | AX125: 1256 | AY125: 5756 | AZ125: 0 | BA125: 0 | BB125: 0 | BC125: 0 | BD125: 0 | BE125: 0 | BF125: 0 | BG125: 0 | BH125: 1797671.379 | BJ125: 30476.58334 | BK125: 23608.25234 | BL125: 54084.83568 | BM125: 0 | BN125: 39347.08723 | BO125: 39347.08723 | BP125: 0 | BQ125: 0 | BR125: 14991.03792 | BS125: 178635.776 | BT125: 193626.814 | BU125: 70216.95801 | BV125: 0 | BW125: 0 | BX125: 0 | BY125: 70216.95801 | BZ125: 125910.6791 | CA125: 196127.6371 | CB125: 0 | CC125: 31477.66979 | CD125: 31477.66979 | CE125: 514664.0438 | CF125: 2312335.423 | CG125: 1406298.328 | CH125: 391373.0512
A126: 763 | B126: Soroti Municipal Council | C126: 0 | D126: 0 | E126: 220449.1342 | F126: 471660.6717 | G126: 0 | H126: 0 | I126: 37440 | J126: 0 | K126: 0 | L126: 223645.809 | M126: 1687509.929 | N126: 1073599.013 | O126: 12506.42016 | P126: 586490.1645 | Q126: 0 | R126: 102194.8705 | S126: 42908.76122 | T126: 0 | U126: 0 | V126: 0 | W126: 29066.16629 | X126: 29066.16629 | Y126: 0 | Z126: 0 | AA126: 3251.730117 | AB126: 798705.0724 | AC126: 5212.432197 | AD126: 0 | AE126: 5212.432197 | AF126: 0 | AG126: 11494.9538 | AH126: 4875.800952 | AI126: 5896.417856 | AJ126: 22267.17261 | AK126: 0 | AL126: 0 | AM126: 0 | AN126: 823.724497 | AO126: 823.724497 | AP126: 0 | AQ126: 9162.5154 | AR126: 9162.5154 | AS126: 2966.088596 | AT126: 0 | AU126: 10800 | AV126: 6192.550733 | AW126: 4500 | AX126: 7031 | AY126: 11531 | AZ126: 0 | BA126: 0 | BB126: 0 | BC126: 55800 | BD126: 0 | BE126: 0 | BF126: 0 | BG126: 0 | BH126: 5414183.225 | BJ126: 160916.3601 | BK126: 76002.20414 | BL126: 236918.5642 | BM126: 0 | BN126: 0 | BO126: 0 | BP126: 0 | BQ126: 0 | BR126: 97954.39205 | BS126: 58132.33179 | BT126: 156086.7238 | BU126: 210651.874 | BV126: 0 | BW126: 0 | BX126: 0 | BY126: 210651.874 | BZ126: 58428.92542 | CA126: 269080.7994 | CB126: 0 | CC126: 58132.33179 | CD126: 58132.33179 | CE126: 720218.4193 | CF126: 6134401.645 | CG126: 4092852.007 | CH126: 1321331.219
A127: 764 | B127: Tororo Municipal Council | C127: 0 | D127: 0 | E127: 158102.8764 | F127: 403383.3322 | G127: 0 | H127: 0 | I127: 32760 | J127: 0 | K127: 0 | L127: 0 | M127: 1237131.04 | N127: 1682225.202 | O127: 10912.80426 | P127: 402321.0192 | Q127: 0 | R127: 93549.21987 | S127: 44357.77846 | T127: 0 | U127: 0 | V127: 0 | W127: 0 | X127: 0 | Y127: 0 | Z127: 0 | AA127: 2169.676879 | AB127: 98833.91977 | AC127: 5212.432197 | AD127: 7869.417446 | AE127: 13081.84964 | AF127: 0 | AG127: 9235.188817 | AH127: 4169.556803 | AI127: 4325.356981 | AJ127: 17730.1026 | AK127: 11359.43796 | AL127: 0 | AM127: 0 | AN127: 549.6200273 | AO127: 549.6200273 | AP127: 0 | AQ127: 0 | AR127: 0 | AS127: 1979.086091 | AT127: 0 | AU127: 4800 | AV127: 4131.903221 | AW127: 4500 | AX127: 5901 | AY127: 10401 | AZ127: 0 | BA127: 0 | BB127: 0 | BC127: 0 | BD127: 0 | BE127: 0 | BF127: 0 | BG127: 0 | BH127: 4229779.869 | BJ127: 106546.1354 | BK127: 125378.9001 | BL127: 231925.0355 | BM127: 0 | BN127: 0 | BO127: 0 | BP127: 0 | BQ127: 0 | BR127: 104565.897 | BS127: 39347.08723 | BT127: 143912.9842 | BU127: 105325.937 | BV127: 0 | BW127: 0 | BX127: 0 | BY127: 105325.937 | BZ127: 39347.08723 | CA127: 144673.0242 | CB127: 0 | CC127: 0 | CD127: 0 | CE127: 520511.044 | CF127: 4750290.913 | CG127: 3768733.398 | CH127: 461046.4709
A128: 770 | B128: Kasese Municipal Council | C128: 0 | D128: 0 | E128: 338952.3738 | F128: 368834.9969 | G128: 0 | H128: 0 | I128: 32760 | J128: 0 | K128: 0 | L128: 0 | M128: 1561728.268 | N128: 1110172.585 | O128: 10912.80426 | P128: 1925689.52 | Q128: 0 | R128: 119667.1645 | S128: 32987.28991 | T128: 0 | U128: 0 | V128: 0 | W128: 0 | X128: 0 | Y128: 0 | Z128: 0 | AA128: 4864.791941 | AB128: 466856.5513 | AC128: 5212.432197 | AD128: 0 | AE128: 5212.432197 | AF128: 0 | AG128: 12994.59533 | AH128: 5106.688462 | AI128: 0 | AJ128: 18101.28379 | AK128: 0 | AL128: 0 | AM128: 0 | AN128: 1232.343445 | AO128: 1232.343445 | AP128: 0 | AQ128: 0 | AR128: 0 | AS128: 4437.454333 | AT128: 0 | AU128: 8880 | AV128: 9264.443792 | AW128: 4500 | AX128: 5901 | AY128: 10401 | AZ128: 0 | BA128: 0 | BB128: 0 | BC128: 0 | BD128: 0 | BE128: 0 | BF128: 92937.00254 | BG128: 0 | BH128: 6123892.306 | BJ128: 303302.9574 | BK128: 0 | BL128: 303302.9574 | BM128: 0 | BN128: 0 | BO128: 0 | BP128: 0 | BQ128: 0 | BR128: 23427.34849 | BS128: 0 | BT128: 23427.34849 | BU128: 280868.832 | BV128: 0 | BW128: 0 | BX128: 0 | BY128: 280868.832 | BZ128: 0 | CA128: 280868.832 | CB128: 0 | CC128: 0 | CD128: 0 | CE128: 607599.138 | CF128: 6731491.444 | CG128: 5010098.174 | CH128: 1113794.132
A129: 771 | B129: Hoima Municipal Council | C129: 30000 | D129: 0 | E129: 296491.0912 | F129: 342200.3799 | G129: 0 | H129: 0 | I129: 37440 | J129: 0 | K129: 0 | L129: 215062.1557 | M129: 1700088.741 | N129: 1014439.199 | O129: 10912.80426 | P129: 232075.8138 | Q129: 0 | R129: 107202.6682 | S129: 17534.32115 | T129: 0 | U129: 0 | V129: 0 | W129: 0 | X129: 0 | Y129: 0 | Z129: 0 | AA129: 4664.251481 | AB129: 1016432.166 | AC129: 5212.432197 | AD129: 0 | AE129: 5212.432197 | AF129: 0 | AG129: 10902.43116 | AH129: 3992.995765 | AI129: 0 | AJ129: 14895.42692 | AK129: 0 | AL129: 0 | AM129: 0 | AN129: 1181.542769 | AO129: 1181.542769 | AP129: 0 | AQ129: 0 | AR129: 0 | AS129: 4254.529936 | AT129: 0 | AU129: 19320 | AV129: 8882.53726 | AW129: 4500 | AX129: 9292 | AY129: 13792 | AZ129: 0 | BA129: 0 | BB129: 0 | BC129: 0 | BD129: 0 | BE129: 0 | BF129: 0 | BG129: 0 | BH129: 5092082.061 | BJ129: 241618.3528 | BK129: 0 | BL129: 241618.3528 | BM129: 0 | BN129: 0 | BO129: 0 | BP129: 0 | BQ129: 0 | BR129: 20872.60369 | BS129: 0 | BT129: 20872.60369 | BU129: 210651.874 | BV129: 0 | BW129: 0 | BX129: 0 | BY129: 210651.874 | BZ129: 0 | CA129: 210651.874 | CB129: 0 | CC129: 0 | CD129: 0 | CE129: 473142.8305 | CF129: 5565224.892 | CG129: 3552219.094 | CH129: 1539862.967
A130: 772 | B130: Mukono Municipal Council | C130: 30000 | D130: 0 | E130: 379192.0921 | F130: 401833.3879 | G130: 0 | H130: 0 | I130: 32760 | J130: 0 | K130: 0 | L130: 0 | M130: 2693933.511 | N130: 1552378.736 | O130: 10912.80426 | P130: 746527.4538 | Q130: 0 | R130: 137837.4303 | S130: 23584.15349 | T130: 0 | U130: 0 | V130: 0 | W130: 0 | X130: 0 | Y130: 0 | Z130: 0 | AA130: 4237.603797 | AB130: 413165.8346 | AC130: 5212.432197 | AD130: 0 | AE130: 5212.432197 | AF130: 0 | AG130: 13358.68631 | AH130: 5785.769374 | AI130: 0 | AJ130: 19144.45568 | AK130: 0 | AL130: 0 | AM130: 0 | AN130: 1073.464873 | AO130: 1073.464873 | AP130: 0 | AQ130: 0 | AR130: 0 | AS130: 3865.360237 | AT130: 0 | AU130: 5160 | AV130: 8070.035196 | AW130: 4500 | AX130: 10547 | AY130: 15047 | AZ130: 0 | BA130: 0 | BB130: 0 | BC130: 0 | BD130: 0 | BE130: 0 | BF130: 0 | BG130: 0 | BH130: 6483935.755 | BJ130: 290380.8861 | BK130: 0 | BL130: 290380.8861 | BM130: 0 | BN130: 0 | BO130: 0 | BP130: 0 | BQ130: 0 | BR130: 24040.78513 | BS130: 0 | BT130: 24040.78513 | BU130: 280868.832 | BV130: 0 | BW130: 0 | BX130: 0 | BY130: 280868.832 | BZ130: 0 | CA130: 280868.832 | CB130: 0 | CC130: 0 | CD130: 0 | CE130: 595290.5033 | CF130: 7079226.258 | CG130: 5438345.893 | CH130: 1045589.862
A131: 773 | B131: Iganga Municipal Council | C131: 0 | D131: 0 | E131: 208403.5872 | F131: 342200.3799 | G131: 0 | H131: 0 | I131: 32760 | J131: 0 | K131: 0 | L131: 0 | M131: 1928230.803 | N131: 469705.7483 | O131: 10912.80426 | P131: 256382.8852 | Q131: 0 | R131: 47425.08365 | S131: 21652.87049 | T131: 0 | U131: 0 | V131: 0 | W131: 0 | X131: 0 | Y131: 0 | Z131: 0 | AA131: 2483.984436 | AB131: 753229.8759 | AC131: 5212.432197 | AD131: 0 | AE131: 5212.432197 | AF131: 0 | AG131: 9568.733048 | AH131: 1928.589791 | AI131: 0 | AJ131: 11497.32284 | AK131: 0 | AL131: 0 | AM131: 0 | AN131: 629.2400526 | AO131: 629.2400526 | AP131: 0 | AQ131: 0 | AR131: 0 | AS131: 2265.78395 | AT131: 0 | AU131: 7440 | AV131: 4730.46627 | AW131: 4500 | AX131: 7157 | AY131: 11657 | AZ131: 0 | BA131: 0 | BB131: 0 | BC131: 0 | BD131: 0 | BE131: 0 | BF131: 0 | BG131: 0 | BH131: 4116820.268 | BJ131: 135316.03 | BK131: 0 | BL131: 135316.03 | BM131: 0 | BN131: 0 | BO131: 0 | BP131: 0 | BQ131: 0 | BR131: 37650.87544 | BS131: 0 | BT131: 37650.87544 | BU131: 280868.832 | BV131: 0 | BW131: 0 | BX131: 0 | BY131: 280868.832 | BZ131: 0 | CA131: 280868.832 | CB131: 0 | CC131: 0 | CD131: 0 | CE131: 453835.7375 | CF131: 4570656.005 | CG131: 3040192.621 | CH131: 1076627.647
A132: 774 | B132: Masindi Municipal Council | C132: 0 | D132: 0 | E132: 327451.64 | F132: 355556.7559 | G132: 0 | H132: 0 | I132: 32760 | J132: 0 | K132: 0 | L132: 138650.2409 | M132: 1724909.011 | N132: 1121356.388 | O132: 11570.25792 | P132: 312315.4228 | Q132: 0 | R132: 107280.665 | S132: 20160.81946 | T132: 0 | U132: 0 | V132: 0 | W132: 0 | X132: 0 | Y132: 0 | Z132: 0 | AA132: 4540.208657 | AB132: 711045.6302 | AC132: 5212.432197 | AD132: 0 | AE132: 5212.432197 | AF132: 0 | AG132: 10857.6211 | AH132: 4441.189168 | AI132: 5896.417856 | AJ132: 21195.22812 | AK132: 0 | AL132: 0 | AM132: 0 | AN132: 1150.120384 | AO132: 1150.120384 | AP132: 0 | AQ132: 11804.12617 | AR132: 11804.12617 | AS132: 4141.383398 | AT132: 0 | AU132: 11280 | AV132: 8646.311789 | AW132: 4500 | AX132: 7408 | AY132: 11908 | AZ132: 0 | BA132: 0 | BB132: 0 | BC132: 0 | BD132: 0 | BE132: 0 | BF132: 0 | BG132: 0 | BH132: 4942934.642 | BJ132: 255271.8621 | BK132: 63072.19412 | BL132: 318344.0562 | BM132: 0 | BN132: 0 | BO132: 0 | BP132: 0 | BQ132: 0 | BR132: 38591.52992 | BS132: 94433.00936 | BT132: 133024.5393 | BU132: 280868.832 | BV132: 0 | BW132: 0 | BX132: 0 | BY132: 280868.832 | BZ132: 40920.97072 | CA132: 321789.8027 | CB132: 0 | CC132: 78694.17446 | CD132: 78694.17446 | CE132: 851852.5727 | CF132: 5794787.214 | CG132: 3697118.076 | CH132: 1245816.565
A133: 775 | B133: Ntungamo Municipal Council | C133: 0 | D133: 0 | E133: 90628.36214 | F133: 380796.1959 | G133: 0 | H133: 0 | I133: 37440 | J133: 0 | K133: 0 | L133: 0 | M133: 411484.9244 | N133: 215820.6369 | O133: 10912.80426 | P133: 286084.4337 | Q133: 0 | R133: 17501.29281 | S133: 28927.27308 | T133: 0 | U133: 0 | V133: 0 | W133: 0 | X133: =SUM(T133:W133) -> 0 | Y133: 0 | Z133: 0 | AA133: 1907.757844 | AB133: 163006.1436 | AC133: 5212.432197 | AD133: 0 | AE133: =SUM(AC133:AD133) -> 5212.432197 | AF133: 0 | AG133: 5086.58836 | AH133: 1052.575414 | AI133: 0 | AJ133: =SUM(AG133:AI133) -> 6139.163774 | AK133: 0 | AL133: 0 | AM133: 0 | AN133: 483.2710016 | AO133: =SUM(AM133:AN133) -> 483.2710016 | AP133: 0 | AQ133: 0 | AR133: =SUM(AP133:AQ133) -> 0 | AS133: 1740.174794 | AT133: 0 | AU133: 3840 | AV133: 3633.108164 | AW133: 4500 | AX133: 1883 | AY133: =SUM(AW133:AX133) -> 6383 | AZ133: 0 | BA133: 0 | BB133: 0 | BC133: 0 | BD133: 0 | BE133: 0 | BF133: 0 | BG133: 0 | BH133: =SUM(C133:S133,X133,Y133:AB133,AE133,AF133,AJ133,AK133:AL133,AO133,AR133,AS133:AV133,AY133,AZ133:BG133) -> 1671940.975 | BJ133: 40960.52801 | BK133: 0 | BL133: =SUM(BJ133:BK133) -> 40960.52801 | BM133: 0 | BN133: 0 | BO133: =SUM(BM133:BN133) -> 0 | BP133: 0 | BQ133: 0 | BR133: 39394.30196 | BS133: 0 | BT133: =SUM(BR133:BS133) -> 39394.30196 | BU133: 140433.916 | BV133: 0 | BW133: 0 | BX133: 0 | BY133: =SUM(BU133:BX133) -> 140433.916 | BZ133: 0 | CA133: =SUM(BY133:BZ133) -> 140433.916 | CB133: 0 | CC133: 0 | CD133: =SUM(CB133:CC133) -> 0 | CE133: =SUM(BL133,BO133,BP133:BQ133,BT133,CA133,CD133) -> 220788.746 | CF133: =SUM(BH133,CE133) -> 1892729.721 | CG133: =SUM(F133:G133,I133,L133:Q133,BG133) -> 1342538.995 | CH133: =SUM(C133:E133,H133,J133:K133,R133:S133,X133,Y133:AB133,AE133,AF133,AJ133,AK133:AL133,AO133,AR133,AS133:AV133,AY133,AZ133:BF133) -> 329401.9794
A134: 776 | B134: Busia Municipal Council | C134: 0 | D134: 0 | E134: 154674.325 | F134: 342200.3799 | G134: 0 | H134: 0 | I134: 32760 | J134: 0 | K134: 0 | L134: 0 | M134: 915178.0578 | N134: 282721.9371 | O134: 10912.80426 | P134: 328402.5126 | Q134: 0 | R134: 60361.56091 | S134: 27431.26919 | T134: 0 | U134: 0 | V134: 0 | W134: 0 | X134: 0 | Y134: 0 | Z134: 0 | AA134: 2320.736367 | AB134: 380946.6619 | AC134: 5212.432197 | AD134: 0 | AE134: 5212.432197 | AF134: 0 | AG134: 6933.948617 | AH134: 1962.543837 | AI134: 4325.356981 | AJ134: 13221.84943 | AK134: 0 | AL134: 0 | AM134: 0 | AN134: 587.8862414 | AO134: 587.8862414 | AP134: 0 | AQ134: 0 | AR134: 0 | AS134: 2116.876071 | AT134: 0 | AU134: 3840 | AV134: 4419.578862 | AW134: 4500 | AX134: 4646 | AY134: 9146 | AZ134: 0 | BA134: 0 | BB134: 0 | BC134: 0 | BD134: 0 | BE134: 0 | BF134: 0 | BG134: 0 | BH134: 2576454.868 | BJ134: 120931.0827 | BK134: 211942.492 | BL134: 332873.5747 | BM134: 0 | BN134: 0 | BO134: 0 | BP134: 0 | BQ134: 0 | BR134: 30159.06893 | BS134: 0 | BT134: 30159.06893 | BU134: 351085.79 | BV134: 0 | BW134: 0 | BX134: 0 | BY134: 351085.79 | BZ134: 0 | CA134: 351085.79 | CB134: 0 | CC134: 0 | CD134: 0 | CE134: 714118.4337 | CF134: 3290573.301 | CG134: 1912175.692 | CH134: 664279.1761
A135: 777 | B135: Bushenyi - Ishaka Municipal Council | C135: 0 | D135: 0 | E135: 247608.4695 | F135: 380796.1959 | G135: 0 | H135: 0 | I135: 37439 | J135: 0 | K135: 0 | L135: 287831.2523 | M135: 1244358.296 | N135: 1312844.94 | O135: 10912.80426 | P135: 332115.3264 | Q135: 0 | R135: 47095.09698 | S135: 8661.465381 | T135: 0 | U135: 0 | V135: 0 | W135: 0 | X135: 0 | Y135: 0 | Z135: 0 | AA135: 2810.944695 | AB135: 194021.1814 | AC135: 5212.432197 | AD135: 0 | AE135: 5212.432197 | AF135: 0 | AG135: 8884.041178 | AH135: 3809.643919 | AI135: 0 | AJ135: 12693.6851 | AK135: 0 | AL135: 0 | AM135: 0 | AN135: 712.0652458 | AO135: 712.0652458 | AP135: 0 | AQ135: 0 | AR135: 0 | AS135: 2564.02306 | AT135: 0 | AU135: 10680 | AV135: 5353.124953 | AW135: 4500 | AX135: 3265 | AY135: 7765 | AZ135: 0 | BA135: 0 | BB135: 0 | BC135: 0 | BD135: 0 | BE135: 0 | BF135: 0 | BG135: 0 | BH135: 4151475.303 | BJ135: 123856.8347 | BK135: 0 | BL135: 123856.8347 | BM135: 0 | BN135: 0 | BO135: 0 | BP135: 0 | BQ135: 0 | BR135: 19289.26793 | BS135: 0 | BT135: 19289.26793 | BU135: 140433.916 | BV135: 0 | BW135: 0 | BX135: 0 | BY135: 140433.916 | BZ135: 0 | CA135: 140433.916 | CB135: 0 | CC135: 0 | CD135: 0 | CE135: 283580.0187 | CF135: 4435055.322 | CG135: 3606297.815 | CH135: 545177.4886
A136: 778 | B136: Rukungiri Municipal Council | C136: 0 | D136: 0 | E136: 189559.9332 | F136: 380796.1959 | G136: 0 | H136: 0 | I136: 37440 | J136: 0 | K136: 0 | L136: 0 | M136: 1002555.014 | N136: 1326852.23 | O136: 10912.80426 | P136: 519205.0659 | Q136: 0 | R136: 42445.28487 | S136: 9512.242734 | T136: 0 | U136: 0 | V136: 0 | W136: 0 | X136: 0 | Y136: 0 | Z136: 0 | AA136: 2587.242895 | AB136: 213063.3765 | AC136: 5212.432197 | AD136: 0 | AE136: 5212.432197 | AF136: 0 | AG136: 8532.654766 | AH136: 3470.103463 | AI136: 0 | AJ136: 12002.75823 | AK136: 0 | AL136: 0 | AM136: 0 | AN136: 655.3973655 | AO136: 655.3973655 | AP136: 0 | AQ136: 0 | AR136: 0 | AS136: 2359.971882 | AT136: 0 | AU136: 11520 | AV136: 4927.110278 | AW136: 4500 | AX136: 4395 | AY136: 8895 | AZ136: 0 | BA136: 0 | BB136: 0 | BC136: 0 | BD136: 0 | BE136: 0 | BF136: 0 | BG136: 0 | BH136: 3780502.06 | BJ136: 60953.16669 | BK136: 0 | BL136: 60953.16669 | BM136: 0 | BN136: 0 | BO136: 0 | BP136: 0 | BQ136: 0 | BR136: 18905.60034 | BS136: 0 | BT136: 18905.60034 | BU136: 210651.874 | BV136: 0 | BW136: 0 | BX136: 0 | BY136: 210651.874 | BZ136: 0 | CA136: 210651.874 | CB136: 0 | CC136: 0 | CD136: 0 | CE136: =SUM(BL136,BO136,BP136:BQ136,BT136,CA136,CD136) -> 290510.641 | CF136: 4071012.701 | CG136: 3277761.309 | CH136: 502740.7502
B137: Total | C137: =SUM(C4:C136) -> 1337144 | D137: =SUM(D4:D136) -> 60350106.45 | E137: 19222146.55 | F137: 32310433.16 | G137: 109556783.6 | H137: 100000 | I137: 15415919 | J137: 500000 | K137: 2994158.802 | L137: 35338115.34 | M137: 619676708.9 | N137: 190735726.1 | O137: 5212935.451 | P137: 228687766.8 | Q137: 2616038.933 | R137: 49683789.38 | S137: 15838899.32 | T137: 10019928.17 | U137: 41000 | V137: 108000 | W137: 4080746.528 | X137: 14249674.7 | Y137: 5943067 | Z137: 17194707.12 | AA137: 1575310.526 | AB137: 105599669 | AC137: 3236052.684 | AD137: 1297162.448 | AE137: 4533215.133 | AF137: 1503910 | AG137: 3820955.119 | AH137: 1380360.98 | AI137: 1477420.847 | AJ137: 6678736.946 | AK137: 330000 | AL137: 4193638.978 | AM137: 400000 | AN137: 399055.833 | AO137: 799055.833 | AP137: 784999.8472 | AQ137: 2068215.153 | AR137: 2853215 | AS137: 1436930.624 | AT137: 4028423.693 | AU137: 10619000 | AV137: 3000000 | AW137: 598500 | AX137: 2500000 | AY137: 3098500 | AZ137: 23418400 | BA137: 2207995.222 | BB137: 2000000 | BC137: 1875575 | BD137: 2909724.775 | BE137: 11389929.2 | BF137: 8221428.025 | BG137: 26904735 | BH137: 1656141514 | BJ137: 56534893.18 | BK137: 12531606.13 | BL137: 69066499.31 | BM137: 52942995.3 | BN137: 7429438.697 | BO137: 60372434 | BP137: =SUM(BP4:BP136) -> 8858000 | BQ137: 104342403.4 | BR137: 15174694.47 | BS137: 14908904.49 | BT137: 30083598.97 | BU137: 27068725.81 | BV137: 0 | BW137: 5440000 | BX137: 4538673.093 | BY137: 37047398.9 | BZ137: 17151439.65 | CA137: 54198838.55 | CB137: 13140248.6 | CC137: 12926108.4 | CD137: 26066357 | CE137: 352988131.2 | CF137: 2009129645 | CG137: 1266455162 | CH137: 389686351.3

Sheet ThisVsPublication
C2: This sheet compares the dataset on the Approved_budget sheet with the relevant publication
C3: The relevant publication is the 13/14 Approved Budget book vol 2
C4: http://budget.go.ug/budget/content/approved-budget-estimates-350
C5: The comparison between the data and publication yields: | H5: =IF(SUM(H19:H21)=0,"IDENTICAL","VARIANCE") -> IDENTICAL
C8: NOTE - this dataset is available in flat format, with additional fields on the dataportal:
C9: http://budget.go.ug/budget/sites/default/files/13_14_ApprovedBudget_LG.xlsx
C12: Row Labels | D12: Dataset Approved Budget | G12: Table 4a in book (pg xxii) | H12: Variance
C13: GoUDevelopment | D13: ='Annex of Approved IPFs'!CE137 -> 352988131.2 | G13: 352988131 | H13: =ROUND(D13,0)-G13 -> 0
C14: NonWageRecurrent | D14: ='Annex of Approved IPFs'!CH137 -> 389686351.3 | G14: 389686351 | H14: =ROUND(D14,0)-G14 -> 0
C15: WageRecurrent | D15: ='Annex of Approved IPFs'!CG137 -> 1266455162 | G15: 1266455162 | H15: =ROUND(D15,0)-G15 -> 0
C16: Grand Total | D16: ='Annex of Approved IPFs'!CF137 -> 2009129645 | G16: 2009129645 | H16: =SUM(H13:H15) -> 0
C18: Breakdown between GoU Development and Donor is not included in 2013/14 publication.
G20: *Note - grand total is hard coded from the book.

Sheet Metadata
B2: Content | C2: Intellectual Property | D2: Instantiation
B3: IPFs for LG 2013/14. Also available in flat format. | C3: Published with permission of the Ministry of Finance, Planning and Economic Development | D3: 2018-01-22
B4: Local budget breakdown to subgrant level | C4: Data provided by Ministry of Finance, Planning and Economic Development | D4: Published tables
B5: Excel file | C5: Created on behalf of the Overseas Development Institute by S.Cresswell (simon.cresswell@outlook.com) | D5: 13_14_ApprovedBudget_Vol2
B6: Source: OTIMS | C6: For public use and analysis | D6: English
B10: NOTE - this dataset is available in flat format, with additional fields on the dataportal:
B11: http://budget.go.ug/budget/sites/default/files/13_14_ApprovedBudget_LG.xlsx
